Workbook

Sheet Hoja4 (hidden)
A1: CLASIFICACIÓN DE LA INFORMACIÓN | B1: Pública
B3: Datos
A4: DEPENDENCIA | B4: Cantidad contratos | C4: % del Total
A5: ESTRATEGIA | B5: 4 | C5: 0.02985074627
A6: FINANCIERA Y ADMON | B6: 25 | C6: 0.1865671642
A7: NEGOCIOS | B7: 4 | C7: 0.02985074627
A8: OPERACIONES | B8: 3 | C8: 0.0223880597
A9: OTI | B9: 50 | C9: 0.3731343284
A10: RIESGOS | B10: 1 | C10: 0.007462686567
A11: SECRETARIA GENERAL Y JURIDICA | B11: 43 | C11: 0.3208955224
A12: TÉCNICA | B12: 4 | C12: 0.02985074627
A13: Total general | B13: 134 | C13: 1
A16: DEPENDENCIA | B16: CANTIDAD CONTRATOS | C16: % DEL TOTAL
A17: OTI | B17: 50 | C17: 0.3731343284
A18: SECRETARIA GENERAL Y JURIDICA | B18: 43 | C18: 0.3208955224
A19: FINANCIERA Y ADMON | B19: 25 | C19: 0.1865671642
A20: ESTRATEGIA | B20: 4 | C20: 0.02985074627
A21: NEGOCIOS | B21: 4 | C21: 0.02985074627
A22: TÉCNICA | B22: 4 | C22: 0.02985074627
A23: OPERACIONES | B23: 3 | C23: 0.0223880597
A24: RIESGOS | B24: 1 | C24: 0.007462686567
A25: TOTAL GENERAL | B25: 134 | C25: 1

Sheet Hoja3 (hidden)
I1: DEPENDENCIA | J1: Planeado | K1: Contratado | L1: %
A2: DEPENDENCIA | B2: VALOR | C2: PRESUPUESTO CONTRATADO | D2: % | I2: ESTRATEGIA | J2: 1172306306 | K2: 1172306306 | L2: =K2/J2 -> 1
A3: OFICINA DE ESTRATEGIA Y DESARROLLO | B3: 694295625 | I3: FINANCIERA Y ADMON | J3: 8752267945 | K3: 5335356771 | L3: =K3/J3 -> 0.6095970558
A4: VICEPRESIDENCIA FINANCIERA Y ADMINISTRATIVA | B4: 8752267945 | C4: 3088070598 | D4: =C4/B4 -> 0.3528309025 | I4: NEGOCIOS | J4: 1.336003318e+10 | K4: 12691995310 | L4: =K4/J4 -> 0.9499972894
A5: VICEPRESIDENCIA DE NEGOCIOS | B5: 7381429080 | C5: 12227414358 | D5: =C5/B5 -> 1.656510443 | I5: OPERACIONES | J5: 38366883401 | K5: 31119191770 | L5: =K5/J5 -> 0.8110951167
A6: VICEPRESIDENCIA DE OPERACIONES | B6: 38366883401 | C6: 31119191770 | D6: 0.8110951167 | I6: OTI | J6: 1.63261224e+10 | K6: 9124308413 | L6: =K6/J6 -> 0.5588778639
A7: OFICINA DE TECNOLOGIAS DE LA INFORMACIÓN | B7: 1.63261224e+10 | C7: 201210990 | D7: 0.01232448129 | I7: PYP | J7: 120411187909 | K7: 99075259486 | L7: 0.8228077574
A8: VICEPRESIDENCIA DE PROMOCIÓN Y PREVENCIÓN | B8: 120411187909 | C8: 81402850713 | D8: 0.6760405916 | I8: RIESGOS | J8: 68348301 | K8: 68348301 | L8: 1
A9: OFICINA DE GESTIÓN INTEGRAL DE RIESGOS | B9: 68348301 | D9: 0 | I9: SECRETARIA GENERAL Y JURIDICA | J9: 5599124510 | K9: 4399646576 | L9: 0.7857740202
A10: SECRETARIA GENERAL Y JURIDICA | B10: 6077135191 | C10: 7043728834 | D10: 1.159054162 | I10: TÉCNICA | J10: 1132517831 | K10: 1125458561 | L10: 0.9937667471
A11: VICEPRESIDENCIA TÉCNICA | B11: 1132517831 | C11: 725588815 | D11: 0.6406864379 | I11: Total general | J11: =SUM(J2:J10) -> 2.051887918e+11 | K11: =SUM(K2:K10) -> 164111871494 | L11: 0.7998091419
A12: PRESUPUESTOS COMPARTIDOS
A13: VP NEGOCIOS Y VP FINANCIERA Y ADMON | B13: 269479593
A14: VP NEGOCIOS Y SECRETARIA GENERAL | B14: 110000000
A15: VP NEGOCIOS, SECRETARIA GENERAL y VP PYP | B15: 6589650515
A16: OFICINA DE ESTRATEGIA, G. TALENTO HUMANO y OFICINA DE RIESGOS | B16: 97086437
A17: TOTAL PLAN | B17: 2.062764042e+11 | C17: 135808056078

Sheet Hoja1 (hidden)
B3: Datos | E3: VICEPRESIDENCIA/SECTREATARÍA GENERAL | F3: CANTIDAD PREVISTA DE CONTRATOS | G3: VALOR PLANEADO A CONTRATAR | H3: % del valor estimado
A4: VICEPRESIDENCIA/SECTREATARÍA GENERAL | B4: CANTIDAD PREVISTA DE CONTRATOS | C4: VALOR PLANEADO A CONTRATAR | E4: Financiera y Administrativa | F4: 39 | G4: 9198008297 | H4: =G4/$G$10 -> 0.0461408428
A5: Financiera y Administrativa | B5: 39 | C5: 9198008297 | E5: Negocios | F5: 23 | G5: 8440161697 | H5: 0.04233918491
A6: Negocios | B6: 23 | C6: 8440161697 | E6: Operaciones | F6: 14 | G6: 30469448195 | H6: 0.1528467875
A7: Operaciones | B7: 14 | C7: 30469448195 | E7: Promoción y Prevención | F7: 270 | G7: 119824776984 | H7: 0.6010884118
A8: Promoción y Prevención | B8: 270 | C8: 119824776984 | E8: Secretaria General y Jurídica | F8: 128 | G8: 2.979845428e+10 | H8: 0.149480817
A9: Secretaria General y Jurídica | B9: 128 | C9: 2.979845428e+10 | E9: Técnica | F9: 438 | G9: 1615494000 | H9: 0.008103956019
A10: Técnica | B10: 438 | C10: 1615494000 | E10: Total general | F10: 912 | G10: 1.993463435e+11
A11: Total general | B11: 912 | C11: 1.993463435e+11
A16: CANTIDAD PREVISTA DE CONTRATOS
A17: MES | B17: Total
A18: ENERO | B18: 254
A19: FEBRERO | B19: 104
A20: MARZO | B20: 89
A21: ABRIL | B21: 83
A22: MAYO | B22: 62
A23: JUNIO | B23: 59
A24: JULIO | B24: 58
A25: AGOSTO | B25: 46
A26: SEPTIEMBRE | B26: 34
A27: OCTUBRE | B27: 41
A28: NOVIEMBRE | B28: 55
A29: DICIEMBRE | B29: 27
A30: Total general | B30: 912
A36: MES | B36: Total
A37: ENERO | B37: 254
A38: FEBRERO | B38: 104
A39: MARZO | B39: 89
A40: ABRIL | B40: 83
A41: MAYO | B41: 62
A42: JUNIO | B42: 59
A43: JULIO | B43: 58
A44: AGOSTO | B44: 46
A45: SEPTIEMBRE | B45: 34
A46: OCTUBRE | B46: 41
A47: NOVIEMBRE | B47: 55
A48: DICIEMBRE | B48: 27
A49: Total general | B49: 912

Sheet REPARTO (hidden)
A1: ¿YA SE CONTRATÓ? | B1: (Todas)
A2: Modalidad de selección | B2: (Todas)
G3: 250000 | I3: 120000
A4: Etiquetas de fila | G4: =G3/20 -> 12500
A5: NEGOCIOS
A6: Mercadeo y Comunicaciones Gcia. Talento Humano
A7: Mercadeo y Comunicaciones
A8: Canales
A9: Experiencia del cliente
A10: Vida
A11: Total general

Sheet DATOS (hidden)
A3: DEPENDENCIA | B3: VALOR PLANEADO | F3: DEPENDENCIA | G3: TOTAL PLANEADO | H3: TOTAL CONTRATADO | I3: % AVANCE
A4: Financiera y Administrativa | B4: 25803911516 | F4: Financiera y Administrativa | G4: 25803911516 | H4: 6099746825 | I4: =H4/G4 -> 0.2363884569
A5: NEGOCIOS | B5: 2.788901019e+10 | F5: NEGOCIOS | G5: 2.788901019e+10 | H5: 3356236991 | I5: =H5/G5 -> 0.1203426356
A6: OPERACIONES | B6: 76580484891 | F6: OPERACIONES | G6: 76580484891 | H6: 23847287967 | I6: 0.3114016319
A7: PYP | B7: 230167863022 | F7: PYP | G7: 230167863022 | H7: 165070664290 | I7: 0.7171751179
A8: SECRETARIA GENERAL Y JURIDICA | B8: 61521732941 | F8: SECRETARIA GENERAL Y JURIDICA | G8: 61521732941 | H8: 7121259031 | I8: 0.1157519252
A9: TÉCNICA | B9: 1704405478 | F9: TÉCNICA | G9: 1704405478 | H9: 2587824153 | I9: 1.518314853 | K9: Nota, pendiente actualización por parte de técnica, algunos contratos suscritos no han sido actualizados en el PAA
A10: Total general | B10: 4.23667408e+11 | F10: Total general | G10: 4.23667408e+11 | H10: 208083019257 | I10: 0.491147101
A44: MES | B44: VALOR PLANEADO | C44: MES | D44: VALOR CONTRATADO | F44: MES | G44: VALOR PLANEADO | H44: VALOR CONTRATADO | I44: ACUMULADO PLANEADO | J44: ACUMULADO CONTRADO
A45: 1 | B45: 32049154513 | C45: ENERO | D45: 7350645992 | F45: ENERO | G45: 32049154513 | H45: 7350645992 | I45: =G45 -> 32049154513 | J45: =H45 -> 7350645992 | M45: =I45/1000000 -> 32049.15451 | N45: 7350.645992
A46: 2 | B46: 56318240175 | C46: FEBRERO | D46: 42552561723 | F46: FEBRERO | G46: 56318240175 | H46: 42552561723 | I46: =G46+I45 -> 88367394688 | J46: =J45+H46 -> 49903207715 | M46: 88367.39469 | N46: 49903.20771
A47: 3 | B47: 141500525975 | C47: MARZO | D47: 69361856320 | F47: MARZO | G47: 141500525975 | H47: 69361856320 | I47: =G47+I46 -> 229867920663 | J47: =J46+H47 -> 119265064035 | M47: 229867.9207 | N47: 119265.064
A48: 4 | B48: 64710858241 | C48: ABRIL | D48: 73310692787 | F48: ABRIL | G48: 64710858241 | H48: 73310692787 | I48: 294578778904 | J48: 192575756822 | M48: 294578.7789 | N48: 192575.7568
A49: 5 | B49: 15438614641 | C49: MAYO | D49: 15507262435 | F49: MAYO | G49: 15438614641 | H49: 15507262435 | I49: 310017393545 | J49: 208083019257 | M49: 310017.3935 | N49: 208083.0193
A50: 6 | B50: 34202100235 | C50: Total general | D50: 208083019257 | F50: JUNIO | G50: 34202100235 | H50: 0 | I50: 344219493780 | J50: 208083019257 | M50: 344219.4938 | N50: 208083.0193
A51: 7 | B51: 11898842485 | F51: JULIO | G51: 11898842485 | H51: 0 | I51: 356118336265 | M51: =I51/1000000 -> 356118.3363
A52: 8 | B52: 29089301471 | F52: AGOSTO | G52: 29089301471 | H52: 0 | I52: 385207637736 | M52: 385207.6377
A53: 9 | B53: 4077348134 | F53: SEPTIEMBRE | G53: 4077348134 | H53: 0 | I53: 389284985870 | M53: 389284.9859
A54: 10 | B54: 2412330408 | F54: OCTUBRE | G54: 2412330408 | H54: 0 | I54: 391697316278 | M54: 391697.3163
A55: 11 | B55: 1.607868179e+10 | F55: NOVIEMBRE | G55: 1.607868179e+10 | H55: 0 | I55: 4.077759981e+11 | M55: 407775.9981
A56: 12 | B56: 15891409965 | F56: DICIEMBRE | G56: 15891409965 | H56: 0 | I56: 4.23667408e+11 | M56: 423667.408
A57: Total general | B57: 4.23667408e+11 | F57: Total general | G57: 4.23667408e+11 | H57: 208083019257

Sheet PLAN
E2: PLAN ANUAL DE ADQUISICIONES
E4: A. INFORMACIÓN GENERAL DE LA ENTIDAD
E5: Nombre | F5: POSITIVA COMPAÑÍA DE SEGUROS S.A. | I5: El principal objetivo del Plan Anual de Adquisiciones es permitir que la entidad estatal aumente la probabilidad de lograr mejores condiciones de competencia a través de la participación de un mayor número de operadores económicos interesados en los procesos de selección que se van a adelantar durante el año fiscal, y que el Estado cuente con información suficiente para realizar compras coordinadas.
E6: Dirección | F6: Avenida Carrera 45 No. 94-72
E7: Teléfono | F7: PBX:(57-1)6502200
E8: Página web | F8: www.positiva.gov.co
E9: Misión y visión | F9: MISION: Protegemos Integralmente la vida de las personas contribuyendo al bienestar de las familias, las empresas y la sociedad VISION: Ser la aseguradora que garantiza oportunamente la máxima protección a nuestros clientes
E10: Perspectiva estratégica | F10: POSITIVA COMPAÑÍA DE SEGUROS S.A., diseña e implementa un modelo de negocio de Responsabilidad Global que contribuya con la rentabilidad y el desarrollo sostenible de la empresa y que coadyude con el logro de sus objetivos específicos.
E11: Información de contacto | F11: Gerencia de Abastecimiento Estratégico contratacion@positiva.gov.co PBX: (1)6502200 Ext: 10641 | I11: El Plan Anual de Adquisiciones es un documento de naturaleza informativa y las adquisiciones incluidas en el mismo pueden ser canceladas, revisadas o modificadas. Esta información no representa compromiso u obligación alguna por parte de la entidad estatal ni la compromete a adquirir los bienes, obras y servicios en él señalados.
E12: Valor total del PAA | F12: =SUM(M:M) -> 4.475671628e+11
E13: Límite de contratación menor cuantía | F13: Régimen Especial de Contratación
E14: Límite de contratación mínima cuantía | F14: Régimen Especial de Contratación
E15: Fecha de última actualización del PAA | F15: 2023-07-07
E16: NOTA | F16: Acorde con el Decreto 2973 de 2013 en relación con el régimen de las reservas técnicas de las entidades aseguradoras y se dictan otras disposiciones, los contratos para la atención del siniestro se pagan con los recursos destinados a la reserva técnica. Este tipo de contratos son de cuantía indeterminada y aunque es determinable, al momento de la planeación únicamente se refleja el valor asociado al control presupuestal.
E22: B. ADQUISICIONES PLANEADAS
A23: VICEPRESIDENCIA/SECTREATARÍA GENERAL | B23: ÁREA | C23: ¿YA SE CONTRATÓ? | D23: ORDEN | E23: Códigos UNSPSC | F23: Descripción | G23: Fecha estimada de inicio de proceso de selección | H23: MES | I23: Fecha fin contrato | J23: Duración estimada del contrato (Meses) | K23: Modalidad de selección | L23: Fuente de los recursos | M23: Valor total estimado | N23: Valor estimado en la vigencia actual | O23: ¿Se requieren vigencias futuras? | R23: Estado de solicitud de vigencias futuras | S23: Datos de contacto del responsable | T23: ¿Su necesidad contiene información financiera y secretos comerciales? Ejm: Tarifas comerciales, disminución de la siniestralidad, atención o servicio conexo al siniestro, know how del negocio, clasificación de empresas, estrategias comerciales. | U23: ¿Su necesidad y el proceso de contratación son catalogados como misionales? Ejm: Gestión comercial, Gestión de clientes, Atención al siniestro, Estrategias de disminución de la siniestralidad, Gestión integral del portafolio, Gestión de reservas y reaseguros. | V23: En caso de ser una necesidad tecnologica ¿Su necesidad contiene información sensible? Ejm: Administración de bases de datos de clientes, información comercial de la Compañía, información relevante al know how del negocio. | W23: ¿De publicarse esta información referente al proceso de contratación podrían vulnerarse los intereses de Positiva con relación a su competencia al revelar información misional? | X23: CLASIFICACIÓN DE LA INFORMACIÓN | Y23: DESCRIPCIÓN AJUSTADA
A24: NEGOCIOS | B24: Mercadeo y Comunicaciones Gcia. Talento Humano | C24: NO | D24: C35012023 C35142023 C35242023 C35332023 C35342023 C35352023 C35362023 C35382023 C35392023 C35402023 C35512023 C20022023 C20142023 C20232023 | E24: 82140000, 82101800, 82101701, 82101801, 82101802, 82101900, 82101901, 82101902, 82101903, 82101904, 82101905, 82110000, 82111704, 82111900, 82111801, 82111901, 82111904, 80141607, 80141611, 80141612, 80141613, 80141614, 80141616, 80141618, 80141623, 80141624, 80141625, 80141626, 80141700, 80141902, 80150000, 78102205, 14111608, 86101808, 82100000, 82101600, 80141500, 80141501, 80141509,80141600, 81111704, 80101500, 56130000, 95141706, 80161507 | F24: EL CONTRATISTA, se compromete con POSITIVA COMPAÑÍA DE SEGUROS S.A., a la prestación de servicios para la Planeación e Implementación de estrategias y tácticas de mercadeo y comunicaciones, las cuales se ejecutarán por medio de las diversas actividades y disciplinas del marketing, endomarketing y comunicaciones, orientadas a fortalecer la posición de Positiva Compañía de Seguros S.A. en el mercado y al interior de la compañía, adicionalmente, gestionará investigaciones de mercado y consultorías que se requieran para la compañía. | G24: 2023-06-01 | H24: =MONTH(G24) -> 6 | I24: 2023-12-31 | J24: =(I24-G24)/30 -> 7.1 | K24: Invitación pública | L24: Gasto Administrativo | M24: 5265000000 | N24: 5265000000 | O24: NO | P24: =IF(O24="NO",0,1) -> 0 | Q24: =IF(P24=0,0,3) -> 0 | R24: NA | S24: Gerencia de Abastecimiento Estratégico contratacion@positiva.gov.co PBX: (1)6502200 Ext: 10641 | T24: SI | U24: SI | V24: NA | W24: SI | X24: =IF(W24="SI","Pública clasificada","Pública") -> Pública clasificada | Y24: =CONCATENATE(D24,"-","Tipo de información"," ",X24,"-",F24) -> C35012023 C35142023 C35242023 C35332023 C35342023 C35352023 C35362023 C35382023 C35392023 C35402023 C35512023 C20022023 C20142023 C20232023-Tipo de información Pública clasificada-EL CONTRATISTA, se compromete con POSITIVA COMPAÑÍA DE SEGUROS S.A., a la prestación de servicios para la Planeación e Implementación de estrategias y tácticas de mercadeo y comunicaciones, las cuales se ejecutarán por medio de las diversas actividades y disciplinas del marketing, endomarketing y comunicaciones, orientadas a fortalecer la posición de Positiva Compañía de Seguros S.A. en el mercado y al interior de la compañía, adicionalmente, gestionará investigaciones de mercado y consultorías que se requieran para la compañía.
A25: NEGOCIOS | B25: Mercadeo y Comunicaciones | C25: NO | D25: C35022023 | E25: 80141625 | F25: Suministro de un programa de incentivos para satisfacer las necesidades de la gestión comercial y actividades de relacionamiento con la fuerza comercial referentes a la entrega de incentivos a la gestión comercial | G25: 2023-03-01 | H25: =MONTH(G25) -> 3 | I25: 2023-12-31 | J25: =(I25-G25)/30 -> 10.16666667 | K25: Invitación directa | L25: Gasto Administrativo | M25: 56061350 | N25: 56061350 | O25: NO | P25: =IF(O25="NO",0,1) -> 0 | Q25: =IF(P25=0,0,3) -> 0 | R25: NA | S25: Gerencia de Abastecimiento Estratégico contratacion@positiva.gov.co PBX: (1)6502200 Ext: 10641 | T25: SI | U25: SI | V25: SI | W25: SI | X25: Pública clasificada | Y25: C35022023-Tipo de información Pública clasificada-Suministro de un programa de incentivos para satisfacer las necesidades de la gestión comercial y actividades de relacionamiento con la fuerza comercial referentes a la entrega de incentivos a la gestión comercial
A26: NEGOCIOS | B26: Canales | C26: NO | D26: C35032023 C35592023 C81262023 | E26: 80141625 | F26: Apoyo logístico para Fortalecer el relacionamiento y mantenimiento comercial a través de un operador logístico que apoye las actividades de la construcción de las políticas del Riesgos Laborales y Seguridad en el trabajo en el Plan de Desarrollo 2023-2027, así como el apoyo logístico para el lanzamiento del Plan de Formación 2023, premiación del Plan de Formación 2022, Premiación del Cierre 2022 a las mejores producciones y actividades académicas y de formación en RL para la Rama Judicial. | G26: 2023-01-27 | H26: 1 | I26: 2023-03-27 | J26: 1.966666667 | K26: Invitación directa | L26: Gasto Administrativo | M26: 1054468210 | N26: 1054468210 | O26: NO | P26: 0 | Q26: 0 | R26: NA | S26: Gerencia de Abastecimiento Estratégico contratacion@positiva.gov.co PBX: (1)6502200 Ext: 10641 | T26: SI | U26: SI | V26: NA | W26: SI | X26: Pública clasificada | Y26: C35032023 C35592023 C81262023-Tipo de información Pública clasificada-Apoyo logístico para Fortalecer el relacionamiento y mantenimiento comercial a través de un operador logístico que apoye las actividades de la construcción de las políticas del Riesgos Laborales y Seguridad en el trabajo en el Plan de Desarrollo 2023-2027, así como el apoyo logístico para el lanzamiento del Plan de Formación 2023, premiación del Plan de Formación 2022, Premiación del Cierre 2022 a las mejores producciones y actividades académicas y de formación en RL para la Rama Judicial.
A27: NEGOCIOS | B27: Canales | C27: NO | D27: C35042023 | E27: 86132001 | F27: Capacitación y entrenamiento de la estructura comercial | G27: 2023-03-01 | H27: 3 | I27: 2023-12-31 | J27: 10.16666667 | K27: Invitación directa | L27: Gasto Administrativo | M27: 70000000 | N27: 70000000 | O27: NO | P27: 0 | Q27: 0 | R27: NA | S27: Gerencia de Abastecimiento Estratégico contratacion@positiva.gov.co PBX: (1)6502200 Ext: 10641 | T27: SI | U27: SI | V27: NA | W27: SI | X27: Pública clasificada | Y27: C35042023-Tipo de información Pública clasificada-Capacitación y entrenamiento de la estructura comercial
A28: NEGOCIOS | B28: Canales | C28: NO | D28: C35052023 | E28: 80141625 | F28: Suministro de un programa de incentivos para satisfacer las necesidades de la gestión comercial y actividades de relacionamiento con la fuerza comercial referentes a la entrega de incentivos a la gestión comercial | G28: 2023-03-01 | H28: 3 | I28: 2023-12-31 | J28: 10.16666667 | K28: Invitación directa | L28: Gasto Administrativo | M28: 115000000 | N28: 115000000 | O28: NO | P28: 0 | Q28: 0 | R28: NA | S28: Gerencia de Abastecimiento Estratégico contratacion@positiva.gov.co PBX: (1)6502200 Ext: 10641 | T28: SI | U28: SI | V28: SI | W28: SI | X28: Pública clasificada | Y28: C35052023-Tipo de información Pública clasificada-Suministro de un programa de incentivos para satisfacer las necesidades de la gestión comercial y actividades de relacionamiento con la fuerza comercial referentes a la entrega de incentivos a la gestión comercial
A29: NEGOCIOS | B29: Canales | C29: NO | D29: C35062023 | E29: 86101804 | F29: Prestación de Servicios, Capacitaciones virtuales y/o presenciales para la estructura Comercial e Intermediarios | G29: 2023-03-01 | H29: 3 | I29: 2023-12-31 | J29: 10.16666667 | K29: Invitación directa | L29: Gasto Administrativo | M29: 56251200 | N29: 56251200 | O29: NO | P29: 0 | Q29: 0 | R29: NA | S29: Gerencia de Abastecimiento Estratégico contratacion@positiva.gov.co PBX: (1)6502200 Ext: 10641 | T29: SI | U29: NO | V29: SI | W29: SI | X29: Pública clasificada | Y29: C35062023-Tipo de información Pública clasificada-Prestación de Servicios, Capacitaciones virtuales y/o presenciales para la estructura Comercial e Intermediarios
A30: NEGOCIOS | B30: Canales | C30: NO | D30: C56052023 C85532023 C35082023 | F30: Prestación de Servicios - Viajes comerciales - Tiquetes | G30: 2023-04-01 | H30: 4 | I30: 2023-12-31 | J30: 9.133333333 | K30: Invitación cerrada | L30: Gasto Administrativo | M30: 407000000 | N30: 407000000 | O30: NO | P30: 0 | Q30: 0 | R30: NA | S30: Gerencia de Abastecimiento Estratégico contratacion@positiva.gov.co PBX: (1)6502200 Ext: 10641 | T30: SI | U30: NO | V30: NO | W30: SI | X30: Pública clasificada | Y30: C56052023 C85532023 C35082023-Tipo de información Pública clasificada-Prestación de Servicios - Viajes comerciales - Tiquetes
A31: NEGOCIOS | B31: Canales | C31: SI | D31: C35092023 | E31: 80141600 | F31: Prestación de servicios Outsorcing para la gestión comercial, soporte de la misma y una mejor experiencia al cliente. | G31: 2023-01-01 | H31: 1 | I31: 2023-02-28 | J31: 1.933333333 | K31: Invitación directa | L31: Gasto Administrativo | M31: 1332600000 | N31: 1332600000 | O31: NO | P31: 0 | Q31: 0 | R31: NA | S31: Gerencia de Abastecimiento Estratégico contratacion@positiva.gov.co PBX: (1)6502200 Ext: 10641 | T31: SI | U31: SI | V31: NA | W31: SI | X31: Pública clasificada | Y31: C35092023-Tipo de información Pública clasificada-Prestación de servicios Outsorcing para la gestión comercial, soporte de la misma y una mejor experiencia al cliente.
A32: NEGOCIOS | B32: Canales | C32: NO | D32: C35102023 C35302023 C35672023 | E32: 80141600 | F32: Prestación de servicios Outsorcing para la gestión comercial, soporte de la misma y una mejor experiencia al cliente. | G32: 2023-06-15 | H32: 6 | I32: 2023-12-31 | J32: 6.633333333 | K32: Invitación cerrada | L32: Gasto Administrativo | M32: 5667572982 | N32: 5667572982 | O32: NO | P32: 0 | Q32: 0 | R32: NA | S32: Gerencia de Abastecimiento Estratégico contratacion@positiva.gov.co PBX: (1)6502200 Ext: 10641 | T32: SI | U32: SI | V32: NA | W32: SI | X32: Pública clasificada | Y32: C35102023 C35302023 C35672023-Tipo de información Pública clasificada-Prestación de servicios Outsorcing para la gestión comercial, soporte de la misma y una mejor experiencia al cliente.
A33: NEGOCIOS | B33: Canales | C33: NO | D33: C35132023 | E33: 80141500 | F33: Adquisición de estudio de la calidad del servicio de las ARL | G33: 2023-04-01 | H33: 4 | I33: 2023-06-30 | J33: 3 | K33: Invitación directa | L33: Gasto Administrativo | M33: 17850000 | N33: 17850000 | O33: NO | P33: 0 | Q33: 0 | R33: NA | S33: Gerencia de Abastecimiento Estratégico contratacion@positiva.gov.co PBX: (1)6502200 Ext: 10641 | T33: SI | U33: SI | V33: NA | W33: SI | X33: Pública clasificada | Y33: C35132023-Tipo de información Pública clasificada-Adquisición de estudio de la calidad del servicio de las ARL
A34: NEGOCIOS | B34: Canales | C34: NO | D34: C35152023 | E34: 80141625 | F34: Prestación de servicios para realizar actividades de fidelización y mantenimiento para intermediarios | G34: 2023-05-01 | H34: 5 | I34: 2023-12-31 | J34: 8.133333333 | K34: Invitación directa | L34: Gasto Administrativo | M34: 50000000 | N34: 50000000 | O34: NO | P34: 0 | Q34: 0 | R34: NA | S34: Gerencia de Abastecimiento Estratégico contratacion@positiva.gov.co PBX: (1)6502200 Ext: 10641 | T34: NO | U34: SI | V34: NA | W34: SI | X34: Pública clasificada | Y34: C35152023-Tipo de información Pública clasificada-Prestación de servicios para realizar actividades de fidelización y mantenimiento para intermediarios
A35: NEGOCIOS | B35: Canales | C35: NO | D35: C35162023 | E35: 80141607 | F35: Prestación de servicios Plan de Formación | G35: 2023-09-01 | H35: 9 | I35: 2023-12-31 | J35: 4.033333333 | K35: Invitación cerrada | L35: Gasto Administrativo | M35: 1325111155 | N35: 1325111155 | O35: NO | P35: 0 | Q35: 0 | R35: NA | S35: Gerencia de Abastecimiento Estratégico contratacion@positiva.gov.co PBX: (1)6502200 Ext: 10641 | T35: NO | U35: SI | V35: NA | W35: SI | X35: Pública clasificada | Y35: C35162023-Tipo de información Pública clasificada-Prestación de servicios Plan de Formación
A36: NEGOCIOS | B36: Canales | C36: NO | D36: C35172023 | E36: 80141607 | F36: Prestación de servicios para llevar a cabo el Plan de Formación Intermedio para nuestros Aliados Estratégicos, así como la generación de incentivos comerciales. | G36: 2023-03-01 | H36: 3 | I36: 2023-08-30 | J36: 6.066666667 | K36: Invitación cerrada | L36: Gasto Administrativo | M36: 630000000 | N36: 630000000 | O36: NO | P36: 0 | Q36: 0 | R36: NA | S36: Gerencia de Abastecimiento Estratégico contratacion@positiva.gov.co PBX: (1)6502200 Ext: 10641 | T36: NO | U36: SI | V36: NA | W36: SI | X36: Pública clasificada | Y36: C35172023-Tipo de información Pública clasificada-Prestación de servicios para llevar a cabo el Plan de Formación Intermedio para nuestros Aliados Estratégicos, así como la generación de incentivos comerciales.
A37: NEGOCIOS | B37: Canales | C37: SI | D37: C35202023 | E37: 81112002 | F37: Generar y Transmitir información del soporte electrónico de las cuentas de cobro de intermediarios y proveedores no obligados a expedir facturas. | G37: 2023-01-01 | H37: 1 | I37: 2023-06-30 | J37: 6 | K37: Invitación directa | L37: Gasto Administrativo | M37: 2500000 | N37: 2500000 | O37: SI | P37: 1 | Q37: 3 | R37: APROBADA | S37: Gerencia de Abastecimiento Estratégico contratacion@positiva.gov.co PBX: (1)6502200 Ext: 10641 | T37: SI | U37: NO | V37: SI | W37: NO | X37: Pública | Y37: C35202023-Tipo de información Pública-Generar y Transmitir información del soporte electrónico de las cuentas de cobro de intermediarios y proveedores no obligados a expedir facturas.
A38: NEGOCIOS | B38: Canales | C38: NO | D38: C35212023 | E38: 43232303 | F38: Prestación de servicios para la habilitación de suscripción Salesforce.com, Marketing Cloud, así como los Servicios de Soporte Tecnológico y capacitación funcional. | G38: 2023-10-01 | H38: 10 | I38: 2023-12-31 | J38: 3.033333333 | K38: Invitación directa | L38: Gasto Administrativo | M38: 40000000 | N38: 40000000 | O38: NO | P38: 0 | Q38: 0 | R38: NA | S38: Gerencia de Abastecimiento Estratégico contratacion@positiva.gov.co PBX: (1)6502200 Ext: 10641 | T38: SI | U38: SI | V38: SI | W38: SI | X38: Pública clasificada | Y38: C35212023-Tipo de información Pública clasificada-Prestación de servicios para la habilitación de suscripción Salesforce.com, Marketing Cloud, así como los Servicios de Soporte Tecnológico y capacitación funcional.
A39: NEGOCIOS | B39: Canales | C39: NO | D39: C35222023 | E39: 86132001 | F39: Participación en el congreso que se realizará entre el 20 y 21 octubre por parte de la Asociación Colombiana de Corredores de Seguros (Acoas). | G39: 2023-09-01 | H39: 9 | I39: 2023-11-30 | J39: 3 | K39: Invitación directa | L39: Gasto Administrativo | M39: 20231904 | N39: 20231904 | O39: NO | P39: 0 | Q39: 0 | R39: NA | S39: Gerencia de Abastecimiento Estratégico contratacion@positiva.gov.co PBX: (1)6502200 Ext: 10641 | T39: SI | U39: SI | V39: NA | W39: SI | X39: Pública clasificada | Y39: C35222023-Tipo de información Pública clasificada-Participación en el congreso que se realizará entre el 20 y 21 octubre por parte de la Asociación Colombiana de Corredores de Seguros (Acoas).
A40: NEGOCIOS | B40: Experiencia del cliente | C40: NO | D40: C35232023 | E40: 90121801 | F40: El contratista se obliga con Positiva, a la prestación del servicio de cobertura internacional integral, que se requieran para atender a los asegurados de Positiva Compañía de Seguros SA en los productos comercializados de Riesgos Laborales, Pólizas estudiantiles, vida grupo y vida individual, cuando en cumplimiento de las actividades propias de su profesión u oficio deban desplazarse fuera del país en comisión. | G40: 2023-03-01 | H40: 3 | I40: 2023-12-31 | J40: 10.16666667 | K40: Invitación directa | L40: Gasto Administrativo | M40: 110398229 | N40: 110398229 | O40: NO | P40: 0 | Q40: 0 | R40: NA | S40: Gerencia de Abastecimiento Estratégico contratacion@positiva.gov.co PBX: (1)6502200 Ext: 10641 | T40: SI | U40: NO | V40: SI | W40: NO | X40: Pública | Y40: C35232023-Tipo de información Pública-El contratista se obliga con Positiva, a la prestación del servicio de cobertura internacional integral, que se requieran para atender a los asegurados de Positiva Compañía de Seguros SA en los productos comercializados de Riesgos Laborales, Pólizas estudiantiles, vida grupo y vida individual, cuando en cumplimiento de las actividades propias de su profesión u oficio deban desplazarse fuera del país en comisión.
A41: NEGOCIOS | B41: Experiencia del cliente | C41: NO | D41: C35252023 | E41: 86101804 | F41: Prestación de Servicios / Desarrollar el Programa de Educación Financiera dirigido a los trabajadores de las empresas afiliadas a Riesgos Laborales, Tomadores de Pólizas de Vida y de otros ramos y/o Clientes potenciales, proveedores, intermediarios y Usuarios en general a través de webinars, talleres y/o conferencias presenciales y/o virtuales, generación de piezas y contenidos para el programa, utilizando el contenido y la metodología definida por POSITIVA. | G41: 2023-02-01 | H41: 2 | I41: 2023-12-15 | J41: 10.56666667 | K41: Invitación Directa | L41: Gasto Administrativo | M41: 100000000 | N41: 100000000 | O41: NO | P41: 0 | Q41: 0 | R41: NA | S41: Gerencia de Abastecimiento Estratégico contratacion@positiva.gov.co PBX: (1)6502200 Ext: 10641 | T41: NO | U41: SI | V41: NA | W41: NO | X41: Pública | Y41: C35252023-Tipo de información Pública-Prestación de Servicios / Desarrollar el Programa de Educación Financiera dirigido a los trabajadores de las empresas afiliadas a Riesgos Laborales, Tomadores de Pólizas de Vida y de otros ramos y/o Clientes potenciales, proveedores, intermediarios y Usuarios en general a través de webinars, talleres y/o conferencias presenciales y/o virtuales, generación de piezas y contenidos para el programa, utilizando el contenido y la metodología definida por POSITIVA.
A42: NEGOCIOS | B42: Experiencia del cliente | C42: NO | D42: C35262023 | E42: 81131504 | F42: Prestar los servicios profesionales con plena autonomía técnica y administrativa para medir la satisfacción y experiencia con el servicio brindado por Positiva a los clientes e intermediarios durante el 2023, además realizar la medición de percepción de marca de clientes e intermediaros de la Compañía, conforme a la Ley 1328 de 2009 de protección al consumidor financiero y al Manual de Sistema de Atención al Consumidor (SAC) | G42: 2023-08-01 | H42: 8 | I42: 2023-12-31 | J42: 5.066666667 | K42: Invitación Directa | L42: Gasto Administrativo | M42: 300000000 | N42: 300000000 | O42: NO | P42: 0 | Q42: 0 | R42: NA | S42: Gerencia de Abastecimiento Estratégico contratacion@positiva.gov.co PBX: (1)6502200 Ext: 10641 | T42: NO | U42: SI | V42: NA | W42: SI | X42: Pública clasificada | Y42: C35262023-Tipo de información Pública clasificada-Prestar los servicios profesionales con plena autonomía técnica y administrativa para medir la satisfacción y experiencia con el servicio brindado por Positiva a los clientes e intermediarios durante el 2023, además realizar la medición de percepción de marca de clientes e intermediaros de la Compañía, conforme a la Ley 1328 de 2009 de protección al consumidor financiero y al Manual de Sistema de Atención al Consumidor (SAC)
A43: NEGOCIOS | B43: Experiencia del cliente | C43: SI | D43: C35282023 | E43: 80141600 | F43: Prestación de servicios Outsorcing para la gestión comercial, soporte de la misma y una mejor experiencia al cliente. | G43: 2023-01-01 | H43: 1 | I43: 2023-02-28 | J43: 1.933333333 | K43: Invitación directa | L43: Gasto Administrativo | M43: 94000000 | N43: 94000000 | O43: NO | P43: 0 | Q43: 0 | R43: NA | S43: Gerencia de Abastecimiento Estratégico contratacion@positiva.gov.co PBX: (1)6502200 Ext: 10641 | T43: SI | U43: SI | V43: NA | W43: SI | X43: Pública clasificada | Y43: C35282023-Tipo de información Pública clasificada-Prestación de servicios Outsorcing para la gestión comercial, soporte de la misma y una mejor experiencia al cliente.
A44: NEGOCIOS | B44: Experiencia del cliente | C44: NO | D44: C35302023 | E44: 80141600 | F44: Prestación de servicios Outsorcing para la gestión comercial, soporte de la misma y una mejor experiencia al cliente. | G44: 2023-04-01 | H44: 4 | I44: 2023-12-31 | J44: 9.133333333 | K44: Invitación cerrada | L44: Gasto Administrativo | M44: 415315200 | N44: 415315200 | O44: NO | P44: 0 | Q44: 0 | R44: NA | S44: Gerencia de Abastecimiento Estratégico contratacion@positiva.gov.co PBX: (1)6502200 Ext: 10641 | T44: SI | U44: SI | V44: NA | W44: SI | X44: Pública clasificada | Y44: C35302023-Tipo de información Pública clasificada-Prestación de servicios Outsorcing para la gestión comercial, soporte de la misma y una mejor experiencia al cliente.
A45: NEGOCIOS | B45: Vida | C45: NO | D45: C35412023 | E45: 82101500 | F45: Renovación póliza Magisterio contratada por intermedio de LYM | G45: 2023-04-01 | H45: 4 | I45: 2023-04-30 | J45: 0.9666666667 | K45: Invitación directa | L45: Gasto Administrativo | M45: 27000000 | N45: 27000000 | O45: NO | P45: 0 | Q45: 0 | R45: NA | S45: Gerencia de Abastecimiento Estratégico contratacion@positiva.gov.co PBX: (1)6502200 Ext: 10641 | T45: SI | U45: SI | V45: NA | W45: SI | X45: Pública clasificada | Y45: C35412023-Tipo de información Pública clasificada-Renovación póliza Magisterio contratada por intermedio de LYM
A46: NEGOCIOS | B46: Vida | C46: NO | D46: C35422023 | E46: 82101500 | F46: Impresión papelería negocios renovados para fidelizar los clientes de Positiva | G46: 2023-06-01 | H46: 6 | I46: 2023-06-30 | J46: 0.9666666667 | K46: Invitación directa | L46: Gasto Administrativo | M46: 20000000 | N46: 20000000 | O46: NO | P46: 0 | Q46: 0 | R46: NA | S46: Gerencia de Abastecimiento Estratégico contratacion@positiva.gov.co PBX: (1)6502200 Ext: 10641 | T46: NO | U46: SI | V46: NA | W46: SI | X46: Pública clasificada | Y46: C35422023-Tipo de información Pública clasificada-Impresión papelería negocios renovados para fidelizar los clientes de Positiva
A47: NEGOCIOS | B47: Vida | C47: NO | D47: C35452023 | E47: 14111608 | F47: Incentivar la gestión comercial a partir del cumplimientos de metas | G47: 2023-06-01 | H47: 6 | I47: 2023-12-31 | J47: 7.1 | K47: Invitación directa | L47: Gasto Administrativo | M47: 131646160 | N47: 131646160 | O47: NO | P47: 0 | Q47: 0 | R47: NA | S47: Gerencia de Abastecimiento Estratégico contratacion@positiva.gov.co PBX: (1)6502200 Ext: 10641 | T47: NO | U47: SI | V47: NA | W47: SI | X47: Pública clasificada | Y47: C35452023-Tipo de información Pública clasificada-Incentivar la gestión comercial a partir del cumplimientos de metas
A48: NEGOCIOS | B48: Vida | C48: NO | D48: C35462023 | E48: 14111514- 55101509 | F48: Incentivar la gestión comercial y el mantenimiento de clientes para el cumplimiento de metas | G48: 2023-03-01 | H48: 3 | I48: 2023-12-31 | J48: 10.16666667 | K48: Invitación directa | L48: Gasto Administrativo | M48: 101590134 | N48: 101590134 | O48: NO | P48: 0 | Q48: 0 | R48: NA | S48: Gerencia de Abastecimiento Estratégico contratacion@positiva.gov.co PBX: (1)6502200 Ext: 10641 | T48: SI | U48: SI | V48: NA | W48: SI | X48: Pública clasificada | Y48: C35462023-Tipo de información Pública clasificada-Incentivar la gestión comercial y el mantenimiento de clientes para el cumplimiento de metas
A49: NEGOCIOS | B49: Vida | C49: NO | D49: C35482023 | E49: 82101800, 82101701, 82101801, 82101802, 82101900, 82101901, 82101902, 82101903, 82101904, 82101905, 82110000, 82111704, 82111900, 82111801, 82111901, 82111904, 80141607, 80141611, 80141612, 80141613, 80141614, 80141616, 80141618, 80141623, 80141624, 80141625, 80141626, 80141700, 80141902, 80150000, 78102205, 14111608, 86101808, 82100000, 82101600, 80141500, 80141501, 80141509,80141600 | F49: Incentivar la gestión comercial y el mantenimiento de clientes para el cumplimiento de metas | G49: 2023-03-01 | H49: 3 | I49: 2023-12-31 | J49: 10.16666667 | K49: Invitación directa | L49: Gasto Administrativo | M49: 22706677 | N49: 22706677 | O49: NO | P49: 0 | Q49: 0 | R49: NA | S49: Gerencia de Abastecimiento Estratégico contratacion@positiva.gov.co PBX: (1)6502200 Ext: 10641 | T49: SI | U49: SI | V49: NA | W49: SI | X49: Pública clasificada | Y49: C35482023-Tipo de información Pública clasificada-Incentivar la gestión comercial y el mantenimiento de clientes para el cumplimiento de metas
A50: NEGOCIOS | B50: Vida | C50: SI | D50: C35492023 | E50: 24141704, 821215 | F50: Material impreso compromiso comercial Banco Agrario Licitacion Pública No (No. SEG2021–01-DG ) | G50: 2023-01-01 | H50: 1 | I50: 2023-02-28 | J50: 1.933333333 | K50: Invitación directa | L50: Gasto Administrativo | M50: 36666667 | N50: 36666667 | O50: SI | P50: 1 | Q50: 3 | R50: APROBADA | S50: Gerencia de Abastecimiento Estratégico contratacion@positiva.gov.co PBX: (1)6502200 Ext: 10641 | T50: NO | U50: SI | V50: NA | W50: SI | X50: Pública clasificada | Y50: C35492023-Tipo de información Pública clasificada-Material impreso compromiso comercial Banco Agrario Licitacion Pública No (No. SEG2021–01-DG )
A51: NEGOCIOS | B51: Vida | C51: SI | D51: C35532023 | E51: 801615000 | F51: Prestación de servicios profesionales a las Gerencias de Seguros de Vida y Riesgos Laborales de la Vicepresidencia de Negocios de POSITIVA, para fortalecer la gestión de los diferentes procesos técnicos en Riesgos Laborales y Vida, administrativos y de comercialización, así como en procesos licitatorios apoyando la producción y el mantenimiento de clientes de Positiva Compañía de Seguros. | G51: 2022-11-08 | H51: 11 | I51: 2023-12-31 | J51: 13.93333333 | K51: Invitación directa | L51: Gasto Administrativo | M51: 195159466.7 | N51: 172192800 | O51: SI | P51: 1 | Q51: 3 | R51: APROBADA | S51: Gerencia de Abastecimiento Estratégico contratacion@positiva.gov.co PBX: (1)6502200 Ext: 10641 | T51: SI | U51: SI | V51: NA | W51: SI | X51: Pública clasificada | Y51: C35532023-Tipo de información Pública clasificada-Prestación de servicios profesionales a las Gerencias de Seguros de Vida y Riesgos Laborales de la Vicepresidencia de Negocios de POSITIVA, para fortalecer la gestión de los diferentes procesos técnicos en Riesgos Laborales y Vida, administrativos y de comercialización, así como en procesos licitatorios apoyando la producción y el mantenimiento de clientes de Positiva Compañía de Seguros.
A52: NEGOCIOS | B52: Canales | C52: NO | D52: C35542023 | E52: 43232303 | F52: Contratar el licenciamiento, soporte, consultoria y desarollos para el uso de un CRM que le permita a Positiva realizar la gestion comercial y administrar el relacionamiento con el cliente en los procesos de ventas. | G52: 2023-04-01 | H52: 4 | I52: 2023-12-31 | J52: 9.133333333 | K52: Invitación cerrada | L52: Gasto Administrativo | M52: 697500000 | N52: 697500000 | O52: NO | P52: 0 | Q52: 0 | R52: NA | S52: Gerencia de Abastecimiento Estratégico contratacion@positiva.gov.co PBX: (1)6502200 Ext: 10641 | T52: SI | U52: SI | V52: SI | W52: SI | X52: Pública clasificada | Y52: C35542023-Tipo de información Pública clasificada-Contratar el licenciamiento, soporte, consultoria y desarollos para el uso de un CRM que le permita a Positiva realizar la gestion comercial y administrar el relacionamiento con el cliente en los procesos de ventas.
A53: NEGOCIOS | B53: Canales | C53: NO | D53: C35552023 | E53: 81112002 | F53: Generar y Transmitir información del soporte electrónico de las cuentas de cobro de intermediarios y proveedores no obligados a expedir facturas. | G53: 2023-07-01 | H53: 7 | I53: 2023-12-31 | J53: 6.1 | K53: Invitación directa | L53: Gasto Administrativo | M53: 2500000 | N53: 2500000 | O53: NO | P53: 0 | Q53: 0 | R53: NA | S53: Gerencia de Abastecimiento Estratégico contratacion@positiva.gov.co PBX: (1)6502200 Ext: 10641 | T53: SI | U53: NO | V53: SI | W53: NO | X53: Pública | Y53: C35552023-Tipo de información Pública-Generar y Transmitir información del soporte electrónico de las cuentas de cobro de intermediarios y proveedores no obligados a expedir facturas.
A54: NEGOCIOS | B54: Experiencia del cliente | C54: NO | D54: C35562023 | E54: 80111616 | F54: Prestación de Servicios / Contar con el Defensor del Consumidor Financiero | G54: 2023-05-01 | H54: 5 | I54: 2023-12-31 | J54: 8.133333333 | K54: Invitación Directa | L54: Gasto Administrativo | M54: 45000000 | N54: 45000000 | O54: NO | P54: 0 | Q54: 0 | R54: NA | S54: Gerencia de Abastecimiento Estratégico contratacion@positiva.gov.co PBX: (1)6502200 Ext: 10641 | T54: NO | U54: SI | V54: NA | W54: NO | X54: Pública | Y54: C35562023-Tipo de información Pública-Prestación de Servicios / Contar con el Defensor del Consumidor Financiero
A55: NEGOCIOS | B55: Vida | C55: NO | D55: C35572023 | E55: 83121700-83121703-82101903 | F55: Manejo de redes sociales de la Universidad Nacional que incluyen campañas para controlar la accidentalidad y prevención, vida saludable, valores y actividades | G55: 2023-03-01 | H55: 3 | I55: 2023-12-31 | J55: 10.16666667 | K55: Invitación directa | L55: Gasto Administrativo | M55: 71500000 | N55: 71500000 | O55: NO | P55: 0 | Q55: 0 | R55: NA | S55: Gerencia de Abastecimiento Estratégico contratacion@positiva.gov.co PBX: (1)6502200 Ext: 10641 | T55: SI | U55: SI | V55: NA | W55: SI | X55: Pública clasificada | Y55: C35572023-Tipo de información Pública clasificada-Manejo de redes sociales de la Universidad Nacional que incluyen campañas para controlar la accidentalidad y prevención, vida saludable, valores y actividades
A56: NEGOCIOS | B56: Vida | C56: NO | D56: C35582023 | E56: 24141704, 821215 | F56: Material impreso compromiso comercial Banco Agrario Licitacion Pública No (No. SEG2021–01-DG ) | G56: 2023-03-01 | H56: 3 | I56: 2023-04-01 | J56: 1.033333333 | K56: Invitación directa | L56: Gasto Administrativo | M56: 193333333 | N56: 193333333 | O56: NO | P56: 0 | Q56: 0 | R56: NA | S56: Gerencia de Abastecimiento Estratégico contratacion@positiva.gov.co PBX: (1)6502200 Ext: 10641 | T56: NO | U56: SI | V56: NA | W56: SI | X56: Pública clasificada | Y56: C35582023-Tipo de información Pública clasificada-Material impreso compromiso comercial Banco Agrario Licitacion Pública No (No. SEG2021–01-DG )
A57: NEGOCIOS | B57: Canales | C57: NO | D57: C35592023 | E57: 80141625 | F57: Apoyo logístico para Fortalecer el relacionamiento y mantenimiento comercial a través de un operador logístico que apoye las actividades de la construcción de las políticas del Riesgos Laborales y Seguridad en el trabajo en el Plan de Desarrollo 2023-2027, así como el apoyo logístico para el lanzamiento del Plan de Formación 2023, premiación del Plan de Formación 2022, Premiación del Cierre 2022 a las mejores producciones y actividades académicas y de formación en RL para la Rama Judicial. | G57: 2023-01-27 | H57: 1 | I57: 2023-03-27 | J57: 1.966666667 | K57: Invitación directa | L57: Gasto Administrativo | M57: 506468210 | N57: 506468210 | O57: NO | P57: 0 | Q57: 0 | R57: NA | S57: Gerencia de Abastecimiento Estratégico contratacion@positiva.gov.co PBX: (1)6502200 Ext: 10641 | T57: SI | U57: SI | V57: NA | W57: SI | X57: Pública clasificada | Y57: C35592023-Tipo de información Pública clasificada-Apoyo logístico para Fortalecer el relacionamiento y mantenimiento comercial a través de un operador logístico que apoye las actividades de la construcción de las políticas del Riesgos Laborales y Seguridad en el trabajo en el Plan de Desarrollo 2023-2027, así como el apoyo logístico para el lanzamiento del Plan de Formación 2023, premiación del Plan de Formación 2022, Premiación del Cierre 2022 a las mejores producciones y actividades académicas y de formación en RL para la Rama Judicial.
A58: TÉCNICA | B58: Indemnizaciones | C58: NO | D58: C65042023 | E58: 43231500 | F58: PRESTACIÓN DE SERVICIOS: Prestación Servicio de Administración, soporte y Mantenimiento a Base de datos DBA y administración del servidor de la aplicaciones Sistema de Nómina de Pensionados SNP – SISTEMA NOMINA DE PENSIONADOS DE FOPEP | G58: 2023-01-01 | H58: 1 | I58: 2024-12-31 | J58: 24.33333333 | K58: Invitación directa | L58: Gasto Administrativo | M58: 575703348 | N58: 575703348 | O58: NO | P58: 0 | Q58: 0 | R58: NA | S58: Gerencia de Abastecimiento Estratégico contratacion@positiva.gov.co PBX: (1)6502200 Ext: 10641 | T58: SI | U58: SI | V58: NA | W58: SI | X58: Pública clasificada | Y58: C65042023-Tipo de información Pública clasificada-PRESTACIÓN DE SERVICIOS: Prestación Servicio de Administración, soporte y Mantenimiento a Base de datos DBA y administración del servidor de la aplicaciones Sistema de Nómina de Pensionados SNP – SISTEMA NOMINA DE PENSIONADOS DE FOPEP
A59: TÉCNICA | B59: Médica | C59: NO | D59: C65052023 | E59: 43231500 | F59: PRESTACION DE SERVICIOS: Prestar servicios profesionales, brindando asesoría, apoyo y acompañamiento en los trámites precontractuales, contractuales y postcontractuales de los procesos a realizar por la Compañía al grupo de servicios definidos por la Vicepresidencia Técnica y la Gerencia Medica referentes a la red de prestadores de servicios de salud en el subproceso de Planeación del Modelo de atención integral del siniestro de Positiva Compañía de Seguros. | G59: 2023-01-01 | H59: 1 | I59: 2023-06-30 | J59: 6 | K59: Invitación directa | L59: Gasto Administrativo | M59: 48000000 | N59: 48000000 | O59: NO | P59: 0 | Q59: 0 | R59: NA | S59: Gerencia de Abastecimiento Estratégico contratacion@positiva.gov.co PBX: (1)6502200 Ext: 10641 | T59: SI | U59: SI | V59: NA | W59: SI | X59: Pública clasificada | Y59: C65052023-Tipo de información Pública clasificada-PRESTACION DE SERVICIOS: Prestar servicios profesionales, brindando asesoría, apoyo y acompañamiento en los trámites precontractuales, contractuales y postcontractuales de los procesos a realizar por la Compañía al grupo de servicios definidos por la Vicepresidencia Técnica y la Gerencia Medica referentes a la red de prestadores de servicios de salud en el subproceso de Planeación del Modelo de atención integral del siniestro de Positiva Compañía de Seguros.
A60: TÉCNICA | B60: Médica | C60: NO | D60: C65062023 | E60: 43231500 | F60: PRESTACION DE SERVICIOS: Prestar servicios profesionales y acompañamiento en los tramites precontractuales, contractuales y postcontractuales de los procesos definidos por la Vicepresidencia Técnica, la Gerencia Médica y la Gerencia de indemnizaciones para la atención integral del siniestro de Positiva Compañía de Seguros. | G60: 2023-01-01 | H60: 1 | I60: 2023-12-31 | J60: 12.13333333 | K60: Invitación directa | L60: Gasto Administrativo | M60: 104316000 | N60: 104316000 | O60: NO | P60: 0 | Q60: 0 | R60: NA | S60: Gerencia de Abastecimiento Estratégico contratacion@positiva.gov.co PBX: (1)6502200 Ext: 10641 | T60: SI | U60: SI | V60: NA | W60: SI | X60: Pública clasificada | Y60: C65062023-Tipo de información Pública clasificada-PRESTACION DE SERVICIOS: Prestar servicios profesionales y acompañamiento en los tramites precontractuales, contractuales y postcontractuales de los procesos definidos por la Vicepresidencia Técnica, la Gerencia Médica y la Gerencia de indemnizaciones para la atención integral del siniestro de Positiva Compañía de Seguros.
A61: TÉCNICA | B61: Médica | C61: NO | D61: C65072023 | E61: 43231500 | F61: PRESTACION DE SERVICIOS: Prestar servicios profesionales, brindando asesoría, apoyo y acompañamiento en los tramites precontractuales, contractuales y postcontractuales de los procesos a realizar por la Compañía al grupo de servicios definidos por la Vicepresidencia Técnica y la Gerencia Medica referentes a la red de prestadores de servicios de salud en el subproceso de Planeación del Modelo de atención integral del siniestro de Positiva Compañía de Seguros. | G61: 2023-01-01 | H61: 1 | I61: 2023-12-31 | J61: 12.13333333 | K61: Invitación directa | L61: Gasto Administrativo | M61: 64800000 | N61: 64800000 | O61: NO | P61: 0 | Q61: 0 | R61: NA | S61: Gerencia de Abastecimiento Estratégico contratacion@positiva.gov.co PBX: (1)6502200 Ext: 10641 | T61: SI | U61: SI | V61: NA | W61: SI | X61: Pública clasificada | Y61: C65072023-Tipo de información Pública clasificada-PRESTACION DE SERVICIOS: Prestar servicios profesionales, brindando asesoría, apoyo y acompañamiento en los tramites precontractuales, contractuales y postcontractuales de los procesos a realizar por la Compañía al grupo de servicios definidos por la Vicepresidencia Técnica y la Gerencia Medica referentes a la red de prestadores de servicios de salud en el subproceso de Planeación del Modelo de atención integral del siniestro de Positiva Compañía de Seguros.
A62: TÉCNICA | B62: Médica | C62: NO | D62: C65082023 | E62: 43231500 | F62: PRESTACION DE SERVICIOS: Prestar servicios profesionales, brindando asesoría, apoyo y acompañamiento en los tramites precontractuales, contractuales y postcontractuales de los procesos a realizar por la Compañía al grupo de servicios definidos por la Vicepresidencia Técnica y la Gerencia Medica referentes a la red de prestadores de servicios de salud en el subproceso de Planeación del Modelo de atención integral del siniestro de Positiva Compañía de Seguros. | G62: 2023-01-01 | H62: 1 | I62: 2023-12-31 | J62: 12.13333333 | K62: Invitación directa | L62: Gasto Administrativo | M62: 50400000 | N62: 50400000 | O62: NO | P62: 0 | Q62: 0 | R62: NA | S62: Gerencia de Abastecimiento Estratégico contratacion@positiva.gov.co PBX: (1)6502200 Ext: 10641 | T62: SI | U62: SI | V62: NA | W62: SI | X62: Pública clasificada | Y62: C65082023-Tipo de información Pública clasificada-PRESTACION DE SERVICIOS: Prestar servicios profesionales, brindando asesoría, apoyo y acompañamiento en los tramites precontractuales, contractuales y postcontractuales de los procesos a realizar por la Compañía al grupo de servicios definidos por la Vicepresidencia Técnica y la Gerencia Medica referentes a la red de prestadores de servicios de salud en el subproceso de Planeación del Modelo de atención integral del siniestro de Positiva Compañía de Seguros.
A63: TÉCNICA | B63: Médica | C63: NO | D63: C65092023 | E63: 43231500 | F63: PRESTACION DE SERVICIOS: Prestar servicios Técnicos, realizando el acompañamiento y apoyo en las actividades administrativas relacionadas con los trámites precontractuales, contractuales y postcontractuales de los procesos referentes a la red de prestadores de servicios de salud en el sub proceso de planeación del modelo de atención integral del siniestro de Positiva Compañía de Seguros | G63: 2023-01-01 | H63: 1 | I63: 2023-12-31 | J63: 12.13333333 | K63: Invitación directa | L63: Gasto Administrativo | M63: 43200000 | N63: 43200000 | O63: NO | P63: 0 | Q63: 0 | R63: NA | S63: Gerencia de Abastecimiento Estratégico contratacion@positiva.gov.co PBX: (1)6502200 Ext: 10641 | T63: SI | U63: SI | V63: NA | W63: SI | X63: Pública clasificada | Y63: C65092023-Tipo de información Pública clasificada-PRESTACION DE SERVICIOS: Prestar servicios Técnicos, realizando el acompañamiento y apoyo en las actividades administrativas relacionadas con los trámites precontractuales, contractuales y postcontractuales de los procesos referentes a la red de prestadores de servicios de salud en el sub proceso de planeación del modelo de atención integral del siniestro de Positiva Compañía de Seguros
A64: TÉCNICA | B64: Actuaria | C64: NO | D64: C65102023 C65022024 C65012025 | E64: 80101504 | F64: PRESTACIÓN DE SERVICIOS: Prestación de servicios profesionales especializados con una persona jurídica para dar cumplimiento con lo ordenado en la Circular Externa 022 de 2015 de la Superintendencia Financiera de Colombia relacionado con el rol del actuario responsable respecto a la certificación de suficiencia de las reservas técnicas de Positiva Compañía de Seguros S.A., frente a los requisitos exigidos en la Circular Externa 045 de 2016 y demás normas que la modifiquen, así como la atención de las instrucciones y requerimientos que sean impartidos por la Superintendencia Financiera de Colombia. | G64: 2023-02-01 | H64: 2 | I64: 2025-01-31 | J64: 24.33333333 | K64: Invitación directa | L64: Gasto Administrativo | M64: 675465519 | N64: 675465519 | O64: NO | P64: 0 | Q64: 0 | R64: NA | S64: Gerencia de Abastecimiento Estratégico contratacion@positiva.gov.co PBX: (1)6502200 Ext: 10641 | T64: SI | U64: SI | V64: NA | W64: SI | X64: Pública clasificada | Y64: C65102023 C65022024 C65012025-Tipo de información Pública clasificada-PRESTACIÓN DE SERVICIOS: Prestación de servicios profesionales especializados con una persona jurídica para dar cumplimiento con lo ordenado en la Circular Externa 022 de 2015 de la Superintendencia Financiera de Colombia relacionado con el rol del actuario responsable respecto a la certificación de suficiencia de las reservas técnicas de Positiva Compañía de Seguros S.A., frente a los requisitos exigidos en la Circular Externa 045 de 2016 y demás normas que la modifiquen, así como la atención de las instrucciones y requerimientos que sean impartidos por la Superintendencia Financiera de Colombia.
A65: TÉCNICA | B65: Actuaria | C65: NO | D65: C65112023 | E65: 82101603 | F65: OTRO: Realizar la suscripción por un año con la calificadora de riesgos AM BEST para consultar el reporte Best's Special Reports, para contar con las publicaciones más recientes de esta entidad y poder actualizar las probabilidades de incumplimiento según lo establecido en el numeral 2.1.2.2.4 del Capítulo II del Título IV de la Parte II de la Circular Básica Jurídica (CBJ) relacionado con la determinación del componente de riesgo de activo correspondiente a las cuentas por cobrar con reaseguradores y el activo de las contingencias a cargo de reaseguradores. | G65: 2023-10-03 | H65: 10 | I65: 2024-10-03 | J65: 12.2 | K65: Invitación directa | L65: Gasto Administrativo | M65: 2520611 | N65: 2520611 | O65: NO | P65: 0 | Q65: 0 | R65: NA | S65: Gerencia de Abastecimiento Estratégico contratacion@positiva.gov.co PBX: (1)6502200 Ext: 10641 | T65: SI | U65: SI | V65: NA | W65: SI | X65: Pública clasificada | Y65: C65112023-Tipo de información Pública clasificada-OTRO: Realizar la suscripción por un año con la calificadora de riesgos AM BEST para consultar el reporte Best's Special Reports, para contar con las publicaciones más recientes de esta entidad y poder actualizar las probabilidades de incumplimiento según lo establecido en el numeral 2.1.2.2.4 del Capítulo II del Título IV de la Parte II de la Circular Básica Jurídica (CBJ) relacionado con la determinación del componente de riesgo de activo correspondiente a las cuentas por cobrar con reaseguradores y el activo de las contingencias a cargo de reaseguradores.
A66: TÉCNICA | B66: Indemnizaciones | C66: NO | D66: C65122023 | E66: 92121604 | F66: PRESTACIÓN DE SERVICIOS: EL CONTRATISTA, se compromete con POSITIVA, a la realización de estudios de confiabilidad para conocimiento del cliente de todas entidades, Cooperativas, financieras y demás que deseen aplicar libranzas o descuentos a la nómina de pensionados, donde se garantice la validación de la información corporativa, se verifique la documentación aportada, se compruebe el entorno de cada operador; generando informe con concepto final; para que POSITIVA pueda definir la asignación o renovación de código de descuento al operador solicitante. | G66: 2023-09-01 | H66: 9 | I66: 2023-12-31 | J66: 4.033333333 | K66: Invitación directa | L66: Gasto Administrativo | M66: 60000000 | N66: 60000000 | O66: NO | P66: 0 | Q66: 0 | R66: NA | S66: Gerencia de Abastecimiento Estratégico contratacion@positiva.gov.co PBX: (1)6502200 Ext: 10641 | T66: SI | U66: SI | V66: NA | W66: SI | X66: Pública clasificada | Y66: C65122023-Tipo de información Pública clasificada-PRESTACIÓN DE SERVICIOS: EL CONTRATISTA, se compromete con POSITIVA, a la realización de estudios de confiabilidad para conocimiento del cliente de todas entidades, Cooperativas, financieras y demás que deseen aplicar libranzas o descuentos a la nómina de pensionados, donde se garantice la validación de la información corporativa, se verifique la documentación aportada, se compruebe el entorno de cada operador; generando informe con concepto final; para que POSITIVA pueda definir la asignación o renovación de código de descuento al operador solicitante.
A67: TÉCNICA | B67: Indemnizaciones | C67: NO | D67: C65132023 | E67: 92111504 | F67: PRESTACIÓN DE SERVICIOS: EL CONTRATISTA, se compromete con POSITIVA a realizar investigación de Convivencia y de Dependencia económica por medio de visitas domiciliarias, entrevistas, análisis de documentos, entre otros, los cuales se detallan en un informe. | G67: 2023-04-01 | H67: 4 | I67: 2024-03-31 | J67: 12.16666667 | K67: Invitación directa | L67: CargoAReserva | M67: Indeterminado | N67: Indeterminado | O67: NO | P67: 0 | Q67: 0 | R67: NA | S67: Gerencia de Abastecimiento Estratégico contratacion@positiva.gov.co PBX: (1)6502200 Ext: 10641 | T67: SI | U67: SI | V67: NA | W67: SI | X67: Pública clasificada | Y67: C65132023-Tipo de información Pública clasificada-PRESTACIÓN DE SERVICIOS: EL CONTRATISTA, se compromete con POSITIVA a realizar investigación de Convivencia y de Dependencia económica por medio de visitas domiciliarias, entrevistas, análisis de documentos, entre otros, los cuales se detallan en un informe.
A68: TÉCNICA | B68: Indemnizaciones | C68: NO | D68: C65142023 | E68: 43231500 | F68: PRESTACIÓN DE SERVICIOS: EL CONTRATISTA, se compromete con POSITIVA, prestación de servicio administración, soporte y mantenimiento, de portal administrador de libranzas Sygnus, el cual incluye, Servicio de Soporte Funcional y Tecnológico de software, Servicio de mantenimiento de software y todos los desarrollos necesarios para la adaptación del portal a los Sistemas de Información utilizados por POSITIVA. El portal administrador de libranzas Sygnus deberá administrar todas las operaciones de libranzas de la nómina de pensionados de POSITIVA. | G68: 2023-07-08 | H68: 7 | I68: 2024-07-07 | J68: 12.16666667 | K68: Invitación directa | L68: GastosAdministrativos | M68: Indeterminado | N68: Indeterminado | O68: NO | P68: 0 | Q68: 0 | R68: NA | S68: Gerencia de Abastecimiento Estratégico contratacion@positiva.gov.co PBX: (1)6502200 Ext: 10641 | T68: SI | U68: SI | V68: NA | W68: SI | X68: Pública clasificada | Y68: C65142023-Tipo de información Pública clasificada-PRESTACIÓN DE SERVICIOS: EL CONTRATISTA, se compromete con POSITIVA, prestación de servicio administración, soporte y mantenimiento, de portal administrador de libranzas Sygnus, el cual incluye, Servicio de Soporte Funcional y Tecnológico de software, Servicio de mantenimiento de software y todos los desarrollos necesarios para la adaptación del portal a los Sistemas de Información utilizados por POSITIVA. El portal administrador de libranzas Sygnus deberá administrar todas las operaciones de libranzas de la nómina de pensionados de POSITIVA.
A69: TÉCNICA | B69: Médica | C69: NO | D69: C65152023 | E69: 85100000 | F69: PRESTACION DE SERVICIOS DE SALUD: EL CONTRATISTA se obliga con POSITIVA a la prestación de los servicios de salud para los asegurados y o afiliados a POSITIVA, que accedan a los servicios habilitados del CONTRATISTA en calidad de asegurados, a los ramos: Administración de Riesgos Laborales ARL - por causa exclusiva de un accidente de trabajo, una enfermedad profesional, Accidentes Personales AP Educativo Generación Positiva, AP Colectivos, AP Corto Plazo, AP Individual, Planes de Salud complicaciones quirúrgicas, de cirugía estética y bariátrica y demás Ramos de Seguros autorizados a POSITIVA, encontrándose excluidos del presente contrato los servicios y todas aquellas actividades, procedimientos e intervenciones que no tengan por objeto contribuir al diagnóstico, tratamiento o rehabilitación de la patología derivada del siniestro o los servicios considerados como experimentales, cosméticos y suntuarios | G69: 2023-02-01 | H69: 2 | I69: 2028-02-01 | J69: 60.86666667 | K69: Invitación directa | L69: CargoAReserva | M69: Indeterminado | N69: Indeterminado | O69: NO | P69: 0 | Q69: 0 | R69: NA | S69: Gerencia de Abastecimiento Estratégico contratacion@positiva.gov.co PBX: (1)6502200 Ext: 10641 | T69: SI | U69: SI | V69: NA | W69: SI | X69: Pública clasificada | Y69: C65152023-Tipo de información Pública clasificada-PRESTACION DE SERVICIOS DE SALUD: EL CONTRATISTA se obliga con POSITIVA a la prestación de los servicios de salud para los asegurados y o afiliados a POSITIVA, que accedan a los servicios habilitados del CONTRATISTA en calidad de asegurados, a los ramos: Administración de Riesgos Laborales ARL - por causa exclusiva de un accidente de trabajo, una enfermedad profesional, Accidentes Personales AP Educativo Generación Positiva, AP Colectivos, AP Corto Plazo, AP Individual, Planes de Salud complicaciones quirúrgicas, de cirugía estética y bariátrica y demás Ramos de Seguros autorizados a POSITIVA, encontrándose excluidos del presente contrato los servicios y todas aquellas actividades, procedimientos e intervenciones que no tengan por objeto contribuir al diagnóstico, tratamiento o rehabilitación de la patología derivada del siniestro o los servicios considerados como experimentales, cosméticos y suntuarios
A70: TÉCNICA | B70: Médica | C70: NO | D70: C65162023 | E70: 85100000 | F70: PRESTACION DE SERVICIOS DE SALUD: EL CONTRATISTA se obliga con POSITIVA a la prestación de los servicios de salud para los asegurados y o afiliados a POSITIVA, que accedan a los servicios habilitados del CONTRATISTA en calidad de asegurados, a los ramos: Administración de Riesgos Laborales ARL - por causa exclusiva de un accidente de trabajo, una enfermedad profesional, Accidentes Personales AP Educativo Generación Positiva, AP Colectivos, AP Corto Plazo, AP Individual, Planes de Salud complicaciones quirúrgicas, de cirugía estética y bariátrica y demás Ramos de Seguros autorizados a POSITIVA, encontrándose excluidos del presente contrato los servicios y todas aquellas actividades, procedimientos e intervenciones que no tengan por objeto contribuir al diagnóstico, tratamiento o rehabilitación de la patología derivada del siniestro o los servicios considerados como experimentales, cosméticos y suntuarios | G70: 2023-02-06 | H70: 2 | I70: 6/02/2025 | J70: 24.36666667 | K70: Invitación directa | L70: CargoAReserva | M70: Indeterminado | N70: Indeterminado | O70: NO | P70: 0 | Q70: 0 | R70: NA | S70: Gerencia de Abastecimiento Estratégico contratacion@positiva.gov.co PBX: (1)6502200 Ext: 10641 | T70: SI | U70: SI | V70: NA | W70: SI | X70: Pública clasificada | Y70: C65162023-Tipo de información Pública clasificada-PRESTACION DE SERVICIOS DE SALUD: EL CONTRATISTA se obliga con POSITIVA a la prestación de los servicios de salud para los asegurados y o afiliados a POSITIVA, que accedan a los servicios habilitados del CONTRATISTA en calidad de asegurados, a los ramos: Administración de Riesgos Laborales ARL - por causa exclusiva de un accidente de trabajo, una enfermedad profesional, Accidentes Personales AP Educativo Generación Positiva, AP Colectivos, AP Corto Plazo, AP Individual, Planes de Salud complicaciones quirúrgicas, de cirugía estética y bariátrica y demás Ramos de Seguros autorizados a POSITIVA, encontrándose excluidos del presente contrato los servicios y todas aquellas actividades, procedimientos e intervenciones que no tengan por objeto contribuir al diagnóstico, tratamiento o rehabilitación de la patología derivada del siniestro o los servicios considerados como experimentales, cosméticos y suntuarios
A71: TÉCNICA | B71: Médica | C71: NO | D71: C65172023 | E71: 85100000 | F71: PRESTACION DE SERVICIOS DE SALUD: EL CONTRATISTA se obliga con POSITIVA a la prestación de los servicios de salud para los asegurados y o afiliados a POSITIVA, que accedan a los servicios habilitados del CONTRATISTA en calidad de asegurados, a los ramos: Administración de Riesgos Laborales ARL - por causa exclusiva de un accidente de trabajo, una enfermedad profesional, Accidentes Personales AP Educativo Generación Positiva, AP Colectivos, AP Corto Plazo, AP Individual, Planes de Salud complicaciones quirúrgicas, de cirugía estética y bariátrica y demás Ramos de Seguros autorizados a POSITIVA, encontrándose excluidos del presente contrato los servicios y todas aquellas actividades, procedimientos e intervenciones que no tengan por objeto contribuir al diagnóstico, tratamiento o rehabilitación de la patología derivada del siniestro o los servicios considerados como experimentales, cosméticos y suntuarios | G71: 2023-02-20 | H71: 2 | I71: 20/02/2025 | J71: 24.36666667 | K71: Invitación directa | L71: CargoAReserva | M71: Indeterminado | N71: Indeterminado | O71: NO | P71: 0 | Q71: 0 | R71: NA | S71: Gerencia de Abastecimiento Estratégico contratacion@positiva.gov.co PBX: (1)6502200 Ext: 10641 | T71: SI | U71: SI | V71: NA | W71: SI | X71: Pública clasificada | Y71: C65172023-Tipo de información Pública clasificada-PRESTACION DE SERVICIOS DE SALUD: EL CONTRATISTA se obliga con POSITIVA a la prestación de los servicios de salud para los asegurados y o afiliados a POSITIVA, que accedan a los servicios habilitados del CONTRATISTA en calidad de asegurados, a los ramos: Administración de Riesgos Laborales ARL - por causa exclusiva de un accidente de trabajo, una enfermedad profesional, Accidentes Personales AP Educativo Generación Positiva, AP Colectivos, AP Corto Plazo, AP Individual, Planes de Salud complicaciones quirúrgicas, de cirugía estética y bariátrica y demás Ramos de Seguros autorizados a POSITIVA, encontrándose excluidos del presente contrato los servicios y todas aquellas actividades, procedimientos e intervenciones que no tengan por objeto contribuir al diagnóstico, tratamiento o rehabilitación de la patología derivada del siniestro o los servicios considerados como experimentales, cosméticos y suntuarios
A72: TÉCNICA | B72: Médica | C72: NO | D72: C65182023 | E72: 85100000 | F72: PRESTACIÓN DEL SERVICIO: Prestar los servicios de COBERTURA INTERNACIONAL INTEGRAL, QUE SE REQUIERAN PARA ATENDER A LOS ASEGURADOS DE LA ADMINISTRADORA DE RIESGOS LABORALES, PÓLIZAS ESTUDIANTILES, GRUPO VIDA Y VIDA INDIVIDUAL DE POSITIVA COMPAÑÍA DE SEGUROS S.A., CUANDO ENCUMPLIMIENTO DE LAS ACTIVIDADES PROPIAS DE SU PROFESIÓN U OFICIO DEBAN DESPLAZARSE FUERA DEL PAÍS EN COMISIÓN. | G72: 2023-02-26 | H72: 2 | I72: 26/02/2025 | J72: 24.36666667 | K72: Invitación directa | L72: CargoAReserva | M72: Indeterminado | N72: Indeterminado | O72: NO | P72: 0 | Q72: 0 | R72: NA | S72: Gerencia de Abastecimiento Estratégico contratacion@positiva.gov.co PBX: (1)6502200 Ext: 10641 | T72: SI | U72: SI | V72: NA | W72: SI | X72: Pública clasificada | Y72: C65182023-Tipo de información Pública clasificada-PRESTACIÓN DEL SERVICIO: Prestar los servicios de COBERTURA INTERNACIONAL INTEGRAL, QUE SE REQUIERAN PARA ATENDER A LOS ASEGURADOS DE LA ADMINISTRADORA DE RIESGOS LABORALES, PÓLIZAS ESTUDIANTILES, GRUPO VIDA Y VIDA INDIVIDUAL DE POSITIVA COMPAÑÍA DE SEGUROS S.A., CUANDO ENCUMPLIMIENTO DE LAS ACTIVIDADES PROPIAS DE SU PROFESIÓN U OFICIO DEBAN DESPLAZARSE FUERA DEL PAÍS EN COMISIÓN.
A73: TÉCNICA | B73: Médica | C73: NO | D73: C65192023 | E73: 85100000 | F73: PRESTACION DE SERVICIOS DE SALUD: EL CONTRATISTA se obliga con POSITIVA a la prestación de los servicios de salud para los asegurados y o afiliados a POSITIVA, que accedan a los servicios habilitados del CONTRATISTA en calidad de asegurados, a los ramos: Administración de Riesgos Laborales ARL - por causa exclusiva de un accidente de trabajo, una enfermedad profesional, Accidentes Personales AP Educativo Generación Positiva, AP Colectivos, AP Corto Plazo, AP Individual, Planes de Salud complicaciones quirúrgicas, de cirugía estética y bariátrica y demás Ramos de Seguros autorizados a POSITIVA, encontrándose excluidos del presente contrato los servicios y todas aquellas actividades, procedimientos e intervenciones que no tengan por objeto contribuir al diagnóstico, tratamiento o rehabilitación de la patología derivada del siniestro o los servicios considerados como experimentales, cosméticos y suntuarios | G73: 2023-03-01 | H73: 3 | I73: 1/03/2026 | J73: 36.53333333 | K73: Invitación directa | L73: CargoAReserva | M73: Indeterminado | N73: Indeterminado | O73: NO | P73: 0 | Q73: 0 | R73: NA | S73: Gerencia de Abastecimiento Estratégico contratacion@positiva.gov.co PBX: (1)6502200 Ext: 10641 | T73: SI | U73: SI | V73: NA | W73: SI | X73: Pública clasificada | Y73: C65192023-Tipo de información Pública clasificada-PRESTACION DE SERVICIOS DE SALUD: EL CONTRATISTA se obliga con POSITIVA a la prestación de los servicios de salud para los asegurados y o afiliados a POSITIVA, que accedan a los servicios habilitados del CONTRATISTA en calidad de asegurados, a los ramos: Administración de Riesgos Laborales ARL - por causa exclusiva de un accidente de trabajo, una enfermedad profesional, Accidentes Personales AP Educativo Generación Positiva, AP Colectivos, AP Corto Plazo, AP Individual, Planes de Salud complicaciones quirúrgicas, de cirugía estética y bariátrica y demás Ramos de Seguros autorizados a POSITIVA, encontrándose excluidos del presente contrato los servicios y todas aquellas actividades, procedimientos e intervenciones que no tengan por objeto contribuir al diagnóstico, tratamiento o rehabilitación de la patología derivada del siniestro o los servicios considerados como experimentales, cosméticos y suntuarios
A74: TÉCNICA | B74: Médica | C74: NO | D74: C65202023 | E74: 85100000 | F74: SUMINISTRO: PRESTACIÓN DE SERVICIOS DE OPERACIÓN LOGÍSTICA PARA EL SUMINISTRO Y DISPENSACIÓN DE MEDICAMENTOS E INSUMOS MÉDICOS, DE NUTRICIÓN Y COSMÉTICOS A LOS AFILIADOS Y/O ASEGURADOS DE POSITIVA COMPAÑÍA DE SEGUROS S.A | G74: 2023-03-30 | H74: 3 | I74: 2025-03-30 | J74: 24.36666667 | K74: Invitación directa | L74: CargoAReserva | M74: Indeterminado | N74: Indeterminado | O74: NO | P74: 0 | Q74: 0 | R74: NA | S74: Gerencia de Abastecimiento Estratégico contratacion@positiva.gov.co PBX: (1)6502200 Ext: 10641 | T74: SI | U74: SI | V74: NA | W74: SI | X74: Pública clasificada | Y74: C65202023-Tipo de información Pública clasificada-SUMINISTRO: PRESTACIÓN DE SERVICIOS DE OPERACIÓN LOGÍSTICA PARA EL SUMINISTRO Y DISPENSACIÓN DE MEDICAMENTOS E INSUMOS MÉDICOS, DE NUTRICIÓN Y COSMÉTICOS A LOS AFILIADOS Y/O ASEGURADOS DE POSITIVA COMPAÑÍA DE SEGUROS S.A
A75: TÉCNICA | B75: Médica | C75: NO | D75: C65212023 | E75: 85100000 | F75: PRESTACION DE SERVICIOS DE SALUD: EL CONTRATISTA se obliga con POSITIVA a la prestación de los servicios de salud para los asegurados y o afiliados a POSITIVA, que accedan a los servicios habilitados del CONTRATISTA en calidad de asegurados, a los ramos: Administración de Riesgos Laborales ARL - por causa exclusiva de un accidente de trabajo, una enfermedad profesional, Accidentes Personales AP Educativo Generación Positiva, AP Colectivos, AP Corto Plazo, AP Individual, Planes de Salud complicaciones quirúrgicas, de cirugía estética y bariátrica y demás Ramos de Seguros autorizados a POSITIVA, encontrándose excluidos del presente contrato los servicios y todas aquellas actividades, procedimientos e intervenciones que no tengan por objeto contribuir al diagnóstico, tratamiento o rehabilitación de la patología derivada del siniestro o los servicios considerados como experimentales, cosméticos y suntuarios | G75: 2023-03-02 | H75: 3 | I75: 2/03/2025 | J75: 24.36666667 | K75: Invitación directa | L75: CargoAReserva | M75: Indeterminado | N75: Indeterminado | O75: NO | P75: 0 | Q75: 0 | R75: NA | S75: Gerencia de Abastecimiento Estratégico contratacion@positiva.gov.co PBX: (1)6502200 Ext: 10641 | T75: SI | U75: SI | V75: NA | W75: SI | X75: Pública clasificada | Y75: C65212023-Tipo de información Pública clasificada-PRESTACION DE SERVICIOS DE SALUD: EL CONTRATISTA se obliga con POSITIVA a la prestación de los servicios de salud para los asegurados y o afiliados a POSITIVA, que accedan a los servicios habilitados del CONTRATISTA en calidad de asegurados, a los ramos: Administración de Riesgos Laborales ARL - por causa exclusiva de un accidente de trabajo, una enfermedad profesional, Accidentes Personales AP Educativo Generación Positiva, AP Colectivos, AP Corto Plazo, AP Individual, Planes de Salud complicaciones quirúrgicas, de cirugía estética y bariátrica y demás Ramos de Seguros autorizados a POSITIVA, encontrándose excluidos del presente contrato los servicios y todas aquellas actividades, procedimientos e intervenciones que no tengan por objeto contribuir al diagnóstico, tratamiento o rehabilitación de la patología derivada del siniestro o los servicios considerados como experimentales, cosméticos y suntuarios
A76: TÉCNICA | B76: Médica | C76: NO | D76: C65222023 | E76: 85100000 | F76: PRESTACION DE SERVICIOS DE SALUD: EL CONTRATISTA se obliga con POSITIVA a la prestación de los servicios de salud para los asegurados y o afiliados a POSITIVA, que accedan a los servicios habilitados del CONTRATISTA en calidad de asegurados, a los ramos: Administración de Riesgos Laborales ARL - por causa exclusiva de un accidente de trabajo, una enfermedad profesional, Accidentes Personales AP Educativo Generación Positiva, AP Colectivos, AP Corto Plazo, AP Individual, Planes de Salud complicaciones quirúrgicas, de cirugía estética y bariátrica y demás Ramos de Seguros autorizados a POSITIVA, encontrándose excluidos del presente contrato los servicios y todas aquellas actividades, procedimientos e intervenciones que no tengan por objeto contribuir al diagnóstico, tratamiento o rehabilitación de la patología derivada del siniestro o los servicios considerados como experimentales, cosméticos y suntuarios | G76: 2023-03-07 | H76: 3 | I76: 2028-03-07 | J76: 60.9 | K76: Invitación directa | L76: CargoAReserva | M76: Indeterminado | N76: Indeterminado | O76: NO | P76: 0 | Q76: 0 | R76: NA | S76: Gerencia de Abastecimiento Estratégico contratacion@positiva.gov.co PBX: (1)6502200 Ext: 10641 | T76: SI | U76: SI | V76: NA | W76: SI | X76: Pública clasificada | Y76: C65222023-Tipo de información Pública clasificada-PRESTACION DE SERVICIOS DE SALUD: EL CONTRATISTA se obliga con POSITIVA a la prestación de los servicios de salud para los asegurados y o afiliados a POSITIVA, que accedan a los servicios habilitados del CONTRATISTA en calidad de asegurados, a los ramos: Administración de Riesgos Laborales ARL - por causa exclusiva de un accidente de trabajo, una enfermedad profesional, Accidentes Personales AP Educativo Generación Positiva, AP Colectivos, AP Corto Plazo, AP Individual, Planes de Salud complicaciones quirúrgicas, de cirugía estética y bariátrica y demás Ramos de Seguros autorizados a POSITIVA, encontrándose excluidos del presente contrato los servicios y todas aquellas actividades, procedimientos e intervenciones que no tengan por objeto contribuir al diagnóstico, tratamiento o rehabilitación de la patología derivada del siniestro o los servicios considerados como experimentales, cosméticos y suntuarios
A77: TÉCNICA | B77: Médica | C77: NO | D77: C65232023 | E77: 85100000 | F77: PRESTACION DE SERVICIOS: Prestar el servicio de hospedaje y alimentación a los asegurados en los diferentes ramos de la compañía, Administración de Riesgos laborales (ARL -por causa exclusiva de un accidente de trabajo, una enfermedad profesional), Accidentes Personales (AP Educativo Generación Positiva, AP Colectivos, AP Corto Plazo, AP Individual) y demás Ramos de Seguros autorizados de POSITIVA COMPAÑIA DE SEGUROS S.A. | G77: 2023-03-09 | H77: 3 | I77: 9/03/2025 | J77: 24.36666667 | K77: Invitación directa | L77: CargoAReserva | M77: Indeterminado | N77: Indeterminado | O77: NO | P77: 0 | Q77: 0 | R77: NA | S77: Gerencia de Abastecimiento Estratégico contratacion@positiva.gov.co PBX: (1)6502200 Ext: 10641 | T77: SI | U77: SI | V77: NA | W77: SI | X77: Pública clasificada | Y77: C65232023-Tipo de información Pública clasificada-PRESTACION DE SERVICIOS: Prestar el servicio de hospedaje y alimentación a los asegurados en los diferentes ramos de la compañía, Administración de Riesgos laborales (ARL -por causa exclusiva de un accidente de trabajo, una enfermedad profesional), Accidentes Personales (AP Educativo Generación Positiva, AP Colectivos, AP Corto Plazo, AP Individual) y demás Ramos de Seguros autorizados de POSITIVA COMPAÑIA DE SEGUROS S.A.
A78: TÉCNICA | B78: Médica | C78: NO | D78: C65242023 | E78: 85100000 | F78: PRESTACION DE SERVICIOS DE SALUD: EL CONTRATISTA se obliga con POSITIVA a la prestación de los servicios de salud para los asegurados y o afiliados a POSITIVA, que accedan a los servicios habilitados del CONTRATISTA en calidad de asegurados, a los ramos: Administración de Riesgos Laborales ARL - por causa exclusiva de un accidente de trabajo, una enfermedad profesional, Accidentes Personales AP Educativo Generación Positiva, AP Colectivos, AP Corto Plazo, AP Individual, Planes de Salud complicaciones quirúrgicas, de cirugía estética y bariátrica y demás Ramos de Seguros autorizados a POSITIVA, encontrándose excluidos del presente contrato los servicios y todas aquellas actividades, procedimientos e intervenciones que no tengan por objeto contribuir al diagnóstico, tratamiento o rehabilitación de la patología derivada del siniestro o los servicios considerados como experimentales, cosméticos y suntuarios | G78: 2023-03-12 | H78: 3 | I78: 12/03/2025 | J78: 24.36666667 | K78: Invitación directa | L78: CargoAReserva | M78: Indeterminado | N78: Indeterminado | O78: NO | P78: 0 | Q78: 0 | R78: NA | S78: Gerencia de Abastecimiento Estratégico contratacion@positiva.gov.co PBX: (1)6502200 Ext: 10641 | T78: SI | U78: SI | V78: NA | W78: SI | X78: Pública clasificada | Y78: C65242023-Tipo de información Pública clasificada-PRESTACION DE SERVICIOS DE SALUD: EL CONTRATISTA se obliga con POSITIVA a la prestación de los servicios de salud para los asegurados y o afiliados a POSITIVA, que accedan a los servicios habilitados del CONTRATISTA en calidad de asegurados, a los ramos: Administración de Riesgos Laborales ARL - por causa exclusiva de un accidente de trabajo, una enfermedad profesional, Accidentes Personales AP Educativo Generación Positiva, AP Colectivos, AP Corto Plazo, AP Individual, Planes de Salud complicaciones quirúrgicas, de cirugía estética y bariátrica y demás Ramos de Seguros autorizados a POSITIVA, encontrándose excluidos del presente contrato los servicios y todas aquellas actividades, procedimientos e intervenciones que no tengan por objeto contribuir al diagnóstico, tratamiento o rehabilitación de la patología derivada del siniestro o los servicios considerados como experimentales, cosméticos y suntuarios
A79: TÉCNICA | B79: Médica | C79: NO | D79: C65252023 | E79: 85100000 | F79: PRESTACION DE SERVICIOS DE SALUD: EL CONTRATISTA se obliga con POSITIVA a la prestación de los servicios de salud para los asegurados y o afiliados a POSITIVA, que accedan a los servicios habilitados del CONTRATISTA en calidad de asegurados, a los ramos: Administración de Riesgos Laborales ARL - por causa exclusiva de un accidente de trabajo, una enfermedad profesional, Accidentes Personales AP Educativo Generación Positiva, AP Colectivos, AP Corto Plazo, AP Individual, Planes de Salud complicaciones quirúrgicas, de cirugía estética y bariátrica y demás Ramos de Seguros autorizados a POSITIVA, encontrándose excluidos del presente contrato los servicios y todas aquellas actividades, procedimientos e intervenciones que no tengan por objeto contribuir al diagnóstico, tratamiento o rehabilitación de la patología derivada del siniestro o los servicios considerados como experimentales, cosméticos y suntuarios | G79: 2023-03-15 | H79: 3 | I79: 15/03/2025 | J79: 24.36666667 | K79: Invitación directa | L79: CargoAReserva | M79: Indeterminado | N79: Indeterminado | O79: NO | P79: 0 | Q79: 0 | R79: NA | S79: Gerencia de Abastecimiento Estratégico contratacion@positiva.gov.co PBX: (1)6502200 Ext: 10641 | T79: SI | U79: SI | V79: NA | W79: SI | X79: Pública clasificada | Y79: C65252023-Tipo de información Pública clasificada-PRESTACION DE SERVICIOS DE SALUD: EL CONTRATISTA se obliga con POSITIVA a la prestación de los servicios de salud para los asegurados y o afiliados a POSITIVA, que accedan a los servicios habilitados del CONTRATISTA en calidad de asegurados, a los ramos: Administración de Riesgos Laborales ARL - por causa exclusiva de un accidente de trabajo, una enfermedad profesional, Accidentes Personales AP Educativo Generación Positiva, AP Colectivos, AP Corto Plazo, AP Individual, Planes de Salud complicaciones quirúrgicas, de cirugía estética y bariátrica y demás Ramos de Seguros autorizados a POSITIVA, encontrándose excluidos del presente contrato los servicios y todas aquellas actividades, procedimientos e intervenciones que no tengan por objeto contribuir al diagnóstico, tratamiento o rehabilitación de la patología derivada del siniestro o los servicios considerados como experimentales, cosméticos y suntuarios
A80: TÉCNICA | B80: Médica | C80: NO | D80: C65262023 | E80: 85100000 | F80: PRESTACION DE SERVICIOS DE SALUD: EL CONTRATISTA se obliga con POSITIVA a la prestación de los servicios de salud para los asegurados y o afiliados a POSITIVA, que accedan a los servicios habilitados del CONTRATISTA en calidad de asegurados, a los ramos: Administración de Riesgos Laborales ARL - por causa exclusiva de un accidente de trabajo, una enfermedad profesional, Accidentes Personales AP Educativo Generación Positiva, AP Colectivos, AP Corto Plazo, AP Individual, Planes de Salud complicaciones quirúrgicas, de cirugía estética y bariátrica y demás Ramos de Seguros autorizados a POSITIVA, encontrándose excluidos del presente contrato los servicios y todas aquellas actividades, procedimientos e intervenciones que no tengan por objeto contribuir al diagnóstico, tratamiento o rehabilitación de la patología derivada del siniestro o los servicios considerados como experimentales, cosméticos y suntuarios | G80: 2023-03-15 | H80: 3 | I80: 15/03/2025 | J80: 24.36666667 | K80: Invitación directa | L80: CargoAReserva | M80: Indeterminado | N80: Indeterminado | O80: NO | P80: 0 | Q80: 0 | R80: NA | S80: Gerencia de Abastecimiento Estratégico contratacion@positiva.gov.co PBX: (1)6502200 Ext: 10641 | T80: SI | U80: SI | V80: NA | W80: SI | X80: Pública clasificada | Y80: C65262023-Tipo de información Pública clasificada-PRESTACION DE SERVICIOS DE SALUD: EL CONTRATISTA se obliga con POSITIVA a la prestación de los servicios de salud para los asegurados y o afiliados a POSITIVA, que accedan a los servicios habilitados del CONTRATISTA en calidad de asegurados, a los ramos: Administración de Riesgos Laborales ARL - por causa exclusiva de un accidente de trabajo, una enfermedad profesional, Accidentes Personales AP Educativo Generación Positiva, AP Colectivos, AP Corto Plazo, AP Individual, Planes de Salud complicaciones quirúrgicas, de cirugía estética y bariátrica y demás Ramos de Seguros autorizados a POSITIVA, encontrándose excluidos del presente contrato los servicios y todas aquellas actividades, procedimientos e intervenciones que no tengan por objeto contribuir al diagnóstico, tratamiento o rehabilitación de la patología derivada del siniestro o los servicios considerados como experimentales, cosméticos y suntuarios
A81: TÉCNICA | B81: Médica | C81: NO | D81: C65272023 | E81: 85100000 | F81: PRESTACION DE SERVICIOS DE SALUD: EL CONTRATISTA se obliga con POSITIVA a la prestación de los servicios de salud para los asegurados y o afiliados a POSITIVA, que accedan a los servicios habilitados del CONTRATISTA en calidad de asegurados, a los ramos: Administración de Riesgos Laborales ARL - por causa exclusiva de un accidente de trabajo, una enfermedad profesional, Accidentes Personales AP Educativo Generación Positiva, AP Colectivos, AP Corto Plazo, AP Individual, Planes de Salud complicaciones quirúrgicas, de cirugía estética y bariátrica y demás Ramos de Seguros autorizados a POSITIVA, encontrándose excluidos del presente contrato los servicios y todas aquellas actividades, procedimientos e intervenciones que no tengan por objeto contribuir al diagnóstico, tratamiento o rehabilitación de la patología derivada del siniestro o los servicios considerados como experimentales, cosméticos y suntuarios | G81: 2023-03-16 | H81: 3 | I81: 16/03/2025 | J81: 24.36666667 | K81: Invitación directa | L81: CargoAReserva | M81: Indeterminado | N81: Indeterminado | O81: NO | P81: 0 | Q81: 0 | R81: NA | S81: Gerencia de Abastecimiento Estratégico contratacion@positiva.gov.co PBX: (1)6502200 Ext: 10641 | T81: SI | U81: SI | V81: NA | W81: SI | X81: Pública clasificada | Y81: C65272023-Tipo de información Pública clasificada-PRESTACION DE SERVICIOS DE SALUD: EL CONTRATISTA se obliga con POSITIVA a la prestación de los servicios de salud para los asegurados y o afiliados a POSITIVA, que accedan a los servicios habilitados del CONTRATISTA en calidad de asegurados, a los ramos: Administración de Riesgos Laborales ARL - por causa exclusiva de un accidente de trabajo, una enfermedad profesional, Accidentes Personales AP Educativo Generación Positiva, AP Colectivos, AP Corto Plazo, AP Individual, Planes de Salud complicaciones quirúrgicas, de cirugía estética y bariátrica y demás Ramos de Seguros autorizados a POSITIVA, encontrándose excluidos del presente contrato los servicios y todas aquellas actividades, procedimientos e intervenciones que no tengan por objeto contribuir al diagnóstico, tratamiento o rehabilitación de la patología derivada del siniestro o los servicios considerados como experimentales, cosméticos y suntuarios
A82: TÉCNICA | B82: Médica | C82: NO | D82: C65282023 | E82: 85100000 | F82: SUMINISTRO: PRESTACIÓN DE SERVICIOS DE OPERACIÓN LOGÍSTICA PARA EL SUMINISTRO Y DISPENSACIÓN DE MEDICAMENTOS E INSUMOS MÉDICOS, DE NUTRICIÓN Y COSMÉTICOS A LOS AFILIADOS Y/O ASEGURADOS DE POSITIVA COMPAÑÍA DE SEGUROS S.A | G82: 2023-03-30 | H82: 3 | I82: 2025-03-30 | J82: 24.36666667 | K82: Invitación directa | L82: CargoAReserva | M82: Indeterminado | N82: Indeterminado | O82: NO | P82: 0 | Q82: 0 | R82: NA | S82: Gerencia de Abastecimiento Estratégico contratacion@positiva.gov.co PBX: (1)6502200 Ext: 10641 | T82: SI | U82: SI | V82: NA | W82: SI | X82: Pública clasificada | Y82: C65282023-Tipo de información Pública clasificada-SUMINISTRO: PRESTACIÓN DE SERVICIOS DE OPERACIÓN LOGÍSTICA PARA EL SUMINISTRO Y DISPENSACIÓN DE MEDICAMENTOS E INSUMOS MÉDICOS, DE NUTRICIÓN Y COSMÉTICOS A LOS AFILIADOS Y/O ASEGURADOS DE POSITIVA COMPAÑÍA DE SEGUROS S.A
A83: TÉCNICA | B83: Médica | C83: NO | D83: C65292023 | E83: 85100000 | F83: SUMINISTRO: PRESTACIÓN DE SERVICIOS DE OPERACIÓN LOGÍSTICA PARA EL SUMINISTRO Y DISPENSACIÓN DE MEDICAMENTOS E INSUMOS MÉDICOS, DE NUTRICIÓN Y COSMÉTICOS A LOS AFILIADOS Y/O ASEGURADOS DE POSITIVA COMPAÑÍA DE SEGUROS S.A | G83: 2023-03-30 | H83: 3 | I83: 2025-03-30 | J83: 24.36666667 | K83: Invitación directa | L83: CargoAReserva | M83: Indeterminado | N83: Indeterminado | O83: NO | P83: 0 | Q83: 0 | R83: NA | S83: Gerencia de Abastecimiento Estratégico contratacion@positiva.gov.co PBX: (1)6502200 Ext: 10641 | T83: SI | U83: SI | V83: NA | W83: SI | X83: Pública clasificada | Y83: C65292023-Tipo de información Pública clasificada-SUMINISTRO: PRESTACIÓN DE SERVICIOS DE OPERACIÓN LOGÍSTICA PARA EL SUMINISTRO Y DISPENSACIÓN DE MEDICAMENTOS E INSUMOS MÉDICOS, DE NUTRICIÓN Y COSMÉTICOS A LOS AFILIADOS Y/O ASEGURADOS DE POSITIVA COMPAÑÍA DE SEGUROS S.A
A84: TÉCNICA | B84: Médica | C84: NO | D84: C65302023 | E84: 85100000 | F84: SUMINISTRO: PRESTACIÓN DE SERVICIOS DE OPERACIÓN LOGÍSTICA PARA EL SUMINISTRO Y DISPENSACIÓN DE MEDICAMENTOS E INSUMOS MÉDICOS, DE NUTRICIÓN Y COSMÉTICOS A LOS AFILIADOS Y/O ASEGURADOS DE POSITIVA COMPAÑÍA DE SEGUROS S.A | G84: 2023-03-30 | H84: 3 | I84: 2025-03-30 | J84: 24.36666667 | K84: Invitación directa | L84: CargoAReserva | M84: Indeterminado | N84: Indeterminado | O84: NO | P84: 0 | Q84: 0 | R84: NA | S84: Gerencia de Abastecimiento Estratégico contratacion@positiva.gov.co PBX: (1)6502200 Ext: 10641 | T84: SI | U84: SI | V84: NA | W84: SI | X84: Pública clasificada | Y84: C65302023-Tipo de información Pública clasificada-SUMINISTRO: PRESTACIÓN DE SERVICIOS DE OPERACIÓN LOGÍSTICA PARA EL SUMINISTRO Y DISPENSACIÓN DE MEDICAMENTOS E INSUMOS MÉDICOS, DE NUTRICIÓN Y COSMÉTICOS A LOS AFILIADOS Y/O ASEGURADOS DE POSITIVA COMPAÑÍA DE SEGUROS S.A
A85: TÉCNICA | B85: Médica | C85: NO | D85: C65312023 | E85: 85100000 | F85: PRESTACIÓN DE SERVICIOS: PRESTACIÓN DE SERVICIOS DE PLATAFORMA DE GESTIÓN INTEGRAL DEL SINIESTRO Y QUE CONTEMPLE COMO MÍNIMO LA INTEGRACIÓN DE LOS CANALES DE COMUNICACIÓN DISPUESTOS PARA LOS CLIENTES, LA RED DE PRESTADORES, LA GESTIÓN DE LAS SOLICITUDES DE AUTORIZACIONES DE SERVICIOS DE SALUD, LA CAPTURA DE AVISOS DE SINIESTROS, LA RADICACIÓN Y AUDITORÍA DE CUENTAS MÉDICAS, LA AUDITORIA DE MICROGESTION DE LOS SINIESTROS, ASÍ COMO LA VALIDACIÓN Y CONSULTA DE LOS MOVIMIENTOS REALIZADOS DURANTE LA VIDA DEL SINIESTRO. | G85: 2023-03-31 | H85: 3 | I85: 31/03/2025 | J85: 24.36666667 | K85: Invitación Pública | L85: CargoAReserva | M85: Indeterminado | N85: Indeterminado | O85: NO | P85: 0 | Q85: 0 | R85: NA | S85: Gerencia de Abastecimiento Estratégico contratacion@positiva.gov.co PBX: (1)6502200 Ext: 10641 | T85: SI | U85: SI | V85: NA | W85: SI | X85: Pública clasificada | Y85: C65312023-Tipo de información Pública clasificada-PRESTACIÓN DE SERVICIOS: PRESTACIÓN DE SERVICIOS DE PLATAFORMA DE GESTIÓN INTEGRAL DEL SINIESTRO Y QUE CONTEMPLE COMO MÍNIMO LA INTEGRACIÓN DE LOS CANALES DE COMUNICACIÓN DISPUESTOS PARA LOS CLIENTES, LA RED DE PRESTADORES, LA GESTIÓN DE LAS SOLICITUDES DE AUTORIZACIONES DE SERVICIOS DE SALUD, LA CAPTURA DE AVISOS DE SINIESTROS, LA RADICACIÓN Y AUDITORÍA DE CUENTAS MÉDICAS, LA AUDITORIA DE MICROGESTION DE LOS SINIESTROS, ASÍ COMO LA VALIDACIÓN Y CONSULTA DE LOS MOVIMIENTOS REALIZADOS DURANTE LA VIDA DEL SINIESTRO.
A86: TÉCNICA | B86: Médica | C86: NO | D86: C65322023 | E86: 85100000 | F86: PRESTACIÓN DE SERVICIOS: EL CONTRATISTA SE OBLIGA PARA CON POSITIVA COMPAÑÍA DE SEGUROS S.A. A PRESTAR UN SERVICIO INTEGRAL DE GESTION LOGISTICA ESPECIALIZADA PARA LA PRESTACION DE SERVICIOS ASISTENCIALES EN SALUD A LOS AFILIADOS DE LA COMPAÑÍA EN LOS DIFERENTES RAMOS DE PÓLIZAS DE VIDA; RIESGOS LABORALES, ACCIDENTES PERSONALES, PLANES DE SALUD, A TRAVÉS DE LA RED DE PRESTADORES DE SERVICIOS DE SALUD, IPS, ESE, EPS Y CUALQUIER OTRA ENTIDAD ASIMILADA, EN LA ATENCIÓN POR EVENTOS DE SINIESTROS DERIVADOS DE ARL, ACCIDENTES PERSONALES, PLANES DE SALUD Y DEMÁS RAMOS QUE SE RELACIONEN CON EL OBJETO DE ESTE CONTRATO. DE ESTA FORMA SE PRETENDE GARANTIZAR LA PRESTACIÓN INTEGRAL DE SERVICIOS DE SALUD EN TÉRMINOS DE ACCESO, COBERTURA, OPORTUNIDAD, CONTINUIDAD, SEGUIMIENTO, CONTROL Y RETROALIMENTACIÓN PARA LA ATENCIÓN DE LOS AFILIADOS. | G86: 2023-04-01 | H86: 4 | I86: 1/04/2025 | J86: 24.36666667 | K86: Invitación Pública | L86: CargoAReserva | M86: Indeterminado | N86: Indeterminado | O86: NO | P86: 0 | Q86: 0 | R86: NA | S86: Gerencia de Abastecimiento Estratégico contratacion@positiva.gov.co PBX: (1)6502200 Ext: 10641 | T86: SI | U86: SI | V86: NA | W86: SI | X86: Pública clasificada | Y86: C65322023-Tipo de información Pública clasificada-PRESTACIÓN DE SERVICIOS: EL CONTRATISTA SE OBLIGA PARA CON POSITIVA COMPAÑÍA DE SEGUROS S.A. A PRESTAR UN SERVICIO INTEGRAL DE GESTION LOGISTICA ESPECIALIZADA PARA LA PRESTACION DE SERVICIOS ASISTENCIALES EN SALUD A LOS AFILIADOS DE LA COMPAÑÍA EN LOS DIFERENTES RAMOS DE PÓLIZAS DE VIDA; RIESGOS LABORALES, ACCIDENTES PERSONALES, PLANES DE SALUD, A TRAVÉS DE LA RED DE PRESTADORES DE SERVICIOS DE SALUD, IPS, ESE, EPS Y CUALQUIER OTRA ENTIDAD ASIMILADA, EN LA ATENCIÓN POR EVENTOS DE SINIESTROS DERIVADOS DE ARL, ACCIDENTES PERSONALES, PLANES DE SALUD Y DEMÁS RAMOS QUE SE RELACIONEN CON EL OBJETO DE ESTE CONTRATO. DE ESTA FORMA SE PRETENDE GARANTIZAR LA PRESTACIÓN INTEGRAL DE SERVICIOS DE SALUD EN TÉRMINOS DE ACCESO, COBERTURA, OPORTUNIDAD, CONTINUIDAD, SEGUIMIENTO, CONTROL Y RETROALIMENTACIÓN PARA LA ATENCIÓN DE LOS AFILIADOS.
A87: TÉCNICA | B87: Médica | C87: NO | D87: C65332023 | E87: 85100000 | F87: PRESTACION DE SERVICIOS DE SALUD: EL CONTRATISTA se obliga con POSITIVA a la prestación de los servicios de salud para los asegurados y o afiliados a POSITIVA, que accedan a los servicios habilitados del CONTRATISTA en calidad de asegurados, a los ramos: Administración de Riesgos Laborales ARL - por causa exclusiva de un accidente de trabajo, una enfermedad profesional, Accidentes Personales AP Educativo Generación Positiva, AP Colectivos, AP Corto Plazo, AP Individual, Planes de Salud complicaciones quirúrgicas, de cirugía estética y bariátrica y demás Ramos de Seguros autorizados a POSITIVA, encontrándose excluidos del presente contrato los servicios y todas aquellas actividades, procedimientos e intervenciones que no tengan por objeto contribuir al diagnóstico, tratamiento o rehabilitación de la patología derivada del siniestro o los servicios considerados como experimentales, cosméticos y suntuarios | G87: 2023-04-01 | H87: 4 | I87: 1/04/2025 | J87: 24.36666667 | K87: Invitación directa | L87: CargoAReserva | M87: Indeterminado | N87: Indeterminado | O87: NO | P87: 0 | Q87: 0 | R87: NA | S87: Gerencia de Abastecimiento Estratégico contratacion@positiva.gov.co PBX: (1)6502200 Ext: 10641 | T87: SI | U87: SI | V87: NA | W87: SI | X87: =IF(W87="SI","Pública clasificada","Pública") -> Pública clasificada | Y87: =CONCATENATE(D87,"-","Tipo de información"," ",X87,"-",F87) -> C65332023-Tipo de información Pública clasificada-PRESTACION DE SERVICIOS DE SALUD: EL CONTRATISTA se obliga con POSITIVA a la prestación de los servicios de salud para los asegurados y o afiliados a POSITIVA, que accedan a los servicios habilitados del CONTRATISTA en calidad de asegurados, a los ramos: Administración de Riesgos Laborales ARL - por causa exclusiva de un accidente de trabajo, una enfermedad profesional, Accidentes Personales AP Educativo Generación Positiva, AP Colectivos, AP Corto Plazo, AP Individual, Planes de Salud complicaciones quirúrgicas, de cirugía estética y bariátrica y demás Ramos de Seguros autorizados a POSITIVA, encontrándose excluidos del presente contrato los servicios y todas aquellas actividades, procedimientos e intervenciones que no tengan por objeto contribuir al diagnóstico, tratamiento o rehabilitación de la patología derivada del siniestro o los servicios considerados como experimentales, cosméticos y suntuarios
A88: TÉCNICA | B88: Médica | C88: NO | D88: C65342023 | E88: 85100000 | F88: PRESTACION DE SERVICIOS DE SALUD: EL CONTRATISTA se obliga con POSITIVA a la prestación de los servicios de salud para los asegurados y o afiliados a POSITIVA, que accedan a los servicios habilitados del CONTRATISTA en calidad de asegurados, a los ramos: Administración de Riesgos Laborales ARL - por causa exclusiva de un accidente de trabajo, una enfermedad profesional, Accidentes Personales AP Educativo Generación Positiva, AP Colectivos, AP Corto Plazo, AP Individual, Planes de Salud complicaciones quirúrgicas, de cirugía estética y bariátrica y demás Ramos de Seguros autorizados a POSITIVA, encontrándose excluidos del presente contrato los servicios y todas aquellas actividades, procedimientos e intervenciones que no tengan por objeto contribuir al diagnóstico, tratamiento o rehabilitación de la patología derivada del siniestro o los servicios considerados como experimentales, cosméticos y suntuarios | G88: 2023-04-10 | H88: 4 | I88: 10/04/2025 | J88: 24.36666667 | K88: Invitación directa | L88: CargoAReserva | M88: Indeterminado | N88: Indeterminado | O88: NO | P88: 0 | Q88: 0 | R88: NA | S88: Gerencia de Abastecimiento Estratégico contratacion@positiva.gov.co PBX: (1)6502200 Ext: 10641 | T88: SI | U88: SI | V88: NA | W88: SI | X88: Pública clasificada | Y88: C65342023-Tipo de información Pública clasificada-PRESTACION DE SERVICIOS DE SALUD: EL CONTRATISTA se obliga con POSITIVA a la prestación de los servicios de salud para los asegurados y o afiliados a POSITIVA, que accedan a los servicios habilitados del CONTRATISTA en calidad de asegurados, a los ramos: Administración de Riesgos Laborales ARL - por causa exclusiva de un accidente de trabajo, una enfermedad profesional, Accidentes Personales AP Educativo Generación Positiva, AP Colectivos, AP Corto Plazo, AP Individual, Planes de Salud complicaciones quirúrgicas, de cirugía estética y bariátrica y demás Ramos de Seguros autorizados a POSITIVA, encontrándose excluidos del presente contrato los servicios y todas aquellas actividades, procedimientos e intervenciones que no tengan por objeto contribuir al diagnóstico, tratamiento o rehabilitación de la patología derivada del siniestro o los servicios considerados como experimentales, cosméticos y suntuarios
A89: TÉCNICA | B89: Médica | C89: NO | D89: C65352023 | E89: 85100000 | F89: PRESTACION DE SERVICIOS DE SALUD: EL CONTRATISTA se obliga con POSITIVA a la prestación de los servicios de salud para los asegurados y o afiliados a POSITIVA, que accedan a los servicios habilitados del CONTRATISTA en calidad de asegurados, a los ramos: Administración de Riesgos Laborales ARL - por causa exclusiva de un accidente de trabajo, una enfermedad profesional, Accidentes Personales AP Educativo Generación Positiva, AP Colectivos, AP Corto Plazo, AP Individual, Planes de Salud complicaciones quirúrgicas, de cirugía estética y bariátrica y demás Ramos de Seguros autorizados a POSITIVA, encontrándose excluidos del presente contrato los servicios y todas aquellas actividades, procedimientos e intervenciones que no tengan por objeto contribuir al diagnóstico, tratamiento o rehabilitación de la patología derivada del siniestro o los servicios considerados como experimentales, cosméticos y suntuarios | G89: 2023-04-12 | H89: =MONTH(G89) -> 4 | I89: 12/04/2025 | J89: =(I89-G89)/30 -> 24.36666667 | K89: Invitación directa | L89: CargoAReserva | M89: Indeterminado | N89: Indeterminado | O89: NO | P89: =IF(O89="NO",0,1) -> 0 | Q89: =IF(P89=0,0,3) -> 0 | R89: NA | S89: Gerencia de Abastecimiento Estratégico contratacion@positiva.gov.co PBX: (1)6502200 Ext: 10641 | T89: SI | U89: SI | V89: NA | W89: SI | X89: Pública clasificada | Y89: C65352023-Tipo de información Pública clasificada-PRESTACION DE SERVICIOS DE SALUD: EL CONTRATISTA se obliga con POSITIVA a la prestación de los servicios de salud para los asegurados y o afiliados a POSITIVA, que accedan a los servicios habilitados del CONTRATISTA en calidad de asegurados, a los ramos: Administración de Riesgos Laborales ARL - por causa exclusiva de un accidente de trabajo, una enfermedad profesional, Accidentes Personales AP Educativo Generación Positiva, AP Colectivos, AP Corto Plazo, AP Individual, Planes de Salud complicaciones quirúrgicas, de cirugía estética y bariátrica y demás Ramos de Seguros autorizados a POSITIVA, encontrándose excluidos del presente contrato los servicios y todas aquellas actividades, procedimientos e intervenciones que no tengan por objeto contribuir al diagnóstico, tratamiento o rehabilitación de la patología derivada del siniestro o los servicios considerados como experimentales, cosméticos y suntuarios
A90: TÉCNICA | B90: Médica | C90: NO | D90: C65362023 | E90: 85100000 | F90: PRESTACION DE SERVICIOS DE SALUD: EL CONTRATISTA se obliga con POSITIVA a la prestación de los servicios de salud para los asegurados y o afiliados a POSITIVA, que accedan a los servicios habilitados del CONTRATISTA en calidad de asegurados, a los ramos: Administración de Riesgos Laborales ARL - por causa exclusiva de un accidente de trabajo, una enfermedad profesional, Accidentes Personales AP Educativo Generación Positiva, AP Colectivos, AP Corto Plazo, AP Individual, Planes de Salud complicaciones quirúrgicas, de cirugía estética y bariátrica y demás Ramos de Seguros autorizados a POSITIVA, encontrándose excluidos del presente contrato los servicios y todas aquellas actividades, procedimientos e intervenciones que no tengan por objeto contribuir al diagnóstico, tratamiento o rehabilitación de la patología derivada del siniestro o los servicios considerados como experimentales, cosméticos y suntuarios | G90: 2023-04-18 | H90: 4 | I90: 18/04/2026 | J90: 36.53333333 | K90: Invitación directa | L90: CargoAReserva | M90: Indeterminado | N90: Indeterminado | O90: NO | P90: 0 | Q90: 0 | R90: NA | S90: Gerencia de Abastecimiento Estratégico contratacion@positiva.gov.co PBX: (1)6502200 Ext: 10641 | T90: SI | U90: SI | V90: NA | W90: SI | X90: Pública clasificada | Y90: C65362023-Tipo de información Pública clasificada-PRESTACION DE SERVICIOS DE SALUD: EL CONTRATISTA se obliga con POSITIVA a la prestación de los servicios de salud para los asegurados y o afiliados a POSITIVA, que accedan a los servicios habilitados del CONTRATISTA en calidad de asegurados, a los ramos: Administración de Riesgos Laborales ARL - por causa exclusiva de un accidente de trabajo, una enfermedad profesional, Accidentes Personales AP Educativo Generación Positiva, AP Colectivos, AP Corto Plazo, AP Individual, Planes de Salud complicaciones quirúrgicas, de cirugía estética y bariátrica y demás Ramos de Seguros autorizados a POSITIVA, encontrándose excluidos del presente contrato los servicios y todas aquellas actividades, procedimientos e intervenciones que no tengan por objeto contribuir al diagnóstico, tratamiento o rehabilitación de la patología derivada del siniestro o los servicios considerados como experimentales, cosméticos y suntuarios
A91: TÉCNICA | B91: Médica | C91: NO | D91: C65372023 | E91: 85100000 | F91: PRESTACION DE SERVICIOS DE SALUD: EL CONTRATISTA se obliga con POSITIVA a la prestación de los servicios de salud para los asegurados y o afiliados a POSITIVA, que accedan a los servicios habilitados del CONTRATISTA en calidad de asegurados, a los ramos: Administración de Riesgos Laborales ARL - por causa exclusiva de un accidente de trabajo, una enfermedad profesional, Accidentes Personales AP Educativo Generación Positiva, AP Colectivos, AP Corto Plazo, AP Individual, Planes de Salud complicaciones quirúrgicas, de cirugía estética y bariátrica y demás Ramos de Seguros autorizados a POSITIVA, encontrándose excluidos del presente contrato los servicios y todas aquellas actividades, procedimientos e intervenciones que no tengan por objeto contribuir al diagnóstico, tratamiento o rehabilitación de la patología derivada del siniestro o los servicios considerados como experimentales, cosméticos y suntuarios | G91: 2023-04-19 | H91: 4 | I91: 19/04/2025 | J91: 24.36666667 | K91: Invitación directa | L91: CargoAReserva | M91: Indeterminado | N91: Indeterminado | O91: NO | P91: 0 | Q91: 0 | R91: NA | S91: Gerencia de Abastecimiento Estratégico contratacion@positiva.gov.co PBX: (1)6502200 Ext: 10641 | T91: SI | U91: SI | V91: NA | W91: SI | X91: Pública clasificada | Y91: C65372023-Tipo de información Pública clasificada-PRESTACION DE SERVICIOS DE SALUD: EL CONTRATISTA se obliga con POSITIVA a la prestación de los servicios de salud para los asegurados y o afiliados a POSITIVA, que accedan a los servicios habilitados del CONTRATISTA en calidad de asegurados, a los ramos: Administración de Riesgos Laborales ARL - por causa exclusiva de un accidente de trabajo, una enfermedad profesional, Accidentes Personales AP Educativo Generación Positiva, AP Colectivos, AP Corto Plazo, AP Individual, Planes de Salud complicaciones quirúrgicas, de cirugía estética y bariátrica y demás Ramos de Seguros autorizados a POSITIVA, encontrándose excluidos del presente contrato los servicios y todas aquellas actividades, procedimientos e intervenciones que no tengan por objeto contribuir al diagnóstico, tratamiento o rehabilitación de la patología derivada del siniestro o los servicios considerados como experimentales, cosméticos y suntuarios
A92: TÉCNICA | B92: Médica | C92: NO | D92: C65382023 | E92: 85100000 | F92: PRESTACION DE SERVICIOS DE SALUD: EL CONTRATISTA se obliga con POSITIVA a la prestación de los servicios de salud para los asegurados y o afiliados a POSITIVA, que accedan a los servicios habilitados del CONTRATISTA en calidad de asegurados, a los ramos: Administración de Riesgos Laborales ARL - por causa exclusiva de un accidente de trabajo, una enfermedad profesional, Accidentes Personales AP Educativo Generación Positiva, AP Colectivos, AP Corto Plazo, AP Individual, Planes de Salud complicaciones quirúrgicas, de cirugía estética y bariátrica y demás Ramos de Seguros autorizados a POSITIVA, encontrándose excluidos del presente contrato los servicios y todas aquellas actividades, procedimientos e intervenciones que no tengan por objeto contribuir al diagnóstico, tratamiento o rehabilitación de la patología derivada del siniestro o los servicios considerados como experimentales, cosméticos y suntuarios | G92: 2023-04-30 | H92: 4 | I92: 30/04/2025 | J92: 24.36666667 | K92: Invitación directa | L92: CargoAReserva | M92: Indeterminado | N92: Indeterminado | O92: NO | P92: 0 | Q92: 0 | R92: NA | S92: Gerencia de Abastecimiento Estratégico contratacion@positiva.gov.co PBX: (1)6502200 Ext: 10641 | T92: SI | U92: SI | V92: NA | W92: SI | X92: Pública clasificada | Y92: C65382023-Tipo de información Pública clasificada-PRESTACION DE SERVICIOS DE SALUD: EL CONTRATISTA se obliga con POSITIVA a la prestación de los servicios de salud para los asegurados y o afiliados a POSITIVA, que accedan a los servicios habilitados del CONTRATISTA en calidad de asegurados, a los ramos: Administración de Riesgos Laborales ARL - por causa exclusiva de un accidente de trabajo, una enfermedad profesional, Accidentes Personales AP Educativo Generación Positiva, AP Colectivos, AP Corto Plazo, AP Individual, Planes de Salud complicaciones quirúrgicas, de cirugía estética y bariátrica y demás Ramos de Seguros autorizados a POSITIVA, encontrándose excluidos del presente contrato los servicios y todas aquellas actividades, procedimientos e intervenciones que no tengan por objeto contribuir al diagnóstico, tratamiento o rehabilitación de la patología derivada del siniestro o los servicios considerados como experimentales, cosméticos y suntuarios
A93: TÉCNICA | B93: Médica | C93: NO | D93: C65392023 | E93: 85100000 | F93: PRESTACION DE SERVICIOS DE SALUD: EL CONTRATISTA se obliga con POSITIVA a la prestación de los servicios de salud para los asegurados y o afiliados a POSITIVA, que accedan a los servicios habilitados del CONTRATISTA en calidad de asegurados, a los ramos: Administración de Riesgos Laborales ARL - por causa exclusiva de un accidente de trabajo, una enfermedad profesional, Accidentes Personales AP Educativo Generación Positiva, AP Colectivos, AP Corto Plazo, AP Individual, Planes de Salud complicaciones quirúrgicas, de cirugía estética y bariátrica y demás Ramos de Seguros autorizados a POSITIVA, encontrándose excluidos del presente contrato los servicios y todas aquellas actividades, procedimientos e intervenciones que no tengan por objeto contribuir al diagnóstico, tratamiento o rehabilitación de la patología derivada del siniestro o los servicios considerados como experimentales, cosméticos y suntuarios | G93: 2023-04-30 | H93: 4 | I93: 30/04/2025 | J93: 24.36666667 | K93: Invitación directa | L93: CargoAReserva | M93: Indeterminado | N93: Indeterminado | O93: NO | P93: 0 | Q93: 0 | R93: NA | S93: Gerencia de Abastecimiento Estratégico contratacion@positiva.gov.co PBX: (1)6502200 Ext: 10641 | T93: SI | U93: SI | V93: NA | W93: SI | X93: Pública clasificada | Y93: C65392023-Tipo de información Pública clasificada-PRESTACION DE SERVICIOS DE SALUD: EL CONTRATISTA se obliga con POSITIVA a la prestación de los servicios de salud para los asegurados y o afiliados a POSITIVA, que accedan a los servicios habilitados del CONTRATISTA en calidad de asegurados, a los ramos: Administración de Riesgos Laborales ARL - por causa exclusiva de un accidente de trabajo, una enfermedad profesional, Accidentes Personales AP Educativo Generación Positiva, AP Colectivos, AP Corto Plazo, AP Individual, Planes de Salud complicaciones quirúrgicas, de cirugía estética y bariátrica y demás Ramos de Seguros autorizados a POSITIVA, encontrándose excluidos del presente contrato los servicios y todas aquellas actividades, procedimientos e intervenciones que no tengan por objeto contribuir al diagnóstico, tratamiento o rehabilitación de la patología derivada del siniestro o los servicios considerados como experimentales, cosméticos y suntuarios
A94: TÉCNICA | B94: Médica | C94: NO | D94: C65402023 | E94: 85100000 | F94: PRESTACION DE SERVICIOS DE SALUD: EL CONTRATISTA se obliga con POSITIVA a la prestación de los servicios de salud para los asegurados y o afiliados a POSITIVA, que accedan a los servicios habilitados del CONTRATISTA en calidad de asegurados, a los ramos: Administración de Riesgos Laborales ARL - por causa exclusiva de un accidente de trabajo, una enfermedad profesional, Accidentes Personales AP Educativo Generación Positiva, AP Colectivos, AP Corto Plazo, AP Individual, Planes de Salud complicaciones quirúrgicas, de cirugía estética y bariátrica y demás Ramos de Seguros autorizados a POSITIVA, encontrándose excluidos del presente contrato los servicios y todas aquellas actividades, procedimientos e intervenciones que no tengan por objeto contribuir al diagnóstico, tratamiento o rehabilitación de la patología derivada del siniestro o los servicios considerados como experimentales, cosméticos y suntuarios | G94: 2023-05-01 | H94: 5 | I94: 1/05/2025 | J94: 24.36666667 | K94: Invitación directa | L94: CargoAReserva | M94: Indeterminado | N94: Indeterminado | O94: NO | P94: 0 | Q94: 0 | R94: NA | S94: Gerencia de Abastecimiento Estratégico contratacion@positiva.gov.co PBX: (1)6502200 Ext: 10641 | T94: SI | U94: SI | V94: NA | W94: SI | X94: Pública clasificada | Y94: C65402023-Tipo de información Pública clasificada-PRESTACION DE SERVICIOS DE SALUD: EL CONTRATISTA se obliga con POSITIVA a la prestación de los servicios de salud para los asegurados y o afiliados a POSITIVA, que accedan a los servicios habilitados del CONTRATISTA en calidad de asegurados, a los ramos: Administración de Riesgos Laborales ARL - por causa exclusiva de un accidente de trabajo, una enfermedad profesional, Accidentes Personales AP Educativo Generación Positiva, AP Colectivos, AP Corto Plazo, AP Individual, Planes de Salud complicaciones quirúrgicas, de cirugía estética y bariátrica y demás Ramos de Seguros autorizados a POSITIVA, encontrándose excluidos del presente contrato los servicios y todas aquellas actividades, procedimientos e intervenciones que no tengan por objeto contribuir al diagnóstico, tratamiento o rehabilitación de la patología derivada del siniestro o los servicios considerados como experimentales, cosméticos y suntuarios
A95: TÉCNICA | B95: Médica | C95: NO | D95: C65412023 | E95: 85100000 | F95: PRESTACION DE SERVICIOS DE SALUD: EL CONTRATISTA se obliga con POSITIVA a la prestación de los servicios de salud para los asegurados y o afiliados a POSITIVA, que accedan a los servicios habilitados del CONTRATISTA en calidad de asegurados, a los ramos: Administración de Riesgos Laborales ARL - por causa exclusiva de un accidente de trabajo, una enfermedad profesional, Accidentes Personales AP Educativo Generación Positiva, AP Colectivos, AP Corto Plazo, AP Individual, Planes de Salud complicaciones quirúrgicas, de cirugía estética y bariátrica y demás Ramos de Seguros autorizados a POSITIVA, encontrándose excluidos del presente contrato los servicios y todas aquellas actividades, procedimientos e intervenciones que no tengan por objeto contribuir al diagnóstico, tratamiento o rehabilitación de la patología derivada del siniestro o los servicios considerados como experimentales, cosméticos y suntuarios | G95: 2023-05-03 | H95: 5 | I95: 3/05/2025 | J95: 24.36666667 | K95: Invitación directa | L95: CargoAReserva | M95: Indeterminado | N95: Indeterminado | O95: NO | P95: 0 | Q95: 0 | R95: NA | S95: Gerencia de Abastecimiento Estratégico contratacion@positiva.gov.co PBX: (1)6502200 Ext: 10641 | T95: SI | U95: SI | V95: NA | W95: SI | X95: Pública clasificada | Y95: C65412023-Tipo de información Pública clasificada-PRESTACION DE SERVICIOS DE SALUD: EL CONTRATISTA se obliga con POSITIVA a la prestación de los servicios de salud para los asegurados y o afiliados a POSITIVA, que accedan a los servicios habilitados del CONTRATISTA en calidad de asegurados, a los ramos: Administración de Riesgos Laborales ARL - por causa exclusiva de un accidente de trabajo, una enfermedad profesional, Accidentes Personales AP Educativo Generación Positiva, AP Colectivos, AP Corto Plazo, AP Individual, Planes de Salud complicaciones quirúrgicas, de cirugía estética y bariátrica y demás Ramos de Seguros autorizados a POSITIVA, encontrándose excluidos del presente contrato los servicios y todas aquellas actividades, procedimientos e intervenciones que no tengan por objeto contribuir al diagnóstico, tratamiento o rehabilitación de la patología derivada del siniestro o los servicios considerados como experimentales, cosméticos y suntuarios
A96: TÉCNICA | B96: Médica | C96: NO | D96: C65422023 | E96: 85100000 | F96: PRESTACION DE SERVICIOS DE SALUD: EL CONTRATISTA se obliga con POSITIVA a la prestación de los servicios de salud para los asegurados y o afiliados a POSITIVA, que accedan a los servicios habilitados del CONTRATISTA en calidad de asegurados, a los ramos: Administración de Riesgos Laborales ARL - por causa exclusiva de un accidente de trabajo, una enfermedad profesional, Accidentes Personales AP Educativo Generación Positiva, AP Colectivos, AP Corto Plazo, AP Individual, Planes de Salud complicaciones quirúrgicas, de cirugía estética y bariátrica y demás Ramos de Seguros autorizados a POSITIVA, encontrándose excluidos del presente contrato los servicios y todas aquellas actividades, procedimientos e intervenciones que no tengan por objeto contribuir al diagnóstico, tratamiento o rehabilitación de la patología derivada del siniestro o los servicios considerados como experimentales, cosméticos y suntuarios | G96: 2023-05-06 | H96: 5 | I96: 2028-05-06 | J96: 60.9 | K96: Invitación directa | L96: CargoAReserva | M96: Indeterminado | N96: Indeterminado | O96: NO | P96: 0 | Q96: 0 | R96: NA | S96: Gerencia de Abastecimiento Estratégico contratacion@positiva.gov.co PBX: (1)6502200 Ext: 10641 | T96: SI | U96: SI | V96: NA | W96: SI | X96: Pública clasificada | Y96: C65422023-Tipo de información Pública clasificada-PRESTACION DE SERVICIOS DE SALUD: EL CONTRATISTA se obliga con POSITIVA a la prestación de los servicios de salud para los asegurados y o afiliados a POSITIVA, que accedan a los servicios habilitados del CONTRATISTA en calidad de asegurados, a los ramos: Administración de Riesgos Laborales ARL - por causa exclusiva de un accidente de trabajo, una enfermedad profesional, Accidentes Personales AP Educativo Generación Positiva, AP Colectivos, AP Corto Plazo, AP Individual, Planes de Salud complicaciones quirúrgicas, de cirugía estética y bariátrica y demás Ramos de Seguros autorizados a POSITIVA, encontrándose excluidos del presente contrato los servicios y todas aquellas actividades, procedimientos e intervenciones que no tengan por objeto contribuir al diagnóstico, tratamiento o rehabilitación de la patología derivada del siniestro o los servicios considerados como experimentales, cosméticos y suntuarios
A97: TÉCNICA | B97: Médica | C97: NO | D97: C65432023 | E97: 85100000 | F97: PRESTACION DE SERVICIOS DE SALUD: EL CONTRATISTA se obliga con POSITIVA a la prestación de los servicios de salud para los asegurados y o afiliados a POSITIVA, que accedan a los servicios habilitados del CONTRATISTA en calidad de asegurados, a los ramos: Administración de Riesgos Laborales ARL - por causa exclusiva de un accidente de trabajo, una enfermedad profesional, Accidentes Personales AP Educativo Generación Positiva, AP Colectivos, AP Corto Plazo, AP Individual, Planes de Salud complicaciones quirúrgicas, de cirugía estética y bariátrica y demás Ramos de Seguros autorizados a POSITIVA, encontrándose excluidos del presente contrato los servicios y todas aquellas actividades, procedimientos e intervenciones que no tengan por objeto contribuir al diagnóstico, tratamiento o rehabilitación de la patología derivada del siniestro o los servicios considerados como experimentales, cosméticos y suntuarios | G97: 2023-05-11 | H97: 5 | I97: 11/05/2025 | J97: 24.36666667 | K97: Invitación directa | L97: CargoAReserva | M97: Indeterminado | N97: Indeterminado | O97: NO | P97: 0 | Q97: 0 | R97: NA | S97: Gerencia de Abastecimiento Estratégico contratacion@positiva.gov.co PBX: (1)6502200 Ext: 10641 | T97: SI | U97: SI | V97: NA | W97: SI | X97: Pública clasificada | Y97: C65432023-Tipo de información Pública clasificada-PRESTACION DE SERVICIOS DE SALUD: EL CONTRATISTA se obliga con POSITIVA a la prestación de los servicios de salud para los asegurados y o afiliados a POSITIVA, que accedan a los servicios habilitados del CONTRATISTA en calidad de asegurados, a los ramos: Administración de Riesgos Laborales ARL - por causa exclusiva de un accidente de trabajo, una enfermedad profesional, Accidentes Personales AP Educativo Generación Positiva, AP Colectivos, AP Corto Plazo, AP Individual, Planes de Salud complicaciones quirúrgicas, de cirugía estética y bariátrica y demás Ramos de Seguros autorizados a POSITIVA, encontrándose excluidos del presente contrato los servicios y todas aquellas actividades, procedimientos e intervenciones que no tengan por objeto contribuir al diagnóstico, tratamiento o rehabilitación de la patología derivada del siniestro o los servicios considerados como experimentales, cosméticos y suntuarios
A98: TÉCNICA | B98: Médica | C98: NO | D98: C65442023 | E98: 85100000 | F98: PRESTACION DE SERVICIOS DE SALUD: EL CONTRATISTA se obliga con POSITIVA a la prestación de los servicios de salud para los asegurados y o afiliados a POSITIVA, que accedan a los servicios habilitados del CONTRATISTA en calidad de asegurados, a los ramos: Administración de Riesgos Laborales ARL - por causa exclusiva de un accidente de trabajo, una enfermedad profesional, Accidentes Personales AP Educativo Generación Positiva, AP Colectivos, AP Corto Plazo, AP Individual, Planes de Salud complicaciones quirúrgicas, de cirugía estética y bariátrica y demás Ramos de Seguros autorizados a POSITIVA, encontrándose excluidos del presente contrato los servicios y todas aquellas actividades, procedimientos e intervenciones que no tengan por objeto contribuir al diagnóstico, tratamiento o rehabilitación de la patología derivada del siniestro o los servicios considerados como experimentales, cosméticos y suntuarios | G98: 2023-05-11 | H98: 5 | I98: 11/05/2026 | J98: 36.53333333 | K98: Invitación directa | L98: CargoAReserva | M98: Indeterminado | N98: Indeterminado | O98: NO | P98: 0 | Q98: 0 | R98: NA | S98: Gerencia de Abastecimiento Estratégico contratacion@positiva.gov.co PBX: (1)6502200 Ext: 10641 | T98: SI | U98: SI | V98: NA | W98: SI | X98: Pública clasificada | Y98: C65442023-Tipo de información Pública clasificada-PRESTACION DE SERVICIOS DE SALUD: EL CONTRATISTA se obliga con POSITIVA a la prestación de los servicios de salud para los asegurados y o afiliados a POSITIVA, que accedan a los servicios habilitados del CONTRATISTA en calidad de asegurados, a los ramos: Administración de Riesgos Laborales ARL - por causa exclusiva de un accidente de trabajo, una enfermedad profesional, Accidentes Personales AP Educativo Generación Positiva, AP Colectivos, AP Corto Plazo, AP Individual, Planes de Salud complicaciones quirúrgicas, de cirugía estética y bariátrica y demás Ramos de Seguros autorizados a POSITIVA, encontrándose excluidos del presente contrato los servicios y todas aquellas actividades, procedimientos e intervenciones que no tengan por objeto contribuir al diagnóstico, tratamiento o rehabilitación de la patología derivada del siniestro o los servicios considerados como experimentales, cosméticos y suntuarios
A99: TÉCNICA | B99: Médica | C99: NO | D99: C65452023 | E99: 85100000 | F99: PRESTACION DE SERVICIOS DE SALUD: EL CONTRATISTA se obliga con POSITIVA a la prestación de los servicios de salud para los asegurados y o afiliados a POSITIVA, que accedan a los servicios habilitados del CONTRATISTA en calidad de asegurados, a los ramos: Administración de Riesgos Laborales ARL - por causa exclusiva de un accidente de trabajo, una enfermedad profesional, Accidentes Personales AP Educativo Generación Positiva, AP Colectivos, AP Corto Plazo, AP Individual, Planes de Salud complicaciones quirúrgicas, de cirugía estética y bariátrica y demás Ramos de Seguros autorizados a POSITIVA, encontrándose excluidos del presente contrato los servicios y todas aquellas actividades, procedimientos e intervenciones que no tengan por objeto contribuir al diagnóstico, tratamiento o rehabilitación de la patología derivada del siniestro o los servicios considerados como experimentales, cosméticos y suntuarios | G99: 2023-05-12 | H99: 5 | I99: 12/05/2025 | J99: 24.36666667 | K99: Invitación directa | L99: CargoAReserva | M99: Indeterminado | N99: Indeterminado | O99: NO | P99: 0 | Q99: 0 | R99: NA | S99: Gerencia de Abastecimiento Estratégico contratacion@positiva.gov.co PBX: (1)6502200 Ext: 10641 | T99: SI | U99: SI | V99: NA | W99: SI | X99: Pública clasificada | Y99: C65452023-Tipo de información Pública clasificada-PRESTACION DE SERVICIOS DE SALUD: EL CONTRATISTA se obliga con POSITIVA a la prestación de los servicios de salud para los asegurados y o afiliados a POSITIVA, que accedan a los servicios habilitados del CONTRATISTA en calidad de asegurados, a los ramos: Administración de Riesgos Laborales ARL - por causa exclusiva de un accidente de trabajo, una enfermedad profesional, Accidentes Personales AP Educativo Generación Positiva, AP Colectivos, AP Corto Plazo, AP Individual, Planes de Salud complicaciones quirúrgicas, de cirugía estética y bariátrica y demás Ramos de Seguros autorizados a POSITIVA, encontrándose excluidos del presente contrato los servicios y todas aquellas actividades, procedimientos e intervenciones que no tengan por objeto contribuir al diagnóstico, tratamiento o rehabilitación de la patología derivada del siniestro o los servicios considerados como experimentales, cosméticos y suntuarios
A100: TÉCNICA | B100: Médica | C100: NO | D100: C65462023 | E100: 85100000 | F100: PRESTACION DE SERVICIOS DE SALUD: EL CONTRATISTA se obliga con POSITIVA a la prestación de los servicios de salud para los asegurados y o afiliados a POSITIVA, que accedan a los servicios habilitados del CONTRATISTA en calidad de asegurados, a los ramos: Administración de Riesgos Laborales ARL - por causa exclusiva de un accidente de trabajo, una enfermedad profesional, Accidentes Personales AP Educativo Generación Positiva, AP Colectivos, AP Corto Plazo, AP Individual, Planes de Salud complicaciones quirúrgicas, de cirugía estética y bariátrica y demás Ramos de Seguros autorizados a POSITIVA, encontrándose excluidos del presente contrato los servicios y todas aquellas actividades, procedimientos e intervenciones que no tengan por objeto contribuir al diagnóstico, tratamiento o rehabilitación de la patología derivada del siniestro o los servicios considerados como experimentales, cosméticos y suntuarios | G100: 2023-05-12 | H100: 5 | I100: 12/05/2025 | J100: 24.36666667 | K100: Invitación directa | L100: CargoAReserva | M100: Indeterminado | N100: Indeterminado | O100: NO | P100: 0 | Q100: 0 | R100: NA | S100: Gerencia de Abastecimiento Estratégico contratacion@positiva.gov.co PBX: (1)6502200 Ext: 10641 | T100: SI | U100: SI | V100: NA | W100: SI | X100: Pública clasificada | Y100: C65462023-Tipo de información Pública clasificada-PRESTACION DE SERVICIOS DE SALUD: EL CONTRATISTA se obliga con POSITIVA a la prestación de los servicios de salud para los asegurados y o afiliados a POSITIVA, que accedan a los servicios habilitados del CONTRATISTA en calidad de asegurados, a los ramos: Administración de Riesgos Laborales ARL - por causa exclusiva de un accidente de trabajo, una enfermedad profesional, Accidentes Personales AP Educativo Generación Positiva, AP Colectivos, AP Corto Plazo, AP Individual, Planes de Salud complicaciones quirúrgicas, de cirugía estética y bariátrica y demás Ramos de Seguros autorizados a POSITIVA, encontrándose excluidos del presente contrato los servicios y todas aquellas actividades, procedimientos e intervenciones que no tengan por objeto contribuir al diagnóstico, tratamiento o rehabilitación de la patología derivada del siniestro o los servicios considerados como experimentales, cosméticos y suntuarios
A101: TÉCNICA | B101: Médica | C101: NO | D101: C65472023 | E101: 85100000 | F101: PRESTACION DE SERVICIOS DE SALUD: EL CONTRATISTA se obliga con POSITIVA a la prestación de los servicios de salud para los asegurados y o afiliados a POSITIVA, que accedan a los servicios habilitados del CONTRATISTA en calidad de asegurados, a los ramos: Administración de Riesgos Laborales ARL - por causa exclusiva de un accidente de trabajo, una enfermedad profesional, Accidentes Personales AP Educativo Generación Positiva, AP Colectivos, AP Corto Plazo, AP Individual, Planes de Salud complicaciones quirúrgicas, de cirugía estética y bariátrica y demás Ramos de Seguros autorizados a POSITIVA, encontrándose excluidos del presente contrato los servicios y todas aquellas actividades, procedimientos e intervenciones que no tengan por objeto contribuir al diagnóstico, tratamiento o rehabilitación de la patología derivada del siniestro o los servicios considerados como experimentales, cosméticos y suntuarios | G101: 2023-05-16 | H101: 5 | I101: 16/05/2025 | J101: 24.36666667 | K101: Invitación directa | L101: CargoAReserva | M101: Indeterminado | N101: Indeterminado | O101: NO | P101: 0 | Q101: 0 | R101: NA | S101: Gerencia de Abastecimiento Estratégico contratacion@positiva.gov.co PBX: (1)6502200 Ext: 10641 | T101: SI | U101: SI | V101: NA | W101: SI | X101: Pública clasificada | Y101: C65472023-Tipo de información Pública clasificada-PRESTACION DE SERVICIOS DE SALUD: EL CONTRATISTA se obliga con POSITIVA a la prestación de los servicios de salud para los asegurados y o afiliados a POSITIVA, que accedan a los servicios habilitados del CONTRATISTA en calidad de asegurados, a los ramos: Administración de Riesgos Laborales ARL - por causa exclusiva de un accidente de trabajo, una enfermedad profesional, Accidentes Personales AP Educativo Generación Positiva, AP Colectivos, AP Corto Plazo, AP Individual, Planes de Salud complicaciones quirúrgicas, de cirugía estética y bariátrica y demás Ramos de Seguros autorizados a POSITIVA, encontrándose excluidos del presente contrato los servicios y todas aquellas actividades, procedimientos e intervenciones que no tengan por objeto contribuir al diagnóstico, tratamiento o rehabilitación de la patología derivada del siniestro o los servicios considerados como experimentales, cosméticos y suntuarios
A102: TÉCNICA | B102: Médica | C102: NO | D102: C65482023 | E102: 85100000 | F102: PRESTACION DE SERVICIOS DE SALUD: EL CONTRATISTA se obliga con POSITIVA a la prestación de los servicios de salud para los asegurados y o afiliados a POSITIVA, que accedan a los servicios habilitados del CONTRATISTA en calidad de asegurados, a los ramos: Administración de Riesgos Laborales ARL - por causa exclusiva de un accidente de trabajo, una enfermedad profesional, Accidentes Personales AP Educativo Generación Positiva, AP Colectivos, AP Corto Plazo, AP Individual, Planes de Salud complicaciones quirúrgicas, de cirugía estética y bariátrica y demás Ramos de Seguros autorizados a POSITIVA, encontrándose excluidos del presente contrato los servicios y todas aquellas actividades, procedimientos e intervenciones que no tengan por objeto contribuir al diagnóstico, tratamiento o rehabilitación de la patología derivada del siniestro o los servicios considerados como experimentales, cosméticos y suntuarios | G102: 2023-05-16 | H102: 5 | I102: 16/05/2025 | J102: 24.36666667 | K102: Invitación directa | L102: CargoAReserva | M102: Indeterminado | N102: Indeterminado | O102: NO | P102: 0 | Q102: 0 | R102: NA | S102: Gerencia de Abastecimiento Estratégico contratacion@positiva.gov.co PBX: (1)6502200 Ext: 10641 | T102: SI | U102: SI | V102: NA | W102: SI | X102: Pública clasificada | Y102: C65482023-Tipo de información Pública clasificada-PRESTACION DE SERVICIOS DE SALUD: EL CONTRATISTA se obliga con POSITIVA a la prestación de los servicios de salud para los asegurados y o afiliados a POSITIVA, que accedan a los servicios habilitados del CONTRATISTA en calidad de asegurados, a los ramos: Administración de Riesgos Laborales ARL - por causa exclusiva de un accidente de trabajo, una enfermedad profesional, Accidentes Personales AP Educativo Generación Positiva, AP Colectivos, AP Corto Plazo, AP Individual, Planes de Salud complicaciones quirúrgicas, de cirugía estética y bariátrica y demás Ramos de Seguros autorizados a POSITIVA, encontrándose excluidos del presente contrato los servicios y todas aquellas actividades, procedimientos e intervenciones que no tengan por objeto contribuir al diagnóstico, tratamiento o rehabilitación de la patología derivada del siniestro o los servicios considerados como experimentales, cosméticos y suntuarios
A103: TÉCNICA | B103: Médica | C103: NO | D103: C65492023 | E103: 85100000 | F103: PRESTACION DE SERVICIOS DE SALUD: EL CONTRATISTA se obliga con POSITIVA a la prestación de los servicios de salud para los asegurados y o afiliados a POSITIVA, que accedan a los servicios habilitados del CONTRATISTA en calidad de asegurados, a los ramos: Administración de Riesgos Laborales ARL - por causa exclusiva de un accidente de trabajo, una enfermedad profesional, Accidentes Personales AP Educativo Generación Positiva, AP Colectivos, AP Corto Plazo, AP Individual, Planes de Salud complicaciones quirúrgicas, de cirugía estética y bariátrica y demás Ramos de Seguros autorizados a POSITIVA, encontrándose excluidos del presente contrato los servicios y todas aquellas actividades, procedimientos e intervenciones que no tengan por objeto contribuir al diagnóstico, tratamiento o rehabilitación de la patología derivada del siniestro o los servicios considerados como experimentales, cosméticos y suntuarios | G103: 2023-05-16 | H103: 5 | I103: 16/05/2025 | J103: 24.36666667 | K103: Invitación directa | L103: CargoAReserva | M103: Indeterminado | N103: Indeterminado | O103: NO | P103: 0 | Q103: 0 | R103: NA | S103: Gerencia de Abastecimiento Estratégico contratacion@positiva.gov.co PBX: (1)6502200 Ext: 10641 | T103: SI | U103: SI | V103: NA | W103: SI | X103: Pública clasificada | Y103: C65492023-Tipo de información Pública clasificada-PRESTACION DE SERVICIOS DE SALUD: EL CONTRATISTA se obliga con POSITIVA a la prestación de los servicios de salud para los asegurados y o afiliados a POSITIVA, que accedan a los servicios habilitados del CONTRATISTA en calidad de asegurados, a los ramos: Administración de Riesgos Laborales ARL - por causa exclusiva de un accidente de trabajo, una enfermedad profesional, Accidentes Personales AP Educativo Generación Positiva, AP Colectivos, AP Corto Plazo, AP Individual, Planes de Salud complicaciones quirúrgicas, de cirugía estética y bariátrica y demás Ramos de Seguros autorizados a POSITIVA, encontrándose excluidos del presente contrato los servicios y todas aquellas actividades, procedimientos e intervenciones que no tengan por objeto contribuir al diagnóstico, tratamiento o rehabilitación de la patología derivada del siniestro o los servicios considerados como experimentales, cosméticos y suntuarios
A104: TÉCNICA | B104: Médica | C104: NO | D104: C65502023 | E104: 85100000 | F104: PRESTACION DE SERVICIOS DE SALUD: EL CONTRATISTA se obliga con POSITIVA a la prestación de los servicios de salud para los asegurados y o afiliados a POSITIVA, que accedan a los servicios habilitados del CONTRATISTA en calidad de asegurados, a los ramos: Administración de Riesgos Laborales ARL - por causa exclusiva de un accidente de trabajo, una enfermedad profesional, Accidentes Personales AP Educativo Generación Positiva, AP Colectivos, AP Corto Plazo, AP Individual, Planes de Salud complicaciones quirúrgicas, de cirugía estética y bariátrica y demás Ramos de Seguros autorizados a POSITIVA, encontrándose excluidos del presente contrato los servicios y todas aquellas actividades, procedimientos e intervenciones que no tengan por objeto contribuir al diagnóstico, tratamiento o rehabilitación de la patología derivada del siniestro o los servicios considerados como experimentales, cosméticos y suntuarios | G104: 2023-05-24 | H104: 5 | I104: 2028-05-24 | J104: 60.9 | K104: Invitación directa | L104: CargoAReserva | M104: Indeterminado | N104: Indeterminado | O104: NO | P104: 0 | Q104: 0 | R104: NA | S104: Gerencia de Abastecimiento Estratégico contratacion@positiva.gov.co PBX: (1)6502200 Ext: 10641 | T104: SI | U104: SI | V104: NA | W104: SI | X104: Pública clasificada | Y104: C65502023-Tipo de información Pública clasificada-PRESTACION DE SERVICIOS DE SALUD: EL CONTRATISTA se obliga con POSITIVA a la prestación de los servicios de salud para los asegurados y o afiliados a POSITIVA, que accedan a los servicios habilitados del CONTRATISTA en calidad de asegurados, a los ramos: Administración de Riesgos Laborales ARL - por causa exclusiva de un accidente de trabajo, una enfermedad profesional, Accidentes Personales AP Educativo Generación Positiva, AP Colectivos, AP Corto Plazo, AP Individual, Planes de Salud complicaciones quirúrgicas, de cirugía estética y bariátrica y demás Ramos de Seguros autorizados a POSITIVA, encontrándose excluidos del presente contrato los servicios y todas aquellas actividades, procedimientos e intervenciones que no tengan por objeto contribuir al diagnóstico, tratamiento o rehabilitación de la patología derivada del siniestro o los servicios considerados como experimentales, cosméticos y suntuarios
A105: TÉCNICA | B105: Médica | C105: NO | D105: C65512023 | E105: 85100000 | F105: PRESTACION DE SERVICIOS DE SALUD: EL CONTRATISTA se obliga con POSITIVA a la prestación de los servicios de salud para los asegurados y o afiliados a POSITIVA, que accedan a los servicios habilitados del CONTRATISTA en calidad de asegurados, a los ramos: Administración de Riesgos Laborales ARL - por causa exclusiva de un accidente de trabajo, una enfermedad profesional, Accidentes Personales AP Educativo Generación Positiva, AP Colectivos, AP Corto Plazo, AP Individual, Planes de Salud complicaciones quirúrgicas, de cirugía estética y bariátrica y demás Ramos de Seguros autorizados a POSITIVA, encontrándose excluidos del presente contrato los servicios y todas aquellas actividades, procedimientos e intervenciones que no tengan por objeto contribuir al diagnóstico, tratamiento o rehabilitación de la patología derivada del siniestro o los servicios considerados como experimentales, cosméticos y suntuarios | G105: 2023-05-24 | H105: 5 | I105: 24/05/2025 | J105: 24.36666667 | K105: Invitación directa | L105: CargoAReserva | M105: Indeterminado | N105: Indeterminado | O105: NO | P105: 0 | Q105: 0 | R105: NA | S105: Gerencia de Abastecimiento Estratégico contratacion@positiva.gov.co PBX: (1)6502200 Ext: 10641 | T105: SI | U105: SI | V105: NA | W105: SI | X105: Pública clasificada | Y105: C65512023-Tipo de información Pública clasificada-PRESTACION DE SERVICIOS DE SALUD: EL CONTRATISTA se obliga con POSITIVA a la prestación de los servicios de salud para los asegurados y o afiliados a POSITIVA, que accedan a los servicios habilitados del CONTRATISTA en calidad de asegurados, a los ramos: Administración de Riesgos Laborales ARL - por causa exclusiva de un accidente de trabajo, una enfermedad profesional, Accidentes Personales AP Educativo Generación Positiva, AP Colectivos, AP Corto Plazo, AP Individual, Planes de Salud complicaciones quirúrgicas, de cirugía estética y bariátrica y demás Ramos de Seguros autorizados a POSITIVA, encontrándose excluidos del presente contrato los servicios y todas aquellas actividades, procedimientos e intervenciones que no tengan por objeto contribuir al diagnóstico, tratamiento o rehabilitación de la patología derivada del siniestro o los servicios considerados como experimentales, cosméticos y suntuarios
A106: TÉCNICA | B106: Médica | C106: NO | D106: C65522023 | E106: 85100000 | F106: PRESTACION DE SERVICIOS DE SALUD: EL CONTRATISTA se obliga con POSITIVA a la prestación de los servicios de salud para los asegurados y o afiliados a POSITIVA, que accedan a los servicios habilitados del CONTRATISTA en calidad de asegurados, a los ramos: Administración de Riesgos Laborales ARL - por causa exclusiva de un accidente de trabajo, una enfermedad profesional, Accidentes Personales AP Educativo Generación Positiva, AP Colectivos, AP Corto Plazo, AP Individual, Planes de Salud complicaciones quirúrgicas, de cirugía estética y bariátrica y demás Ramos de Seguros autorizados a POSITIVA, encontrándose excluidos del presente contrato los servicios y todas aquellas actividades, procedimientos e intervenciones que no tengan por objeto contribuir al diagnóstico, tratamiento o rehabilitación de la patología derivada del siniestro o los servicios considerados como experimentales, cosméticos y suntuarios | G106: 2023-05-28 | H106: 5 | I106: 28/05/2025 | J106: 24.36666667 | K106: Invitación directa | L106: CargoAReserva | M106: Indeterminado | N106: Indeterminado | O106: NO | P106: 0 | Q106: 0 | R106: NA | S106: Gerencia de Abastecimiento Estratégico contratacion@positiva.gov.co PBX: (1)6502200 Ext: 10641 | T106: SI | U106: SI | V106: NA | W106: SI | X106: Pública clasificada | Y106: C65522023-Tipo de información Pública clasificada-PRESTACION DE SERVICIOS DE SALUD: EL CONTRATISTA se obliga con POSITIVA a la prestación de los servicios de salud para los asegurados y o afiliados a POSITIVA, que accedan a los servicios habilitados del CONTRATISTA en calidad de asegurados, a los ramos: Administración de Riesgos Laborales ARL - por causa exclusiva de un accidente de trabajo, una enfermedad profesional, Accidentes Personales AP Educativo Generación Positiva, AP Colectivos, AP Corto Plazo, AP Individual, Planes de Salud complicaciones quirúrgicas, de cirugía estética y bariátrica y demás Ramos de Seguros autorizados a POSITIVA, encontrándose excluidos del presente contrato los servicios y todas aquellas actividades, procedimientos e intervenciones que no tengan por objeto contribuir al diagnóstico, tratamiento o rehabilitación de la patología derivada del siniestro o los servicios considerados como experimentales, cosméticos y suntuarios
A107: TÉCNICA | B107: Médica | C107: NO | D107: C65532023 | E107: 85100000 | F107: PRESTACION DE SERVICIOS DE SALUD: EL CONTRATISTA se obliga con POSITIVA a la prestación de los servicios de salud para los asegurados y o afiliados a POSITIVA, que accedan a los servicios habilitados del CONTRATISTA en calidad de asegurados, a los ramos: Administración de Riesgos Laborales ARL - por causa exclusiva de un accidente de trabajo, una enfermedad profesional, Accidentes Personales AP Educativo Generación Positiva, AP Colectivos, AP Corto Plazo, AP Individual, Planes de Salud complicaciones quirúrgicas, de cirugía estética y bariátrica y demás Ramos de Seguros autorizados a POSITIVA, encontrándose excluidos del presente contrato los servicios y todas aquellas actividades, procedimientos e intervenciones que no tengan por objeto contribuir al diagnóstico, tratamiento o rehabilitación de la patología derivada del siniestro o los servicios considerados como experimentales, cosméticos y suntuarios | G107: 2023-05-29 | H107: 5 | I107: 29/05/2025 | J107: 24.36666667 | K107: Invitación directa | L107: CargoAReserva | M107: Indeterminado | N107: Indeterminado | O107: NO | P107: 0 | Q107: 0 | R107: NA | S107: Gerencia de Abastecimiento Estratégico contratacion@positiva.gov.co PBX: (1)6502200 Ext: 10641 | T107: SI | U107: SI | V107: NA | W107: SI | X107: Pública clasificada | Y107: C65532023-Tipo de información Pública clasificada-PRESTACION DE SERVICIOS DE SALUD: EL CONTRATISTA se obliga con POSITIVA a la prestación de los servicios de salud para los asegurados y o afiliados a POSITIVA, que accedan a los servicios habilitados del CONTRATISTA en calidad de asegurados, a los ramos: Administración de Riesgos Laborales ARL - por causa exclusiva de un accidente de trabajo, una enfermedad profesional, Accidentes Personales AP Educativo Generación Positiva, AP Colectivos, AP Corto Plazo, AP Individual, Planes de Salud complicaciones quirúrgicas, de cirugía estética y bariátrica y demás Ramos de Seguros autorizados a POSITIVA, encontrándose excluidos del presente contrato los servicios y todas aquellas actividades, procedimientos e intervenciones que no tengan por objeto contribuir al diagnóstico, tratamiento o rehabilitación de la patología derivada del siniestro o los servicios considerados como experimentales, cosméticos y suntuarios
A108: TÉCNICA | B108: Médica | C108: NO | D108: C65542023 | E108: 85100000 | F108: PRESTACION DE SERVICIOS DE SALUD: EL CONTRATISTA se obliga con POSITIVA a la prestación de los servicios de salud para los asegurados y o afiliados a POSITIVA, que accedan a los servicios habilitados del CONTRATISTA en calidad de asegurados, a los ramos: Administración de Riesgos Laborales ARL - por causa exclusiva de un accidente de trabajo, una enfermedad profesional, Accidentes Personales AP Educativo Generación Positiva, AP Colectivos, AP Corto Plazo, AP Individual, Planes de Salud complicaciones quirúrgicas, de cirugía estética y bariátrica y demás Ramos de Seguros autorizados a POSITIVA, encontrándose excluidos del presente contrato los servicios y todas aquellas actividades, procedimientos e intervenciones que no tengan por objeto contribuir al diagnóstico, tratamiento o rehabilitación de la patología derivada del siniestro o los servicios considerados como experimentales, cosméticos y suntuarios | G108: 2023-05-30 | H108: 5 | I108: 30/05/2025 | J108: 24.36666667 | K108: Invitación directa | L108: CargoAReserva | M108: Indeterminado | N108: Indeterminado | O108: NO | P108: 0 | Q108: 0 | R108: NA | S108: Gerencia de Abastecimiento Estratégico contratacion@positiva.gov.co PBX: (1)6502200 Ext: 10641 | T108: SI | U108: SI | V108: NA | W108: SI | X108: Pública clasificada | Y108: C65542023-Tipo de información Pública clasificada-PRESTACION DE SERVICIOS DE SALUD: EL CONTRATISTA se obliga con POSITIVA a la prestación de los servicios de salud para los asegurados y o afiliados a POSITIVA, que accedan a los servicios habilitados del CONTRATISTA en calidad de asegurados, a los ramos: Administración de Riesgos Laborales ARL - por causa exclusiva de un accidente de trabajo, una enfermedad profesional, Accidentes Personales AP Educativo Generación Positiva, AP Colectivos, AP Corto Plazo, AP Individual, Planes de Salud complicaciones quirúrgicas, de cirugía estética y bariátrica y demás Ramos de Seguros autorizados a POSITIVA, encontrándose excluidos del presente contrato los servicios y todas aquellas actividades, procedimientos e intervenciones que no tengan por objeto contribuir al diagnóstico, tratamiento o rehabilitación de la patología derivada del siniestro o los servicios considerados como experimentales, cosméticos y suntuarios
A109: TÉCNICA | B109: Médica | C109: NO | D109: C65552023 | E109: 85100000 | F109: PRESTACION DE SERVICIOS DE SALUD: EL CONTRATISTA se obliga con POSITIVA a la prestación de los servicios de salud para los asegurados y o afiliados a POSITIVA, que accedan a los servicios habilitados del CONTRATISTA en calidad de asegurados, a los ramos: Administración de Riesgos Laborales ARL - por causa exclusiva de un accidente de trabajo, una enfermedad profesional, Accidentes Personales AP Educativo Generación Positiva, AP Colectivos, AP Corto Plazo, AP Individual, Planes de Salud complicaciones quirúrgicas, de cirugía estética y bariátrica y demás Ramos de Seguros autorizados a POSITIVA, encontrándose excluidos del presente contrato los servicios y todas aquellas actividades, procedimientos e intervenciones que no tengan por objeto contribuir al diagnóstico, tratamiento o rehabilitación de la patología derivada del siniestro o los servicios considerados como experimentales, cosméticos y suntuarios | G109: 2023-05-30 | H109: 5 | I109: 30/05/2025 | J109: 24.36666667 | K109: Invitación directa | L109: CargoAReserva | M109: Indeterminado | N109: Indeterminado | O109: NO | P109: 0 | Q109: 0 | R109: NA | S109: Gerencia de Abastecimiento Estratégico contratacion@positiva.gov.co PBX: (1)6502200 Ext: 10641 | T109: SI | U109: SI | V109: NA | W109: SI | X109: Pública clasificada | Y109: C65552023-Tipo de información Pública clasificada-PRESTACION DE SERVICIOS DE SALUD: EL CONTRATISTA se obliga con POSITIVA a la prestación de los servicios de salud para los asegurados y o afiliados a POSITIVA, que accedan a los servicios habilitados del CONTRATISTA en calidad de asegurados, a los ramos: Administración de Riesgos Laborales ARL - por causa exclusiva de un accidente de trabajo, una enfermedad profesional, Accidentes Personales AP Educativo Generación Positiva, AP Colectivos, AP Corto Plazo, AP Individual, Planes de Salud complicaciones quirúrgicas, de cirugía estética y bariátrica y demás Ramos de Seguros autorizados a POSITIVA, encontrándose excluidos del presente contrato los servicios y todas aquellas actividades, procedimientos e intervenciones que no tengan por objeto contribuir al diagnóstico, tratamiento o rehabilitación de la patología derivada del siniestro o los servicios considerados como experimentales, cosméticos y suntuarios
A110: TÉCNICA | B110: Médica | C110: NO | D110: C65562023 | E110: 85100000 | F110: PRESTACION DE SERVICIOS DE SALUD: EL CONTRATISTA se obliga con POSITIVA a la prestación de los servicios de salud para los asegurados y o afiliados a POSITIVA, que accedan a los servicios habilitados del CONTRATISTA en calidad de asegurados, a los ramos: Administración de Riesgos Laborales ARL - por causa exclusiva de un accidente de trabajo, una enfermedad profesional, Accidentes Personales AP Educativo Generación Positiva, AP Colectivos, AP Corto Plazo, AP Individual, Planes de Salud complicaciones quirúrgicas, de cirugía estética y bariátrica y demás Ramos de Seguros autorizados a POSITIVA, encontrándose excluidos del presente contrato los servicios y todas aquellas actividades, procedimientos e intervenciones que no tengan por objeto contribuir al diagnóstico, tratamiento o rehabilitación de la patología derivada del siniestro o los servicios considerados como experimentales, cosméticos y suntuarios | G110: 2023-06-05 | H110: 6 | I110: 5/06/2025 | J110: 24.36666667 | K110: Invitación directa | L110: CargoAReserva | M110: Indeterminado | N110: Indeterminado | O110: NO | P110: 0 | Q110: 0 | R110: NA | S110: Gerencia de Abastecimiento Estratégico contratacion@positiva.gov.co PBX: (1)6502200 Ext: 10641 | T110: SI | U110: SI | V110: NA | W110: SI | X110: Pública clasificada | Y110: C65562023-Tipo de información Pública clasificada-PRESTACION DE SERVICIOS DE SALUD: EL CONTRATISTA se obliga con POSITIVA a la prestación de los servicios de salud para los asegurados y o afiliados a POSITIVA, que accedan a los servicios habilitados del CONTRATISTA en calidad de asegurados, a los ramos: Administración de Riesgos Laborales ARL - por causa exclusiva de un accidente de trabajo, una enfermedad profesional, Accidentes Personales AP Educativo Generación Positiva, AP Colectivos, AP Corto Plazo, AP Individual, Planes de Salud complicaciones quirúrgicas, de cirugía estética y bariátrica y demás Ramos de Seguros autorizados a POSITIVA, encontrándose excluidos del presente contrato los servicios y todas aquellas actividades, procedimientos e intervenciones que no tengan por objeto contribuir al diagnóstico, tratamiento o rehabilitación de la patología derivada del siniestro o los servicios considerados como experimentales, cosméticos y suntuarios
A111: TÉCNICA | B111: Médica | C111: NO | D111: C65572023 | E111: 85100000 | F111: PRESTACION DE SERVICIOS DE SALUD: EL CONTRATISTA se obliga con POSITIVA a la prestación de los servicios de salud para los asegurados y o afiliados a POSITIVA, que accedan a los servicios habilitados del CONTRATISTA en calidad de asegurados, a los ramos: Administración de Riesgos Laborales ARL - por causa exclusiva de un accidente de trabajo, una enfermedad profesional, Accidentes Personales AP Educativo Generación Positiva, AP Colectivos, AP Corto Plazo, AP Individual, Planes de Salud complicaciones quirúrgicas, de cirugía estética y bariátrica y demás Ramos de Seguros autorizados a POSITIVA, encontrándose excluidos del presente contrato los servicios y todas aquellas actividades, procedimientos e intervenciones que no tengan por objeto contribuir al diagnóstico, tratamiento o rehabilitación de la patología derivada del siniestro o los servicios considerados como experimentales, cosméticos y suntuarios | G111: 2023-06-05 | H111: 6 | I111: 5/06/2025 | J111: 24.36666667 | K111: Invitación directa | L111: CargoAReserva | M111: Indeterminado | N111: Indeterminado | O111: NO | P111: 0 | Q111: 0 | R111: NA | S111: Gerencia de Abastecimiento Estratégico contratacion@positiva.gov.co PBX: (1)6502200 Ext: 10641 | T111: SI | U111: SI | V111: NA | W111: SI | X111: Pública clasificada | Y111: C65572023-Tipo de información Pública clasificada-PRESTACION DE SERVICIOS DE SALUD: EL CONTRATISTA se obliga con POSITIVA a la prestación de los servicios de salud para los asegurados y o afiliados a POSITIVA, que accedan a los servicios habilitados del CONTRATISTA en calidad de asegurados, a los ramos: Administración de Riesgos Laborales ARL - por causa exclusiva de un accidente de trabajo, una enfermedad profesional, Accidentes Personales AP Educativo Generación Positiva, AP Colectivos, AP Corto Plazo, AP Individual, Planes de Salud complicaciones quirúrgicas, de cirugía estética y bariátrica y demás Ramos de Seguros autorizados a POSITIVA, encontrándose excluidos del presente contrato los servicios y todas aquellas actividades, procedimientos e intervenciones que no tengan por objeto contribuir al diagnóstico, tratamiento o rehabilitación de la patología derivada del siniestro o los servicios considerados como experimentales, cosméticos y suntuarios
A112: TÉCNICA | B112: Médica | C112: NO | D112: C65582023 | E112: 85100000 | F112: PRESTACION DE SERVICIOS DE SALUD: EL CONTRATISTA se obliga con POSITIVA a la prestación de los servicios de salud para los asegurados y o afiliados a POSITIVA, que accedan a los servicios habilitados del CONTRATISTA en calidad de asegurados, a los ramos: Administración de Riesgos Laborales ARL - por causa exclusiva de un accidente de trabajo, una enfermedad profesional, Accidentes Personales AP Educativo Generación Positiva, AP Colectivos, AP Corto Plazo, AP Individual, Planes de Salud complicaciones quirúrgicas, de cirugía estética y bariátrica y demás Ramos de Seguros autorizados a POSITIVA, encontrándose excluidos del presente contrato los servicios y todas aquellas actividades, procedimientos e intervenciones que no tengan por objeto contribuir al diagnóstico, tratamiento o rehabilitación de la patología derivada del siniestro o los servicios considerados como experimentales, cosméticos y suntuarios | G112: 2023-06-05 | H112: 6 | I112: 5/06/2025 | J112: 24.36666667 | K112: Invitación directa | L112: CargoAReserva | M112: Indeterminado | N112: Indeterminado | O112: NO | P112: 0 | Q112: 0 | R112: NA | S112: Gerencia de Abastecimiento Estratégico contratacion@positiva.gov.co PBX: (1)6502200 Ext: 10641 | T112: SI | U112: SI | V112: NA | W112: SI | X112: Pública clasificada | Y112: C65582023-Tipo de información Pública clasificada-PRESTACION DE SERVICIOS DE SALUD: EL CONTRATISTA se obliga con POSITIVA a la prestación de los servicios de salud para los asegurados y o afiliados a POSITIVA, que accedan a los servicios habilitados del CONTRATISTA en calidad de asegurados, a los ramos: Administración de Riesgos Laborales ARL - por causa exclusiva de un accidente de trabajo, una enfermedad profesional, Accidentes Personales AP Educativo Generación Positiva, AP Colectivos, AP Corto Plazo, AP Individual, Planes de Salud complicaciones quirúrgicas, de cirugía estética y bariátrica y demás Ramos de Seguros autorizados a POSITIVA, encontrándose excluidos del presente contrato los servicios y todas aquellas actividades, procedimientos e intervenciones que no tengan por objeto contribuir al diagnóstico, tratamiento o rehabilitación de la patología derivada del siniestro o los servicios considerados como experimentales, cosméticos y suntuarios
A113: TÉCNICA | B113: Médica | C113: NO | D113: C65592023 | E113: 85100000 | F113: PRESTACION DE SERVICIOS DE SALUD: EL CONTRATISTA se obliga con POSITIVA a la prestación de los servicios de salud para los asegurados y o afiliados a POSITIVA, que accedan a los servicios habilitados del CONTRATISTA en calidad de asegurados, a los ramos: Administración de Riesgos Laborales ARL - por causa exclusiva de un accidente de trabajo, una enfermedad profesional, Accidentes Personales AP Educativo Generación Positiva, AP Colectivos, AP Corto Plazo, AP Individual, Planes de Salud complicaciones quirúrgicas, de cirugía estética y bariátrica y demás Ramos de Seguros autorizados a POSITIVA, encontrándose excluidos del presente contrato los servicios y todas aquellas actividades, procedimientos e intervenciones que no tengan por objeto contribuir al diagnóstico, tratamiento o rehabilitación de la patología derivada del siniestro o los servicios considerados como experimentales, cosméticos y suntuarios | G113: 2023-06-06 | H113: 6 | I113: 6/06/2025 | J113: 24.36666667 | K113: Invitación directa | L113: CargoAReserva | M113: Indeterminado | N113: Indeterminado | O113: NO | P113: 0 | Q113: 0 | R113: NA | S113: Gerencia de Abastecimiento Estratégico contratacion@positiva.gov.co PBX: (1)6502200 Ext: 10641 | T113: SI | U113: SI | V113: NA | W113: SI | X113: Pública clasificada | Y113: C65592023-Tipo de información Pública clasificada-PRESTACION DE SERVICIOS DE SALUD: EL CONTRATISTA se obliga con POSITIVA a la prestación de los servicios de salud para los asegurados y o afiliados a POSITIVA, que accedan a los servicios habilitados del CONTRATISTA en calidad de asegurados, a los ramos: Administración de Riesgos Laborales ARL - por causa exclusiva de un accidente de trabajo, una enfermedad profesional, Accidentes Personales AP Educativo Generación Positiva, AP Colectivos, AP Corto Plazo, AP Individual, Planes de Salud complicaciones quirúrgicas, de cirugía estética y bariátrica y demás Ramos de Seguros autorizados a POSITIVA, encontrándose excluidos del presente contrato los servicios y todas aquellas actividades, procedimientos e intervenciones que no tengan por objeto contribuir al diagnóstico, tratamiento o rehabilitación de la patología derivada del siniestro o los servicios considerados como experimentales, cosméticos y suntuarios
A114: TÉCNICA | B114: Médica | C114: NO | D114: C65602023 | E114: 85100000 | F114: PRESTACION DE SERVICIOS DE SALUD: EL CONTRATISTA se obliga con POSITIVA a la prestación de los servicios de salud para los asegurados y o afiliados a POSITIVA, que accedan a los servicios habilitados del CONTRATISTA en calidad de asegurados, a los ramos: Administración de Riesgos Laborales ARL - por causa exclusiva de un accidente de trabajo, una enfermedad profesional, Accidentes Personales AP Educativo Generación Positiva, AP Colectivos, AP Corto Plazo, AP Individual, Planes de Salud complicaciones quirúrgicas, de cirugía estética y bariátrica y demás Ramos de Seguros autorizados a POSITIVA, encontrándose excluidos del presente contrato los servicios y todas aquellas actividades, procedimientos e intervenciones que no tengan por objeto contribuir al diagnóstico, tratamiento o rehabilitación de la patología derivada del siniestro o los servicios considerados como experimentales, cosméticos y suntuarios | G114: 2023-06-09 | H114: 6 | I114: 9/06/2025 | J114: 24.36666667 | K114: Invitación directa | L114: CargoAReserva | M114: Indeterminado | N114: Indeterminado | O114: NO | P114: 0 | Q114: 0 | R114: NA | S114: Gerencia de Abastecimiento Estratégico contratacion@positiva.gov.co PBX: (1)6502200 Ext: 10641 | T114: SI | U114: SI | V114: NA | W114: SI | X114: Pública clasificada | Y114: C65602023-Tipo de información Pública clasificada-PRESTACION DE SERVICIOS DE SALUD: EL CONTRATISTA se obliga con POSITIVA a la prestación de los servicios de salud para los asegurados y o afiliados a POSITIVA, que accedan a los servicios habilitados del CONTRATISTA en calidad de asegurados, a los ramos: Administración de Riesgos Laborales ARL - por causa exclusiva de un accidente de trabajo, una enfermedad profesional, Accidentes Personales AP Educativo Generación Positiva, AP Colectivos, AP Corto Plazo, AP Individual, Planes de Salud complicaciones quirúrgicas, de cirugía estética y bariátrica y demás Ramos de Seguros autorizados a POSITIVA, encontrándose excluidos del presente contrato los servicios y todas aquellas actividades, procedimientos e intervenciones que no tengan por objeto contribuir al diagnóstico, tratamiento o rehabilitación de la patología derivada del siniestro o los servicios considerados como experimentales, cosméticos y suntuarios
A115: TÉCNICA | B115: Médica | C115: NO | D115: C65612023 | E115: 85100000 | F115: PRESTACION DE SERVICIOS DE SALUD: EL CONTRATISTA se obliga con POSITIVA a la prestación de los servicios de salud para los asegurados y o afiliados a POSITIVA, que accedan a los servicios habilitados del CONTRATISTA en calidad de asegurados, a los ramos: Administración de Riesgos Laborales ARL - por causa exclusiva de un accidente de trabajo, una enfermedad profesional, Accidentes Personales AP Educativo Generación Positiva, AP Colectivos, AP Corto Plazo, AP Individual, Planes de Salud complicaciones quirúrgicas, de cirugía estética y bariátrica y demás Ramos de Seguros autorizados a POSITIVA, encontrándose excluidos del presente contrato los servicios y todas aquellas actividades, procedimientos e intervenciones que no tengan por objeto contribuir al diagnóstico, tratamiento o rehabilitación de la patología derivada del siniestro o los servicios considerados como experimentales, cosméticos y suntuarios | G115: 2023-06-14 | H115: 6 | I115: 14/06/2025 | J115: 24.36666667 | K115: Invitación directa | L115: CargoAReserva | M115: Indeterminado | N115: Indeterminado | O115: NO | P115: 0 | Q115: 0 | R115: NA | S115: Gerencia de Abastecimiento Estratégico contratacion@positiva.gov.co PBX: (1)6502200 Ext: 10641 | T115: SI | U115: SI | V115: NA | W115: SI | X115: Pública clasificada | Y115: C65612023-Tipo de información Pública clasificada-PRESTACION DE SERVICIOS DE SALUD: EL CONTRATISTA se obliga con POSITIVA a la prestación de los servicios de salud para los asegurados y o afiliados a POSITIVA, que accedan a los servicios habilitados del CONTRATISTA en calidad de asegurados, a los ramos: Administración de Riesgos Laborales ARL - por causa exclusiva de un accidente de trabajo, una enfermedad profesional, Accidentes Personales AP Educativo Generación Positiva, AP Colectivos, AP Corto Plazo, AP Individual, Planes de Salud complicaciones quirúrgicas, de cirugía estética y bariátrica y demás Ramos de Seguros autorizados a POSITIVA, encontrándose excluidos del presente contrato los servicios y todas aquellas actividades, procedimientos e intervenciones que no tengan por objeto contribuir al diagnóstico, tratamiento o rehabilitación de la patología derivada del siniestro o los servicios considerados como experimentales, cosméticos y suntuarios
A116: TÉCNICA | B116: Médica | C116: NO | D116: C65622023 | E116: 85100000 | F116: PRESTACION DE SERVICIOS DE SALUD: EL CONTRATISTA se obliga con POSITIVA a la prestación de los servicios de salud para los asegurados y o afiliados a POSITIVA, que accedan a los servicios habilitados del CONTRATISTA en calidad de asegurados, a los ramos: Administración de Riesgos Laborales ARL - por causa exclusiva de un accidente de trabajo, una enfermedad profesional, Accidentes Personales AP Educativo Generación Positiva, AP Colectivos, AP Corto Plazo, AP Individual, Planes de Salud complicaciones quirúrgicas, de cirugía estética y bariátrica y demás Ramos de Seguros autorizados a POSITIVA, encontrándose excluidos del presente contrato los servicios y todas aquellas actividades, procedimientos e intervenciones que no tengan por objeto contribuir al diagnóstico, tratamiento o rehabilitación de la patología derivada del siniestro o los servicios considerados como experimentales, cosméticos y suntuarios | G116: 2023-06-15 | H116: 6 | I116: 15/06/2025 | J116: 24.36666667 | K116: Invitación directa | L116: CargoAReserva | M116: Indeterminado | N116: Indeterminado | O116: NO | P116: 0 | Q116: 0 | R116: NA | S116: Gerencia de Abastecimiento Estratégico contratacion@positiva.gov.co PBX: (1)6502200 Ext: 10641 | T116: SI | U116: SI | V116: NA | W116: SI | X116: Pública clasificada | Y116: C65622023-Tipo de información Pública clasificada-PRESTACION DE SERVICIOS DE SALUD: EL CONTRATISTA se obliga con POSITIVA a la prestación de los servicios de salud para los asegurados y o afiliados a POSITIVA, que accedan a los servicios habilitados del CONTRATISTA en calidad de asegurados, a los ramos: Administración de Riesgos Laborales ARL - por causa exclusiva de un accidente de trabajo, una enfermedad profesional, Accidentes Personales AP Educativo Generación Positiva, AP Colectivos, AP Corto Plazo, AP Individual, Planes de Salud complicaciones quirúrgicas, de cirugía estética y bariátrica y demás Ramos de Seguros autorizados a POSITIVA, encontrándose excluidos del presente contrato los servicios y todas aquellas actividades, procedimientos e intervenciones que no tengan por objeto contribuir al diagnóstico, tratamiento o rehabilitación de la patología derivada del siniestro o los servicios considerados como experimentales, cosméticos y suntuarios
A117: TÉCNICA | B117: Médica | C117: NO | D117: C65632023 | E117: 85100000 | F117: PRESTACION DE SERVICIOS DE SALUD: EL CONTRATISTA se obliga con POSITIVA a la prestación de los servicios de salud para los asegurados y o afiliados a POSITIVA, que accedan a los servicios habilitados del CONTRATISTA en calidad de asegurados, a los ramos: Administración de Riesgos Laborales ARL - por causa exclusiva de un accidente de trabajo, una enfermedad profesional, Accidentes Personales AP Educativo Generación Positiva, AP Colectivos, AP Corto Plazo, AP Individual, Planes de Salud complicaciones quirúrgicas, de cirugía estética y bariátrica y demás Ramos de Seguros autorizados a POSITIVA, encontrándose excluidos del presente contrato los servicios y todas aquellas actividades, procedimientos e intervenciones que no tengan por objeto contribuir al diagnóstico, tratamiento o rehabilitación de la patología derivada del siniestro o los servicios considerados como experimentales, cosméticos y suntuarios | G117: 2023-06-15 | H117: 6 | I117: 15/06/2025 | J117: 24.36666667 | K117: Invitación directa | L117: CargoAReserva | M117: Indeterminado | N117: Indeterminado | O117: NO | P117: 0 | Q117: 0 | R117: NA | S117: Gerencia de Abastecimiento Estratégico contratacion@positiva.gov.co PBX: (1)6502200 Ext: 10641 | T117: SI | U117: SI | V117: NA | W117: SI | X117: Pública clasificada | Y117: C65632023-Tipo de información Pública clasificada-PRESTACION DE SERVICIOS DE SALUD: EL CONTRATISTA se obliga con POSITIVA a la prestación de los servicios de salud para los asegurados y o afiliados a POSITIVA, que accedan a los servicios habilitados del CONTRATISTA en calidad de asegurados, a los ramos: Administración de Riesgos Laborales ARL - por causa exclusiva de un accidente de trabajo, una enfermedad profesional, Accidentes Personales AP Educativo Generación Positiva, AP Colectivos, AP Corto Plazo, AP Individual, Planes de Salud complicaciones quirúrgicas, de cirugía estética y bariátrica y demás Ramos de Seguros autorizados a POSITIVA, encontrándose excluidos del presente contrato los servicios y todas aquellas actividades, procedimientos e intervenciones que no tengan por objeto contribuir al diagnóstico, tratamiento o rehabilitación de la patología derivada del siniestro o los servicios considerados como experimentales, cosméticos y suntuarios
A118: TÉCNICA | B118: Médica | C118: NO | D118: C65642023 | E118: 85100000 | F118: PRESTACION DE SERVICIOS DE SALUD: EL CONTRATISTA se obliga con POSITIVA a la prestación de los servicios de salud para los asegurados y o afiliados a POSITIVA, que accedan a los servicios habilitados del CONTRATISTA en calidad de asegurados, a los ramos: Administración de Riesgos Laborales ARL - por causa exclusiva de un accidente de trabajo, una enfermedad profesional, Accidentes Personales AP Educativo Generación Positiva, AP Colectivos, AP Corto Plazo, AP Individual, Planes de Salud complicaciones quirúrgicas, de cirugía estética y bariátrica y demás Ramos de Seguros autorizados a POSITIVA, encontrándose excluidos del presente contrato los servicios y todas aquellas actividades, procedimientos e intervenciones que no tengan por objeto contribuir al diagnóstico, tratamiento o rehabilitación de la patología derivada del siniestro o los servicios considerados como experimentales, cosméticos y suntuarios | G118: 2023-06-16 | H118: 6 | I118: 16/06/2025 | J118: 24.36666667 | K118: Invitación directa | L118: CargoAReserva | M118: Indeterminado | N118: Indeterminado | O118: NO | P118: 0 | Q118: 0 | R118: NA | S118: Gerencia de Abastecimiento Estratégico contratacion@positiva.gov.co PBX: (1)6502200 Ext: 10641 | T118: SI | U118: SI | V118: NA | W118: SI | X118: Pública clasificada | Y118: C65642023-Tipo de información Pública clasificada-PRESTACION DE SERVICIOS DE SALUD: EL CONTRATISTA se obliga con POSITIVA a la prestación de los servicios de salud para los asegurados y o afiliados a POSITIVA, que accedan a los servicios habilitados del CONTRATISTA en calidad de asegurados, a los ramos: Administración de Riesgos Laborales ARL - por causa exclusiva de un accidente de trabajo, una enfermedad profesional, Accidentes Personales AP Educativo Generación Positiva, AP Colectivos, AP Corto Plazo, AP Individual, Planes de Salud complicaciones quirúrgicas, de cirugía estética y bariátrica y demás Ramos de Seguros autorizados a POSITIVA, encontrándose excluidos del presente contrato los servicios y todas aquellas actividades, procedimientos e intervenciones que no tengan por objeto contribuir al diagnóstico, tratamiento o rehabilitación de la patología derivada del siniestro o los servicios considerados como experimentales, cosméticos y suntuarios
A119: TÉCNICA | B119: Médica | C119: NO | D119: C65652023 | E119: 85100000 | F119: PRESTACION DE SERVICIOS DE SALUD: EL CONTRATISTA se obliga con POSITIVA a la prestación de los servicios de salud para los asegurados y o afiliados a POSITIVA, que accedan a los servicios habilitados del CONTRATISTA en calidad de asegurados, a los ramos: Administración de Riesgos Laborales ARL - por causa exclusiva de un accidente de trabajo, una enfermedad profesional, Accidentes Personales AP Educativo Generación Positiva, AP Colectivos, AP Corto Plazo, AP Individual, Planes de Salud complicaciones quirúrgicas, de cirugía estética y bariátrica y demás Ramos de Seguros autorizados a POSITIVA, encontrándose excluidos del presente contrato los servicios y todas aquellas actividades, procedimientos e intervenciones que no tengan por objeto contribuir al diagnóstico, tratamiento o rehabilitación de la patología derivada del siniestro o los servicios considerados como experimentales, cosméticos y suntuarios | G119: 2023-06-17 | H119: 6 | I119: 17/06/2025 | J119: 24.36666667 | K119: Invitación directa | L119: CargoAReserva | M119: Indeterminado | N119: Indeterminado | O119: NO | P119: 0 | Q119: 0 | R119: NA | S119: Gerencia de Abastecimiento Estratégico contratacion@positiva.gov.co PBX: (1)6502200 Ext: 10641 | T119: SI | U119: SI | V119: NA | W119: SI | X119: Pública clasificada | Y119: C65652023-Tipo de información Pública clasificada-PRESTACION DE SERVICIOS DE SALUD: EL CONTRATISTA se obliga con POSITIVA a la prestación de los servicios de salud para los asegurados y o afiliados a POSITIVA, que accedan a los servicios habilitados del CONTRATISTA en calidad de asegurados, a los ramos: Administración de Riesgos Laborales ARL - por causa exclusiva de un accidente de trabajo, una enfermedad profesional, Accidentes Personales AP Educativo Generación Positiva, AP Colectivos, AP Corto Plazo, AP Individual, Planes de Salud complicaciones quirúrgicas, de cirugía estética y bariátrica y demás Ramos de Seguros autorizados a POSITIVA, encontrándose excluidos del presente contrato los servicios y todas aquellas actividades, procedimientos e intervenciones que no tengan por objeto contribuir al diagnóstico, tratamiento o rehabilitación de la patología derivada del siniestro o los servicios considerados como experimentales, cosméticos y suntuarios
A120: TÉCNICA | B120: Médica | C120: NO | D120: C65662023 | E120: 85100000 | F120: PRESTACION DE SERVICIOS DE SALUD: EL CONTRATISTA se obliga con POSITIVA a la prestación de los servicios de salud para los asegurados y o afiliados a POSITIVA, que accedan a los servicios habilitados del CONTRATISTA en calidad de asegurados, a los ramos: Administración de Riesgos Laborales ARL - por causa exclusiva de un accidente de trabajo, una enfermedad profesional, Accidentes Personales AP Educativo Generación Positiva, AP Colectivos, AP Corto Plazo, AP Individual, Planes de Salud complicaciones quirúrgicas, de cirugía estética y bariátrica y demás Ramos de Seguros autorizados a POSITIVA, encontrándose excluidos del presente contrato los servicios y todas aquellas actividades, procedimientos e intervenciones que no tengan por objeto contribuir al diagnóstico, tratamiento o rehabilitación de la patología derivada del siniestro o los servicios considerados como experimentales, cosméticos y suntuarios | G120: 2023-06-26 | H120: 6 | I120: 26/06/2025 | J120: 24.36666667 | K120: Invitación directa | L120: CargoAReserva | M120: Indeterminado | N120: Indeterminado | O120: NO | P120: 0 | Q120: 0 | R120: NA | S120: Gerencia de Abastecimiento Estratégico contratacion@positiva.gov.co PBX: (1)6502200 Ext: 10641 | T120: SI | U120: SI | V120: NA | W120: SI | X120: Pública clasificada | Y120: C65662023-Tipo de información Pública clasificada-PRESTACION DE SERVICIOS DE SALUD: EL CONTRATISTA se obliga con POSITIVA a la prestación de los servicios de salud para los asegurados y o afiliados a POSITIVA, que accedan a los servicios habilitados del CONTRATISTA en calidad de asegurados, a los ramos: Administración de Riesgos Laborales ARL - por causa exclusiva de un accidente de trabajo, una enfermedad profesional, Accidentes Personales AP Educativo Generación Positiva, AP Colectivos, AP Corto Plazo, AP Individual, Planes de Salud complicaciones quirúrgicas, de cirugía estética y bariátrica y demás Ramos de Seguros autorizados a POSITIVA, encontrándose excluidos del presente contrato los servicios y todas aquellas actividades, procedimientos e intervenciones que no tengan por objeto contribuir al diagnóstico, tratamiento o rehabilitación de la patología derivada del siniestro o los servicios considerados como experimentales, cosméticos y suntuarios
A121: TÉCNICA | B121: Médica | C121: NO | D121: C65672023 | E121: 85100000 | F121: PRESTACION DE SERVICIOS DE SALUD: EL CONTRATISTA se obliga con POSITIVA a la prestación de los servicios de salud para los asegurados y o afiliados a POSITIVA, que accedan a los servicios habilitados del CONTRATISTA en calidad de asegurados, a los ramos: Administración de Riesgos Laborales ARL - por causa exclusiva de un accidente de trabajo, una enfermedad profesional, Accidentes Personales AP Educativo Generación Positiva, AP Colectivos, AP Corto Plazo, AP Individual, Planes de Salud complicaciones quirúrgicas, de cirugía estética y bariátrica y demás Ramos de Seguros autorizados a POSITIVA, encontrándose excluidos del presente contrato los servicios y todas aquellas actividades, procedimientos e intervenciones que no tengan por objeto contribuir al diagnóstico, tratamiento o rehabilitación de la patología derivada del siniestro o los servicios considerados como experimentales, cosméticos y suntuarios | G121: 2023-06-27 | H121: 6 | I121: 27/06/2025 | J121: 24.36666667 | K121: Invitación directa | L121: CargoAReserva | M121: Indeterminado | N121: Indeterminado | O121: NO | P121: 0 | Q121: 0 | R121: NA | S121: Gerencia de Abastecimiento Estratégico contratacion@positiva.gov.co PBX: (1)6502200 Ext: 10641 | T121: SI | U121: SI | V121: NA | W121: SI | X121: Pública clasificada | Y121: C65672023-Tipo de información Pública clasificada-PRESTACION DE SERVICIOS DE SALUD: EL CONTRATISTA se obliga con POSITIVA a la prestación de los servicios de salud para los asegurados y o afiliados a POSITIVA, que accedan a los servicios habilitados del CONTRATISTA en calidad de asegurados, a los ramos: Administración de Riesgos Laborales ARL - por causa exclusiva de un accidente de trabajo, una enfermedad profesional, Accidentes Personales AP Educativo Generación Positiva, AP Colectivos, AP Corto Plazo, AP Individual, Planes de Salud complicaciones quirúrgicas, de cirugía estética y bariátrica y demás Ramos de Seguros autorizados a POSITIVA, encontrándose excluidos del presente contrato los servicios y todas aquellas actividades, procedimientos e intervenciones que no tengan por objeto contribuir al diagnóstico, tratamiento o rehabilitación de la patología derivada del siniestro o los servicios considerados como experimentales, cosméticos y suntuarios
A122: TÉCNICA | B122: Médica | C122: NO | D122: C65682023 | E122: 85100000 | F122: PRESTACION DE SERVICIOS DE SALUD: EL CONTRATISTA se obliga con POSITIVA a la prestación de los servicios de salud para los asegurados y o afiliados a POSITIVA, que accedan a los servicios habilitados del CONTRATISTA en calidad de asegurados, a los ramos: Administración de Riesgos Laborales ARL - por causa exclusiva de un accidente de trabajo, una enfermedad profesional, Accidentes Personales AP Educativo Generación Positiva, AP Colectivos, AP Corto Plazo, AP Individual, Planes de Salud complicaciones quirúrgicas, de cirugía estética y bariátrica y demás Ramos de Seguros autorizados a POSITIVA, encontrándose excluidos del presente contrato los servicios y todas aquellas actividades, procedimientos e intervenciones que no tengan por objeto contribuir al diagnóstico, tratamiento o rehabilitación de la patología derivada del siniestro o los servicios considerados como experimentales, cosméticos y suntuarios | G122: 2023-07-10 | H122: 7 | I122: 10/07/2025 | J122: 24.36666667 | K122: Invitación directa | L122: CargoAReserva | M122: Indeterminado | N122: Indeterminado | O122: NO | P122: 0 | Q122: 0 | R122: NA | S122: Gerencia de Abastecimiento Estratégico contratacion@positiva.gov.co PBX: (1)6502200 Ext: 10641 | T122: SI | U122: SI | V122: NA | W122: SI | X122: Pública clasificada | Y122: C65682023-Tipo de información Pública clasificada-PRESTACION DE SERVICIOS DE SALUD: EL CONTRATISTA se obliga con POSITIVA a la prestación de los servicios de salud para los asegurados y o afiliados a POSITIVA, que accedan a los servicios habilitados del CONTRATISTA en calidad de asegurados, a los ramos: Administración de Riesgos Laborales ARL - por causa exclusiva de un accidente de trabajo, una enfermedad profesional, Accidentes Personales AP Educativo Generación Positiva, AP Colectivos, AP Corto Plazo, AP Individual, Planes de Salud complicaciones quirúrgicas, de cirugía estética y bariátrica y demás Ramos de Seguros autorizados a POSITIVA, encontrándose excluidos del presente contrato los servicios y todas aquellas actividades, procedimientos e intervenciones que no tengan por objeto contribuir al diagnóstico, tratamiento o rehabilitación de la patología derivada del siniestro o los servicios considerados como experimentales, cosméticos y suntuarios
A123: TÉCNICA | B123: Médica | C123: NO | D123: C65692023 | E123: 85100000 | F123: PRESTACION DE SERVICIOS DE SALUD: EL CONTRATISTA se obliga con POSITIVA a la prestación de los servicios de salud para los asegurados y o afiliados a POSITIVA, que accedan a los servicios habilitados del CONTRATISTA en calidad de asegurados, a los ramos: Administración de Riesgos Laborales ARL - por causa exclusiva de un accidente de trabajo, una enfermedad profesional, Accidentes Personales AP Educativo Generación Positiva, AP Colectivos, AP Corto Plazo, AP Individual, Planes de Salud complicaciones quirúrgicas, de cirugía estética y bariátrica y demás Ramos de Seguros autorizados a POSITIVA, encontrándose excluidos del presente contrato los servicios y todas aquellas actividades, procedimientos e intervenciones que no tengan por objeto contribuir al diagnóstico, tratamiento o rehabilitación de la patología derivada del siniestro o los servicios considerados como experimentales, cosméticos y suntuarios | G123: 2023-07-10 | H123: 7 | I123: 10/07/2026 | J123: 36.53333333 | K123: Invitación directa | L123: CargoAReserva | M123: Indeterminado | N123: Indeterminado | O123: NO | P123: 0 | Q123: 0 | R123: NA | S123: Gerencia de Abastecimiento Estratégico contratacion@positiva.gov.co PBX: (1)6502200 Ext: 10641 | T123: SI | U123: SI | V123: NA | W123: SI | X123: Pública clasificada | Y123: C65692023-Tipo de información Pública clasificada-PRESTACION DE SERVICIOS DE SALUD: EL CONTRATISTA se obliga con POSITIVA a la prestación de los servicios de salud para los asegurados y o afiliados a POSITIVA, que accedan a los servicios habilitados del CONTRATISTA en calidad de asegurados, a los ramos: Administración de Riesgos Laborales ARL - por causa exclusiva de un accidente de trabajo, una enfermedad profesional, Accidentes Personales AP Educativo Generación Positiva, AP Colectivos, AP Corto Plazo, AP Individual, Planes de Salud complicaciones quirúrgicas, de cirugía estética y bariátrica y demás Ramos de Seguros autorizados a POSITIVA, encontrándose excluidos del presente contrato los servicios y todas aquellas actividades, procedimientos e intervenciones que no tengan por objeto contribuir al diagnóstico, tratamiento o rehabilitación de la patología derivada del siniestro o los servicios considerados como experimentales, cosméticos y suntuarios
A124: TÉCNICA | B124: Médica | C124: NO | D124: C65702023 | E124: 85100000 | F124: PRESTACION DE SERVICIOS DE SALUD: EL CONTRATISTA se obliga con POSITIVA a la prestación de los servicios de salud para los asegurados y o afiliados a POSITIVA, que accedan a los servicios habilitados del CONTRATISTA en calidad de asegurados, a los ramos: Administración de Riesgos Laborales ARL - por causa exclusiva de un accidente de trabajo, una enfermedad profesional, Accidentes Personales AP Educativo Generación Positiva, AP Colectivos, AP Corto Plazo, AP Individual, Planes de Salud complicaciones quirúrgicas, de cirugía estética y bariátrica y demás Ramos de Seguros autorizados a POSITIVA, encontrándose excluidos del presente contrato los servicios y todas aquellas actividades, procedimientos e intervenciones que no tengan por objeto contribuir al diagnóstico, tratamiento o rehabilitación de la patología derivada del siniestro o los servicios considerados como experimentales, cosméticos y suntuarios | G124: 2023-07-10 | H124: 7 | I124: 10/07/2025 | J124: 24.36666667 | K124: Invitación directa | L124: CargoAReserva | M124: Indeterminado | N124: Indeterminado | O124: NO | P124: 0 | Q124: 0 | R124: NA | S124: Gerencia de Abastecimiento Estratégico contratacion@positiva.gov.co PBX: (1)6502200 Ext: 10641 | T124: SI | U124: SI | V124: NA | W124: SI | X124: Pública clasificada | Y124: C65702023-Tipo de información Pública clasificada-PRESTACION DE SERVICIOS DE SALUD: EL CONTRATISTA se obliga con POSITIVA a la prestación de los servicios de salud para los asegurados y o afiliados a POSITIVA, que accedan a los servicios habilitados del CONTRATISTA en calidad de asegurados, a los ramos: Administración de Riesgos Laborales ARL - por causa exclusiva de un accidente de trabajo, una enfermedad profesional, Accidentes Personales AP Educativo Generación Positiva, AP Colectivos, AP Corto Plazo, AP Individual, Planes de Salud complicaciones quirúrgicas, de cirugía estética y bariátrica y demás Ramos de Seguros autorizados a POSITIVA, encontrándose excluidos del presente contrato los servicios y todas aquellas actividades, procedimientos e intervenciones que no tengan por objeto contribuir al diagnóstico, tratamiento o rehabilitación de la patología derivada del siniestro o los servicios considerados como experimentales, cosméticos y suntuarios
A125: TÉCNICA | B125: Médica | C125: NO | D125: C65712023 | E125: 85100000 | F125: PRESTACION DE SERVICIOS DE SALUD: EL CONTRATISTA se obliga con POSITIVA a la prestación de los servicios de salud para los asegurados y o afiliados a POSITIVA, que accedan a los servicios habilitados del CONTRATISTA en calidad de asegurados, a los ramos: Administración de Riesgos Laborales ARL - por causa exclusiva de un accidente de trabajo, una enfermedad profesional, Accidentes Personales AP Educativo Generación Positiva, AP Colectivos, AP Corto Plazo, AP Individual, Planes de Salud complicaciones quirúrgicas, de cirugía estética y bariátrica y demás Ramos de Seguros autorizados a POSITIVA, encontrándose excluidos del presente contrato los servicios y todas aquellas actividades, procedimientos e intervenciones que no tengan por objeto contribuir al diagnóstico, tratamiento o rehabilitación de la patología derivada del siniestro o los servicios considerados como experimentales, cosméticos y suntuarios | G125: 2023-07-10 | H125: 7 | I125: 10/07/2025 | J125: 24.36666667 | K125: Invitación directa | L125: CargoAReserva | M125: Indeterminado | N125: Indeterminado | O125: NO | P125: 0 | Q125: 0 | R125: NA | S125: Gerencia de Abastecimiento Estratégico contratacion@positiva.gov.co PBX: (1)6502200 Ext: 10641 | T125: SI | U125: SI | V125: NA | W125: SI | X125: Pública clasificada | Y125: C65712023-Tipo de información Pública clasificada-PRESTACION DE SERVICIOS DE SALUD: EL CONTRATISTA se obliga con POSITIVA a la prestación de los servicios de salud para los asegurados y o afiliados a POSITIVA, que accedan a los servicios habilitados del CONTRATISTA en calidad de asegurados, a los ramos: Administración de Riesgos Laborales ARL - por causa exclusiva de un accidente de trabajo, una enfermedad profesional, Accidentes Personales AP Educativo Generación Positiva, AP Colectivos, AP Corto Plazo, AP Individual, Planes de Salud complicaciones quirúrgicas, de cirugía estética y bariátrica y demás Ramos de Seguros autorizados a POSITIVA, encontrándose excluidos del presente contrato los servicios y todas aquellas actividades, procedimientos e intervenciones que no tengan por objeto contribuir al diagnóstico, tratamiento o rehabilitación de la patología derivada del siniestro o los servicios considerados como experimentales, cosméticos y suntuarios
A126: TÉCNICA | B126: Médica | C126: NO | D126: C65722023 | E126: 85100000 | F126: PRESTACION DE SERVICIOS DE SALUD: EL CONTRATISTA se obliga con POSITIVA a la prestación de los servicios de salud para los asegurados y o afiliados a POSITIVA, que accedan a los servicios habilitados del CONTRATISTA en calidad de asegurados, a los ramos: Administración de Riesgos Laborales ARL - por causa exclusiva de un accidente de trabajo, una enfermedad profesional, Accidentes Personales AP Educativo Generación Positiva, AP Colectivos, AP Corto Plazo, AP Individual, Planes de Salud complicaciones quirúrgicas, de cirugía estética y bariátrica y demás Ramos de Seguros autorizados a POSITIVA, encontrándose excluidos del presente contrato los servicios y todas aquellas actividades, procedimientos e intervenciones que no tengan por objeto contribuir al diagnóstico, tratamiento o rehabilitación de la patología derivada del siniestro o los servicios considerados como experimentales, cosméticos y suntuarios | G126: 2023-07-15 | H126: 7 | I126: 15/07/2025 | J126: 24.36666667 | K126: Invitación directa | L126: CargoAReserva | M126: Indeterminado | N126: Indeterminado | O126: NO | P126: 0 | Q126: 0 | R126: NA | S126: Gerencia de Abastecimiento Estratégico contratacion@positiva.gov.co PBX: (1)6502200 Ext: 10641 | T126: SI | U126: SI | V126: NA | W126: SI | X126: Pública clasificada | Y126: C65722023-Tipo de información Pública clasificada-PRESTACION DE SERVICIOS DE SALUD: EL CONTRATISTA se obliga con POSITIVA a la prestación de los servicios de salud para los asegurados y o afiliados a POSITIVA, que accedan a los servicios habilitados del CONTRATISTA en calidad de asegurados, a los ramos: Administración de Riesgos Laborales ARL - por causa exclusiva de un accidente de trabajo, una enfermedad profesional, Accidentes Personales AP Educativo Generación Positiva, AP Colectivos, AP Corto Plazo, AP Individual, Planes de Salud complicaciones quirúrgicas, de cirugía estética y bariátrica y demás Ramos de Seguros autorizados a POSITIVA, encontrándose excluidos del presente contrato los servicios y todas aquellas actividades, procedimientos e intervenciones que no tengan por objeto contribuir al diagnóstico, tratamiento o rehabilitación de la patología derivada del siniestro o los servicios considerados como experimentales, cosméticos y suntuarios
A127: TÉCNICA | B127: Médica | C127: NO | D127: C65732023 | E127: 85100000 | F127: PRESTACION DE SERVICIOS DE SALUD: EL CONTRATISTA se obliga con POSITIVA a la prestación de los servicios de salud para los asegurados y o afiliados a POSITIVA, que accedan a los servicios habilitados del CONTRATISTA en calidad de asegurados, a los ramos: Administración de Riesgos Laborales ARL - por causa exclusiva de un accidente de trabajo, una enfermedad profesional, Accidentes Personales AP Educativo Generación Positiva, AP Colectivos, AP Corto Plazo, AP Individual, Planes de Salud complicaciones quirúrgicas, de cirugía estética y bariátrica y demás Ramos de Seguros autorizados a POSITIVA, encontrándose excluidos del presente contrato los servicios y todas aquellas actividades, procedimientos e intervenciones que no tengan por objeto contribuir al diagnóstico, tratamiento o rehabilitación de la patología derivada del siniestro o los servicios considerados como experimentales, cosméticos y suntuarios | G127: 2023-07-24 | H127: 7 | I127: 2028-07-24 | J127: 60.9 | K127: Invitación directa | L127: CargoAReserva | M127: Indeterminado | N127: Indeterminado | O127: NO | P127: 0 | Q127: 0 | R127: NA | S127: Gerencia de Abastecimiento Estratégico contratacion@positiva.gov.co PBX: (1)6502200 Ext: 10641 | T127: SI | U127: SI | V127: NA | W127: SI | X127: Pública clasificada | Y127: C65732023-Tipo de información Pública clasificada-PRESTACION DE SERVICIOS DE SALUD: EL CONTRATISTA se obliga con POSITIVA a la prestación de los servicios de salud para los asegurados y o afiliados a POSITIVA, que accedan a los servicios habilitados del CONTRATISTA en calidad de asegurados, a los ramos: Administración de Riesgos Laborales ARL - por causa exclusiva de un accidente de trabajo, una enfermedad profesional, Accidentes Personales AP Educativo Generación Positiva, AP Colectivos, AP Corto Plazo, AP Individual, Planes de Salud complicaciones quirúrgicas, de cirugía estética y bariátrica y demás Ramos de Seguros autorizados a POSITIVA, encontrándose excluidos del presente contrato los servicios y todas aquellas actividades, procedimientos e intervenciones que no tengan por objeto contribuir al diagnóstico, tratamiento o rehabilitación de la patología derivada del siniestro o los servicios considerados como experimentales, cosméticos y suntuarios
A128: TÉCNICA | B128: Médica | C128: NO | D128: C65742023 | E128: 85100000 | F128: PRESTACION DE SERVICIOS DE SALUD: EL CONTRATISTA se obliga con POSITIVA a la prestación de los servicios de salud para los asegurados y o afiliados a POSITIVA, que accedan a los servicios habilitados del CONTRATISTA en calidad de asegurados, a los ramos: Administración de Riesgos Laborales ARL - por causa exclusiva de un accidente de trabajo, una enfermedad profesional, Accidentes Personales AP Educativo Generación Positiva, AP Colectivos, AP Corto Plazo, AP Individual, Planes de Salud complicaciones quirúrgicas, de cirugía estética y bariátrica y demás Ramos de Seguros autorizados a POSITIVA, encontrándose excluidos del presente contrato los servicios y todas aquellas actividades, procedimientos e intervenciones que no tengan por objeto contribuir al diagnóstico, tratamiento o rehabilitación de la patología derivada del siniestro o los servicios considerados como experimentales, cosméticos y suntuarios | G128: 2023-08-02 | H128: 8 | I128: 2/08/2025 | J128: 24.36666667 | K128: Invitación directa | L128: CargoAReserva | M128: Indeterminado | N128: Indeterminado | O128: NO | P128: 0 | Q128: 0 | R128: NA | S128: Gerencia de Abastecimiento Estratégico contratacion@positiva.gov.co PBX: (1)6502200 Ext: 10641 | T128: SI | U128: SI | V128: NA | W128: SI | X128: Pública clasificada | Y128: C65742023-Tipo de información Pública clasificada-PRESTACION DE SERVICIOS DE SALUD: EL CONTRATISTA se obliga con POSITIVA a la prestación de los servicios de salud para los asegurados y o afiliados a POSITIVA, que accedan a los servicios habilitados del CONTRATISTA en calidad de asegurados, a los ramos: Administración de Riesgos Laborales ARL - por causa exclusiva de un accidente de trabajo, una enfermedad profesional, Accidentes Personales AP Educativo Generación Positiva, AP Colectivos, AP Corto Plazo, AP Individual, Planes de Salud complicaciones quirúrgicas, de cirugía estética y bariátrica y demás Ramos de Seguros autorizados a POSITIVA, encontrándose excluidos del presente contrato los servicios y todas aquellas actividades, procedimientos e intervenciones que no tengan por objeto contribuir al diagnóstico, tratamiento o rehabilitación de la patología derivada del siniestro o los servicios considerados como experimentales, cosméticos y suntuarios
A129: TÉCNICA | B129: Médica | C129: NO | D129: C65752023 | E129: 85100000 | F129: PRESTACION DE SERVICIOS DE SALUD: EL CONTRATISTA se obliga con POSITIVA a la prestación de los servicios de salud para los asegurados y o afiliados a POSITIVA, que accedan a los servicios habilitados del CONTRATISTA en calidad de asegurados, a los ramos: Administración de Riesgos Laborales ARL - por causa exclusiva de un accidente de trabajo, una enfermedad profesional, Accidentes Personales AP Educativo Generación Positiva, AP Colectivos, AP Corto Plazo, AP Individual, Planes de Salud complicaciones quirúrgicas, de cirugía estética y bariátrica y demás Ramos de Seguros autorizados a POSITIVA, encontrándose excluidos del presente contrato los servicios y todas aquellas actividades, procedimientos e intervenciones que no tengan por objeto contribuir al diagnóstico, tratamiento o rehabilitación de la patología derivada del siniestro o los servicios considerados como experimentales, cosméticos y suntuarios | G129: 2023-08-02 | H129: 8 | I129: 2/08/2026 | J129: 36.53333333 | K129: Invitación directa | L129: CargoAReserva | M129: Indeterminado | N129: Indeterminado | O129: NO | P129: 0 | Q129: 0 | R129: NA | S129: Gerencia de Abastecimiento Estratégico contratacion@positiva.gov.co PBX: (1)6502200 Ext: 10641 | T129: SI | U129: SI | V129: NA | W129: SI | X129: Pública clasificada | Y129: C65752023-Tipo de información Pública clasificada-PRESTACION DE SERVICIOS DE SALUD: EL CONTRATISTA se obliga con POSITIVA a la prestación de los servicios de salud para los asegurados y o afiliados a POSITIVA, que accedan a los servicios habilitados del CONTRATISTA en calidad de asegurados, a los ramos: Administración de Riesgos Laborales ARL - por causa exclusiva de un accidente de trabajo, una enfermedad profesional, Accidentes Personales AP Educativo Generación Positiva, AP Colectivos, AP Corto Plazo, AP Individual, Planes de Salud complicaciones quirúrgicas, de cirugía estética y bariátrica y demás Ramos de Seguros autorizados a POSITIVA, encontrándose excluidos del presente contrato los servicios y todas aquellas actividades, procedimientos e intervenciones que no tengan por objeto contribuir al diagnóstico, tratamiento o rehabilitación de la patología derivada del siniestro o los servicios considerados como experimentales, cosméticos y suntuarios
A130: TÉCNICA | B130: Médica | C130: NO | D130: C65762023 | E130: 85100000 | F130: PRESTACION DE SERVICIOS DE SALUD: EL CONTRATISTA se obliga con POSITIVA a la prestación de los servicios de salud para los asegurados y o afiliados a POSITIVA, que accedan a los servicios habilitados del CONTRATISTA en calidad de asegurados, a los ramos: Administración de Riesgos Laborales ARL - por causa exclusiva de un accidente de trabajo, una enfermedad profesional, Accidentes Personales AP Educativo Generación Positiva, AP Colectivos, AP Corto Plazo, AP Individual, Planes de Salud complicaciones quirúrgicas, de cirugía estética y bariátrica y demás Ramos de Seguros autorizados a POSITIVA, encontrándose excluidos del presente contrato los servicios y todas aquellas actividades, procedimientos e intervenciones que no tengan por objeto contribuir al diagnóstico, tratamiento o rehabilitación de la patología derivada del siniestro o los servicios considerados como experimentales, cosméticos y suntuarios | G130: 2023-08-03 | H130: 8 | I130: 3/08/2025 | J130: 24.36666667 | K130: Invitación directa | L130: CargoAReserva | M130: Indeterminado | N130: Indeterminado | O130: NO | P130: 0 | Q130: 0 | R130: NA | S130: Gerencia de Abastecimiento Estratégico contratacion@positiva.gov.co PBX: (1)6502200 Ext: 10641 | T130: SI | U130: SI | V130: NA | W130: SI | X130: Pública clasificada | Y130: C65762023-Tipo de información Pública clasificada-PRESTACION DE SERVICIOS DE SALUD: EL CONTRATISTA se obliga con POSITIVA a la prestación de los servicios de salud para los asegurados y o afiliados a POSITIVA, que accedan a los servicios habilitados del CONTRATISTA en calidad de asegurados, a los ramos: Administración de Riesgos Laborales ARL - por causa exclusiva de un accidente de trabajo, una enfermedad profesional, Accidentes Personales AP Educativo Generación Positiva, AP Colectivos, AP Corto Plazo, AP Individual, Planes de Salud complicaciones quirúrgicas, de cirugía estética y bariátrica y demás Ramos de Seguros autorizados a POSITIVA, encontrándose excluidos del presente contrato los servicios y todas aquellas actividades, procedimientos e intervenciones que no tengan por objeto contribuir al diagnóstico, tratamiento o rehabilitación de la patología derivada del siniestro o los servicios considerados como experimentales, cosméticos y suntuarios
A131: TÉCNICA | B131: Médica | C131: NO | D131: C65772023 | E131: 85100000 | F131: PRESTACION DE SERVICIOS DE SALUD: EL CONTRATISTA se obliga con POSITIVA a la prestación de los servicios de salud para los asegurados y o afiliados a POSITIVA, que accedan a los servicios habilitados del CONTRATISTA en calidad de asegurados, a los ramos: Administración de Riesgos Laborales ARL - por causa exclusiva de un accidente de trabajo, una enfermedad profesional, Accidentes Personales AP Educativo Generación Positiva, AP Colectivos, AP Corto Plazo, AP Individual, Planes de Salud complicaciones quirúrgicas, de cirugía estética y bariátrica y demás Ramos de Seguros autorizados a POSITIVA, encontrándose excluidos del presente contrato los servicios y todas aquellas actividades, procedimientos e intervenciones que no tengan por objeto contribuir al diagnóstico, tratamiento o rehabilitación de la patología derivada del siniestro o los servicios considerados como experimentales, cosméticos y suntuarios | G131: 2023-08-16 | H131: 8 | I131: 16/08/2025 | J131: 24.36666667 | K131: Invitación directa | L131: CargoAReserva | M131: Indeterminado | N131: Indeterminado | O131: NO | P131: 0 | Q131: 0 | R131: NA | S131: Gerencia de Abastecimiento Estratégico contratacion@positiva.gov.co PBX: (1)6502200 Ext: 10641 | T131: SI | U131: SI | V131: NA | W131: SI | X131: Pública clasificada | Y131: C65772023-Tipo de información Pública clasificada-PRESTACION DE SERVICIOS DE SALUD: EL CONTRATISTA se obliga con POSITIVA a la prestación de los servicios de salud para los asegurados y o afiliados a POSITIVA, que accedan a los servicios habilitados del CONTRATISTA en calidad de asegurados, a los ramos: Administración de Riesgos Laborales ARL - por causa exclusiva de un accidente de trabajo, una enfermedad profesional, Accidentes Personales AP Educativo Generación Positiva, AP Colectivos, AP Corto Plazo, AP Individual, Planes de Salud complicaciones quirúrgicas, de cirugía estética y bariátrica y demás Ramos de Seguros autorizados a POSITIVA, encontrándose excluidos del presente contrato los servicios y todas aquellas actividades, procedimientos e intervenciones que no tengan por objeto contribuir al diagnóstico, tratamiento o rehabilitación de la patología derivada del siniestro o los servicios considerados como experimentales, cosméticos y suntuarios
A132: TÉCNICA | B132: Médica | C132: NO | D132: C65782023 | E132: 85100000 | F132: PRESTACION DE SERVICIOS DE SALUD: EL CONTRATISTA se obliga con POSITIVA a la prestación de los servicios de salud para los asegurados y o afiliados a POSITIVA, que accedan a los servicios habilitados del CONTRATISTA en calidad de asegurados, a los ramos: Administración de Riesgos Laborales ARL - por causa exclusiva de un accidente de trabajo, una enfermedad profesional, Accidentes Personales AP Educativo Generación Positiva, AP Colectivos, AP Corto Plazo, AP Individual, Planes de Salud complicaciones quirúrgicas, de cirugía estética y bariátrica y demás Ramos de Seguros autorizados a POSITIVA, encontrándose excluidos del presente contrato los servicios y todas aquellas actividades, procedimientos e intervenciones que no tengan por objeto contribuir al diagnóstico, tratamiento o rehabilitación de la patología derivada del siniestro o los servicios considerados como experimentales, cosméticos y suntuarios | G132: 2023-08-18 | H132: 8 | I132: 18/08/2025 | J132: 24.36666667 | K132: Invitación directa | L132: CargoAReserva | M132: Indeterminado | N132: Indeterminado | O132: NO | P132: 0 | Q132: 0 | R132: NA | S132: Gerencia de Abastecimiento Estratégico contratacion@positiva.gov.co PBX: (1)6502200 Ext: 10641 | T132: SI | U132: SI | V132: NA | W132: SI | X132: Pública clasificada | Y132: C65782023-Tipo de información Pública clasificada-PRESTACION DE SERVICIOS DE SALUD: EL CONTRATISTA se obliga con POSITIVA a la prestación de los servicios de salud para los asegurados y o afiliados a POSITIVA, que accedan a los servicios habilitados del CONTRATISTA en calidad de asegurados, a los ramos: Administración de Riesgos Laborales ARL - por causa exclusiva de un accidente de trabajo, una enfermedad profesional, Accidentes Personales AP Educativo Generación Positiva, AP Colectivos, AP Corto Plazo, AP Individual, Planes de Salud complicaciones quirúrgicas, de cirugía estética y bariátrica y demás Ramos de Seguros autorizados a POSITIVA, encontrándose excluidos del presente contrato los servicios y todas aquellas actividades, procedimientos e intervenciones que no tengan por objeto contribuir al diagnóstico, tratamiento o rehabilitación de la patología derivada del siniestro o los servicios considerados como experimentales, cosméticos y suntuarios
A133: TÉCNICA | B133: Médica | C133: NO | D133: C65792023 | E133: 85100000 | F133: PRESTACION DE SERVICIOS DE SALUD: EL CONTRATISTA se obliga con POSITIVA a la prestación de los servicios de salud para los asegurados y o afiliados a POSITIVA, que accedan a los servicios habilitados del CONTRATISTA en calidad de asegurados, a los ramos: Administración de Riesgos Laborales ARL - por causa exclusiva de un accidente de trabajo, una enfermedad profesional, Accidentes Personales AP Educativo Generación Positiva, AP Colectivos, AP Corto Plazo, AP Individual, Planes de Salud complicaciones quirúrgicas, de cirugía estética y bariátrica y demás Ramos de Seguros autorizados a POSITIVA, encontrándose excluidos del presente contrato los servicios y todas aquellas actividades, procedimientos e intervenciones que no tengan por objeto contribuir al diagnóstico, tratamiento o rehabilitación de la patología derivada del siniestro o los servicios considerados como experimentales, cosméticos y suntuarios | G133: 2023-08-22 | H133: 8 | I133: 22/08/2026 | J133: 36.53333333 | K133: Invitación directa | L133: CargoAReserva | M133: Indeterminado | N133: Indeterminado | O133: NO | P133: 0 | Q133: 0 | R133: NA | S133: Gerencia de Abastecimiento Estratégico contratacion@positiva.gov.co PBX: (1)6502200 Ext: 10641 | T133: SI | U133: SI | V133: NA | W133: SI | X133: Pública clasificada | Y133: C65792023-Tipo de información Pública clasificada-PRESTACION DE SERVICIOS DE SALUD: EL CONTRATISTA se obliga con POSITIVA a la prestación de los servicios de salud para los asegurados y o afiliados a POSITIVA, que accedan a los servicios habilitados del CONTRATISTA en calidad de asegurados, a los ramos: Administración de Riesgos Laborales ARL - por causa exclusiva de un accidente de trabajo, una enfermedad profesional, Accidentes Personales AP Educativo Generación Positiva, AP Colectivos, AP Corto Plazo, AP Individual, Planes de Salud complicaciones quirúrgicas, de cirugía estética y bariátrica y demás Ramos de Seguros autorizados a POSITIVA, encontrándose excluidos del presente contrato los servicios y todas aquellas actividades, procedimientos e intervenciones que no tengan por objeto contribuir al diagnóstico, tratamiento o rehabilitación de la patología derivada del siniestro o los servicios considerados como experimentales, cosméticos y suntuarios
A134: TÉCNICA | B134: Médica | C134: NO | D134: C65802023 | E134: 85100000 | F134: PRESTACION DE SERVICIOS DE SALUD: EL CONTRATISTA se obliga con POSITIVA a la prestación de los servicios de salud para los asegurados y o afiliados a POSITIVA, que accedan a los servicios habilitados del CONTRATISTA en calidad de asegurados, a los ramos: Administración de Riesgos Laborales ARL - por causa exclusiva de un accidente de trabajo, una enfermedad profesional, Accidentes Personales AP Educativo Generación Positiva, AP Colectivos, AP Corto Plazo, AP Individual, Planes de Salud complicaciones quirúrgicas, de cirugía estética y bariátrica y demás Ramos de Seguros autorizados a POSITIVA, encontrándose excluidos del presente contrato los servicios y todas aquellas actividades, procedimientos e intervenciones que no tengan por objeto contribuir al diagnóstico, tratamiento o rehabilitación de la patología derivada del siniestro o los servicios considerados como experimentales, cosméticos y suntuarios | G134: 2023-08-27 | H134: 8 | I134: 27/08/2025 | J134: 24.36666667 | K134: Invitación directa | L134: CargoAReserva | M134: Indeterminado | N134: Indeterminado | O134: NO | P134: 0 | Q134: 0 | R134: NA | S134: Gerencia de Abastecimiento Estratégico contratacion@positiva.gov.co PBX: (1)6502200 Ext: 10641 | T134: SI | U134: SI | V134: NA | W134: SI | X134: Pública clasificada | Y134: C65802023-Tipo de información Pública clasificada-PRESTACION DE SERVICIOS DE SALUD: EL CONTRATISTA se obliga con POSITIVA a la prestación de los servicios de salud para los asegurados y o afiliados a POSITIVA, que accedan a los servicios habilitados del CONTRATISTA en calidad de asegurados, a los ramos: Administración de Riesgos Laborales ARL - por causa exclusiva de un accidente de trabajo, una enfermedad profesional, Accidentes Personales AP Educativo Generación Positiva, AP Colectivos, AP Corto Plazo, AP Individual, Planes de Salud complicaciones quirúrgicas, de cirugía estética y bariátrica y demás Ramos de Seguros autorizados a POSITIVA, encontrándose excluidos del presente contrato los servicios y todas aquellas actividades, procedimientos e intervenciones que no tengan por objeto contribuir al diagnóstico, tratamiento o rehabilitación de la patología derivada del siniestro o los servicios considerados como experimentales, cosméticos y suntuarios
A135: TÉCNICA | B135: Médica | C135: NO | D135: C65812023 | E135: 85100000 | F135: PRESTACION DE SERVICIOS DE SALUD: EL CONTRATISTA se obliga con POSITIVA a la prestación de los servicios de salud para los asegurados y o afiliados a POSITIVA, que accedan a los servicios habilitados del CONTRATISTA en calidad de asegurados, a los ramos: Administración de Riesgos Laborales ARL - por causa exclusiva de un accidente de trabajo, una enfermedad profesional, Accidentes Personales AP Educativo Generación Positiva, AP Colectivos, AP Corto Plazo, AP Individual, Planes de Salud complicaciones quirúrgicas, de cirugía estética y bariátrica y demás Ramos de Seguros autorizados a POSITIVA, encontrándose excluidos del presente contrato los servicios y todas aquellas actividades, procedimientos e intervenciones que no tengan por objeto contribuir al diagnóstico, tratamiento o rehabilitación de la patología derivada del siniestro o los servicios considerados como experimentales, cosméticos y suntuarios | G135: 2023-08-29 | H135: 8 | I135: 29/08/2025 | J135: 24.36666667 | K135: Invitación directa | L135: CargoAReserva | M135: Indeterminado | N135: Indeterminado | O135: NO | P135: 0 | Q135: 0 | R135: NA | S135: Gerencia de Abastecimiento Estratégico contratacion@positiva.gov.co PBX: (1)6502200 Ext: 10641 | T135: SI | U135: SI | V135: NA | W135: SI | X135: Pública clasificada | Y135: C65812023-Tipo de información Pública clasificada-PRESTACION DE SERVICIOS DE SALUD: EL CONTRATISTA se obliga con POSITIVA a la prestación de los servicios de salud para los asegurados y o afiliados a POSITIVA, que accedan a los servicios habilitados del CONTRATISTA en calidad de asegurados, a los ramos: Administración de Riesgos Laborales ARL - por causa exclusiva de un accidente de trabajo, una enfermedad profesional, Accidentes Personales AP Educativo Generación Positiva, AP Colectivos, AP Corto Plazo, AP Individual, Planes de Salud complicaciones quirúrgicas, de cirugía estética y bariátrica y demás Ramos de Seguros autorizados a POSITIVA, encontrándose excluidos del presente contrato los servicios y todas aquellas actividades, procedimientos e intervenciones que no tengan por objeto contribuir al diagnóstico, tratamiento o rehabilitación de la patología derivada del siniestro o los servicios considerados como experimentales, cosméticos y suntuarios
A136: TÉCNICA | B136: Médica | C136: NO | D136: C65822023 | E136: 85100000 | F136: PRESTACION DE SERVICIOS DE SALUD: EL CONTRATISTA se obliga con POSITIVA a la prestación de los servicios de salud para los asegurados y o afiliados a POSITIVA, que accedan a los servicios habilitados del CONTRATISTA en calidad de asegurados, a los ramos: Administración de Riesgos Laborales ARL - por causa exclusiva de un accidente de trabajo, una enfermedad profesional, Accidentes Personales AP Educativo Generación Positiva, AP Colectivos, AP Corto Plazo, AP Individual, Planes de Salud complicaciones quirúrgicas, de cirugía estética y bariátrica y demás Ramos de Seguros autorizados a POSITIVA, encontrándose excluidos del presente contrato los servicios y todas aquellas actividades, procedimientos e intervenciones que no tengan por objeto contribuir al diagnóstico, tratamiento o rehabilitación de la patología derivada del siniestro o los servicios considerados como experimentales, cosméticos y suntuarios | G136: 2023-08-29 | H136: 8 | I136: 29/08/2025 | J136: 24.36666667 | K136: Invitación directa | L136: CargoAReserva | M136: Indeterminado | N136: Indeterminado | O136: NO | P136: 0 | Q136: 0 | R136: NA | S136: Gerencia de Abastecimiento Estratégico contratacion@positiva.gov.co PBX: (1)6502200 Ext: 10641 | T136: SI | U136: SI | V136: NA | W136: SI | X136: Pública clasificada | Y136: C65822023-Tipo de información Pública clasificada-PRESTACION DE SERVICIOS DE SALUD: EL CONTRATISTA se obliga con POSITIVA a la prestación de los servicios de salud para los asegurados y o afiliados a POSITIVA, que accedan a los servicios habilitados del CONTRATISTA en calidad de asegurados, a los ramos: Administración de Riesgos Laborales ARL - por causa exclusiva de un accidente de trabajo, una enfermedad profesional, Accidentes Personales AP Educativo Generación Positiva, AP Colectivos, AP Corto Plazo, AP Individual, Planes de Salud complicaciones quirúrgicas, de cirugía estética y bariátrica y demás Ramos de Seguros autorizados a POSITIVA, encontrándose excluidos del presente contrato los servicios y todas aquellas actividades, procedimientos e intervenciones que no tengan por objeto contribuir al diagnóstico, tratamiento o rehabilitación de la patología derivada del siniestro o los servicios considerados como experimentales, cosméticos y suntuarios
A137: TÉCNICA | B137: Médica | C137: NO | D137: C65832023 | E137: 85100000 | F137: PRESTACION DE SERVICIOS DE SALUD: EL CONTRATISTA se obliga con POSITIVA a la prestación de los servicios de salud para los asegurados y o afiliados a POSITIVA, que accedan a los servicios habilitados del CONTRATISTA en calidad de asegurados, a los ramos: Administración de Riesgos Laborales ARL - por causa exclusiva de un accidente de trabajo, una enfermedad profesional, Accidentes Personales AP Educativo Generación Positiva, AP Colectivos, AP Corto Plazo, AP Individual, Planes de Salud complicaciones quirúrgicas, de cirugía estética y bariátrica y demás Ramos de Seguros autorizados a POSITIVA, encontrándose excluidos del presente contrato los servicios y todas aquellas actividades, procedimientos e intervenciones que no tengan por objeto contribuir al diagnóstico, tratamiento o rehabilitación de la patología derivada del siniestro o los servicios considerados como experimentales, cosméticos y suntuarios | G137: 2023-08-29 | H137: 8 | I137: 29/08/2025 | J137: 24.36666667 | K137: Invitación directa | L137: CargoAReserva | M137: Indeterminado | N137: Indeterminado | O137: NO | P137: 0 | Q137: 0 | R137: NA | S137: Gerencia de Abastecimiento Estratégico contratacion@positiva.gov.co PBX: (1)6502200 Ext: 10641 | T137: SI | U137: SI | V137: NA | W137: SI | X137: Pública clasificada | Y137: C65832023-Tipo de información Pública clasificada-PRESTACION DE SERVICIOS DE SALUD: EL CONTRATISTA se obliga con POSITIVA a la prestación de los servicios de salud para los asegurados y o afiliados a POSITIVA, que accedan a los servicios habilitados del CONTRATISTA en calidad de asegurados, a los ramos: Administración de Riesgos Laborales ARL - por causa exclusiva de un accidente de trabajo, una enfermedad profesional, Accidentes Personales AP Educativo Generación Positiva, AP Colectivos, AP Corto Plazo, AP Individual, Planes de Salud complicaciones quirúrgicas, de cirugía estética y bariátrica y demás Ramos de Seguros autorizados a POSITIVA, encontrándose excluidos del presente contrato los servicios y todas aquellas actividades, procedimientos e intervenciones que no tengan por objeto contribuir al diagnóstico, tratamiento o rehabilitación de la patología derivada del siniestro o los servicios considerados como experimentales, cosméticos y suntuarios
A138: TÉCNICA | B138: Médica | C138: NO | D138: C65842023 | E138: 85100000 | F138: PRESTACION DE SERVICIOS DE SALUD: EL CONTRATISTA se obliga con POSITIVA a la prestación de los servicios de salud para los asegurados y o afiliados a POSITIVA, que accedan a los servicios habilitados del CONTRATISTA en calidad de asegurados, a los ramos: Administración de Riesgos Laborales ARL - por causa exclusiva de un accidente de trabajo, una enfermedad profesional, Accidentes Personales AP Educativo Generación Positiva, AP Colectivos, AP Corto Plazo, AP Individual, Planes de Salud complicaciones quirúrgicas, de cirugía estética y bariátrica y demás Ramos de Seguros autorizados a POSITIVA, encontrándose excluidos del presente contrato los servicios y todas aquellas actividades, procedimientos e intervenciones que no tengan por objeto contribuir al diagnóstico, tratamiento o rehabilitación de la patología derivada del siniestro o los servicios considerados como experimentales, cosméticos y suntuarios | G138: 2023-09-04 | H138: 9 | I138: 4/09/2025 | J138: 24.36666667 | K138: Invitación directa | L138: CargoAReserva | M138: Indeterminado | N138: Indeterminado | O138: NO | P138: 0 | Q138: 0 | R138: NA | S138: Gerencia de Abastecimiento Estratégico contratacion@positiva.gov.co PBX: (1)6502200 Ext: 10641 | T138: SI | U138: SI | V138: NA | W138: SI | X138: Pública clasificada | Y138: C65842023-Tipo de información Pública clasificada-PRESTACION DE SERVICIOS DE SALUD: EL CONTRATISTA se obliga con POSITIVA a la prestación de los servicios de salud para los asegurados y o afiliados a POSITIVA, que accedan a los servicios habilitados del CONTRATISTA en calidad de asegurados, a los ramos: Administración de Riesgos Laborales ARL - por causa exclusiva de un accidente de trabajo, una enfermedad profesional, Accidentes Personales AP Educativo Generación Positiva, AP Colectivos, AP Corto Plazo, AP Individual, Planes de Salud complicaciones quirúrgicas, de cirugía estética y bariátrica y demás Ramos de Seguros autorizados a POSITIVA, encontrándose excluidos del presente contrato los servicios y todas aquellas actividades, procedimientos e intervenciones que no tengan por objeto contribuir al diagnóstico, tratamiento o rehabilitación de la patología derivada del siniestro o los servicios considerados como experimentales, cosméticos y suntuarios
A139: TÉCNICA | B139: Médica | C139: NO | D139: C65852023 | E139: 85100000 | F139: PRESTACION DE SERVICIOS DE SALUD: EL CONTRATISTA se obliga con POSITIVA a la prestación de los servicios de salud para los asegurados y o afiliados a POSITIVA, que accedan a los servicios habilitados del CONTRATISTA en calidad de asegurados, a los ramos: Administración de Riesgos Laborales ARL - por causa exclusiva de un accidente de trabajo, una enfermedad profesional, Accidentes Personales AP Educativo Generación Positiva, AP Colectivos, AP Corto Plazo, AP Individual, Planes de Salud complicaciones quirúrgicas, de cirugía estética y bariátrica y demás Ramos de Seguros autorizados a POSITIVA, encontrándose excluidos del presente contrato los servicios y todas aquellas actividades, procedimientos e intervenciones que no tengan por objeto contribuir al diagnóstico, tratamiento o rehabilitación de la patología derivada del siniestro o los servicios considerados como experimentales, cosméticos y suntuarios | G139: 2023-09-05 | H139: 9 | I139: 5/09/2025 | J139: 24.36666667 | K139: Invitación directa | L139: CargoAReserva | M139: Indeterminado | N139: Indeterminado | O139: NO | P139: 0 | Q139: 0 | R139: NA | S139: Gerencia de Abastecimiento Estratégico contratacion@positiva.gov.co PBX: (1)6502200 Ext: 10641 | T139: SI | U139: SI | V139: NA | W139: SI | X139: Pública clasificada | Y139: C65852023-Tipo de información Pública clasificada-PRESTACION DE SERVICIOS DE SALUD: EL CONTRATISTA se obliga con POSITIVA a la prestación de los servicios de salud para los asegurados y o afiliados a POSITIVA, que accedan a los servicios habilitados del CONTRATISTA en calidad de asegurados, a los ramos: Administración de Riesgos Laborales ARL - por causa exclusiva de un accidente de trabajo, una enfermedad profesional, Accidentes Personales AP Educativo Generación Positiva, AP Colectivos, AP Corto Plazo, AP Individual, Planes de Salud complicaciones quirúrgicas, de cirugía estética y bariátrica y demás Ramos de Seguros autorizados a POSITIVA, encontrándose excluidos del presente contrato los servicios y todas aquellas actividades, procedimientos e intervenciones que no tengan por objeto contribuir al diagnóstico, tratamiento o rehabilitación de la patología derivada del siniestro o los servicios considerados como experimentales, cosméticos y suntuarios
A140: TÉCNICA | B140: Médica | C140: NO | D140: C65862023 | E140: 85100000 | F140: PRESTACION DE SERVICIOS DE SALUD: EL CONTRATISTA se obliga con POSITIVA a la prestación de los servicios de salud para los asegurados y o afiliados a POSITIVA, que accedan a los servicios habilitados del CONTRATISTA en calidad de asegurados, a los ramos: Administración de Riesgos Laborales ARL - por causa exclusiva de un accidente de trabajo, una enfermedad profesional, Accidentes Personales AP Educativo Generación Positiva, AP Colectivos, AP Corto Plazo, AP Individual, Planes de Salud complicaciones quirúrgicas, de cirugía estética y bariátrica y demás Ramos de Seguros autorizados a POSITIVA, encontrándose excluidos del presente contrato los servicios y todas aquellas actividades, procedimientos e intervenciones que no tengan por objeto contribuir al diagnóstico, tratamiento o rehabilitación de la patología derivada del siniestro o los servicios considerados como experimentales, cosméticos y suntuarios | G140: 2023-09-07 | H140: 9 | I140: 7/09/2025 | J140: 24.36666667 | K140: Invitación directa | L140: CargoAReserva | M140: Indeterminado | N140: Indeterminado | O140: NO | P140: 0 | Q140: 0 | R140: NA | S140: Gerencia de Abastecimiento Estratégico contratacion@positiva.gov.co PBX: (1)6502200 Ext: 10641 | T140: SI | U140: SI | V140: NA | W140: SI | X140: Pública clasificada | Y140: C65862023-Tipo de información Pública clasificada-PRESTACION DE SERVICIOS DE SALUD: EL CONTRATISTA se obliga con POSITIVA a la prestación de los servicios de salud para los asegurados y o afiliados a POSITIVA, que accedan a los servicios habilitados del CONTRATISTA en calidad de asegurados, a los ramos: Administración de Riesgos Laborales ARL - por causa exclusiva de un accidente de trabajo, una enfermedad profesional, Accidentes Personales AP Educativo Generación Positiva, AP Colectivos, AP Corto Plazo, AP Individual, Planes de Salud complicaciones quirúrgicas, de cirugía estética y bariátrica y demás Ramos de Seguros autorizados a POSITIVA, encontrándose excluidos del presente contrato los servicios y todas aquellas actividades, procedimientos e intervenciones que no tengan por objeto contribuir al diagnóstico, tratamiento o rehabilitación de la patología derivada del siniestro o los servicios considerados como experimentales, cosméticos y suntuarios
A141: TÉCNICA | B141: Médica | C141: NO | D141: C65872023 | E141: 85100000 | F141: PRESTACION DE SERVICIOS DE SALUD: EL CONTRATISTA se obliga con POSITIVA a la prestación de los servicios de salud para los asegurados y o afiliados a POSITIVA, que accedan a los servicios habilitados del CONTRATISTA en calidad de asegurados, a los ramos: Administración de Riesgos Laborales ARL - por causa exclusiva de un accidente de trabajo, una enfermedad profesional, Accidentes Personales AP Educativo Generación Positiva, AP Colectivos, AP Corto Plazo, AP Individual, Planes de Salud complicaciones quirúrgicas, de cirugía estética y bariátrica y demás Ramos de Seguros autorizados a POSITIVA, encontrándose excluidos del presente contrato los servicios y todas aquellas actividades, procedimientos e intervenciones que no tengan por objeto contribuir al diagnóstico, tratamiento o rehabilitación de la patología derivada del siniestro o los servicios considerados como experimentales, cosméticos y suntuarios | G141: 2023-09-12 | H141: 9 | I141: 12/09/2025 | J141: 24.36666667 | K141: Invitación directa | L141: CargoAReserva | M141: Indeterminado | N141: Indeterminado | O141: NO | P141: 0 | Q141: 0 | R141: NA | S141: Gerencia de Abastecimiento Estratégico contratacion@positiva.gov.co PBX: (1)6502200 Ext: 10641 | T141: SI | U141: SI | V141: NA | W141: SI | X141: Pública clasificada | Y141: C65872023-Tipo de información Pública clasificada-PRESTACION DE SERVICIOS DE SALUD: EL CONTRATISTA se obliga con POSITIVA a la prestación de los servicios de salud para los asegurados y o afiliados a POSITIVA, que accedan a los servicios habilitados del CONTRATISTA en calidad de asegurados, a los ramos: Administración de Riesgos Laborales ARL - por causa exclusiva de un accidente de trabajo, una enfermedad profesional, Accidentes Personales AP Educativo Generación Positiva, AP Colectivos, AP Corto Plazo, AP Individual, Planes de Salud complicaciones quirúrgicas, de cirugía estética y bariátrica y demás Ramos de Seguros autorizados a POSITIVA, encontrándose excluidos del presente contrato los servicios y todas aquellas actividades, procedimientos e intervenciones que no tengan por objeto contribuir al diagnóstico, tratamiento o rehabilitación de la patología derivada del siniestro o los servicios considerados como experimentales, cosméticos y suntuarios
A142: TÉCNICA | B142: Médica | C142: NO | D142: C65882023 | E142: 85100000 | F142: PRESTACION DE SERVICIOS DE SALUD: EL CONTRATISTA se obliga con POSITIVA a la prestación de los servicios de salud para los asegurados y o afiliados a POSITIVA, que accedan a los servicios habilitados del CONTRATISTA en calidad de asegurados, a los ramos: Administración de Riesgos Laborales ARL - por causa exclusiva de un accidente de trabajo, una enfermedad profesional, Accidentes Personales AP Educativo Generación Positiva, AP Colectivos, AP Corto Plazo, AP Individual, Planes de Salud complicaciones quirúrgicas, de cirugía estética y bariátrica y demás Ramos de Seguros autorizados a POSITIVA, encontrándose excluidos del presente contrato los servicios y todas aquellas actividades, procedimientos e intervenciones que no tengan por objeto contribuir al diagnóstico, tratamiento o rehabilitación de la patología derivada del siniestro o los servicios considerados como experimentales, cosméticos y suntuarios | G142: 2023-09-20 | H142: 9 | I142: 20/09/2025 | J142: 24.36666667 | K142: Invitación directa | L142: CargoAReserva | M142: Indeterminado | N142: Indeterminado | O142: NO | P142: 0 | Q142: 0 | R142: NA | S142: Gerencia de Abastecimiento Estratégico contratacion@positiva.gov.co PBX: (1)6502200 Ext: 10641 | T142: SI | U142: SI | V142: NA | W142: SI | X142: Pública clasificada | Y142: C65882023-Tipo de información Pública clasificada-PRESTACION DE SERVICIOS DE SALUD: EL CONTRATISTA se obliga con POSITIVA a la prestación de los servicios de salud para los asegurados y o afiliados a POSITIVA, que accedan a los servicios habilitados del CONTRATISTA en calidad de asegurados, a los ramos: Administración de Riesgos Laborales ARL - por causa exclusiva de un accidente de trabajo, una enfermedad profesional, Accidentes Personales AP Educativo Generación Positiva, AP Colectivos, AP Corto Plazo, AP Individual, Planes de Salud complicaciones quirúrgicas, de cirugía estética y bariátrica y demás Ramos de Seguros autorizados a POSITIVA, encontrándose excluidos del presente contrato los servicios y todas aquellas actividades, procedimientos e intervenciones que no tengan por objeto contribuir al diagnóstico, tratamiento o rehabilitación de la patología derivada del siniestro o los servicios considerados como experimentales, cosméticos y suntuarios
A143: TÉCNICA | B143: Médica | C143: NO | D143: C65892023 | E143: 85100000 | F143: PRESTACION DE SERVICIOS DE SALUD: EL CONTRATISTA se obliga con POSITIVA a la prestación de los servicios de salud para los asegurados y o afiliados a POSITIVA, que accedan a los servicios habilitados del CONTRATISTA en calidad de asegurados, a los ramos: Administración de Riesgos Laborales ARL - por causa exclusiva de un accidente de trabajo, una enfermedad profesional, Accidentes Personales AP Educativo Generación Positiva, AP Colectivos, AP Corto Plazo, AP Individual, Planes de Salud complicaciones quirúrgicas, de cirugía estética y bariátrica y demás Ramos de Seguros autorizados a POSITIVA, encontrándose excluidos del presente contrato los servicios y todas aquellas actividades, procedimientos e intervenciones que no tengan por objeto contribuir al diagnóstico, tratamiento o rehabilitación de la patología derivada del siniestro o los servicios considerados como experimentales, cosméticos y suntuarios | G143: 2023-09-26 | H143: 9 | I143: 26/09/2025 | J143: 24.36666667 | K143: Invitación directa | L143: CargoAReserva | M143: Indeterminado | N143: Indeterminado | O143: NO | P143: 0 | Q143: 0 | R143: NA | S143: Gerencia de Abastecimiento Estratégico contratacion@positiva.gov.co PBX: (1)6502200 Ext: 10641 | T143: SI | U143: SI | V143: NA | W143: SI | X143: Pública clasificada | Y143: C65892023-Tipo de información Pública clasificada-PRESTACION DE SERVICIOS DE SALUD: EL CONTRATISTA se obliga con POSITIVA a la prestación de los servicios de salud para los asegurados y o afiliados a POSITIVA, que accedan a los servicios habilitados del CONTRATISTA en calidad de asegurados, a los ramos: Administración de Riesgos Laborales ARL - por causa exclusiva de un accidente de trabajo, una enfermedad profesional, Accidentes Personales AP Educativo Generación Positiva, AP Colectivos, AP Corto Plazo, AP Individual, Planes de Salud complicaciones quirúrgicas, de cirugía estética y bariátrica y demás Ramos de Seguros autorizados a POSITIVA, encontrándose excluidos del presente contrato los servicios y todas aquellas actividades, procedimientos e intervenciones que no tengan por objeto contribuir al diagnóstico, tratamiento o rehabilitación de la patología derivada del siniestro o los servicios considerados como experimentales, cosméticos y suntuarios
A144: TÉCNICA | B144: Médica | C144: NO | D144: C65902023 | E144: 85100000 | F144: PRESTACION DE SERVICIOS DE SALUD: EL CONTRATISTA se obliga con POSITIVA a la prestación de los servicios de salud para los asegurados y o afiliados a POSITIVA, que accedan a los servicios habilitados del CONTRATISTA en calidad de asegurados, a los ramos: Administración de Riesgos Laborales ARL - por causa exclusiva de un accidente de trabajo, una enfermedad profesional, Accidentes Personales AP Educativo Generación Positiva, AP Colectivos, AP Corto Plazo, AP Individual, Planes de Salud complicaciones quirúrgicas, de cirugía estética y bariátrica y demás Ramos de Seguros autorizados a POSITIVA, encontrándose excluidos del presente contrato los servicios y todas aquellas actividades, procedimientos e intervenciones que no tengan por objeto contribuir al diagnóstico, tratamiento o rehabilitación de la patología derivada del siniestro o los servicios considerados como experimentales, cosméticos y suntuarios | G144: 2023-09-26 | H144: 9 | I144: 26/09/2025 | J144: 24.36666667 | K144: Invitación directa | L144: CargoAReserva | M144: Indeterminado | N144: Indeterminado | O144: NO | P144: 0 | Q144: 0 | R144: NA | S144: Gerencia de Abastecimiento Estratégico contratacion@positiva.gov.co PBX: (1)6502200 Ext: 10641 | T144: SI | U144: SI | V144: NA | W144: SI | X144: Pública clasificada | Y144: C65902023-Tipo de información Pública clasificada-PRESTACION DE SERVICIOS DE SALUD: EL CONTRATISTA se obliga con POSITIVA a la prestación de los servicios de salud para los asegurados y o afiliados a POSITIVA, que accedan a los servicios habilitados del CONTRATISTA en calidad de asegurados, a los ramos: Administración de Riesgos Laborales ARL - por causa exclusiva de un accidente de trabajo, una enfermedad profesional, Accidentes Personales AP Educativo Generación Positiva, AP Colectivos, AP Corto Plazo, AP Individual, Planes de Salud complicaciones quirúrgicas, de cirugía estética y bariátrica y demás Ramos de Seguros autorizados a POSITIVA, encontrándose excluidos del presente contrato los servicios y todas aquellas actividades, procedimientos e intervenciones que no tengan por objeto contribuir al diagnóstico, tratamiento o rehabilitación de la patología derivada del siniestro o los servicios considerados como experimentales, cosméticos y suntuarios
A145: TÉCNICA | B145: Médica | C145: NO | D145: C65912023 | E145: 85100000 | F145: PRESTACION DE SERVICIOS DE SALUD: EL CONTRATISTA se obliga con POSITIVA a la prestación de los servicios de salud para los asegurados y o afiliados a POSITIVA, que accedan a los servicios habilitados del CONTRATISTA en calidad de asegurados, a los ramos: Administración de Riesgos Laborales ARL - por causa exclusiva de un accidente de trabajo, una enfermedad profesional, Accidentes Personales AP Educativo Generación Positiva, AP Colectivos, AP Corto Plazo, AP Individual, Planes de Salud complicaciones quirúrgicas, de cirugía estética y bariátrica y demás Ramos de Seguros autorizados a POSITIVA, encontrándose excluidos del presente contrato los servicios y todas aquellas actividades, procedimientos e intervenciones que no tengan por objeto contribuir al diagnóstico, tratamiento o rehabilitación de la patología derivada del siniestro o los servicios considerados como experimentales, cosméticos y suntuarios | G145: 2023-09-26 | H145: 9 | I145: 26/09/2025 | J145: 24.36666667 | K145: Invitación directa | L145: CargoAReserva | M145: Indeterminado | N145: Indeterminado | O145: NO | P145: 0 | Q145: 0 | R145: NA | S145: Gerencia de Abastecimiento Estratégico contratacion@positiva.gov.co PBX: (1)6502200 Ext: 10641 | T145: SI | U145: SI | V145: NA | W145: SI | X145: Pública clasificada | Y145: C65912023-Tipo de información Pública clasificada-PRESTACION DE SERVICIOS DE SALUD: EL CONTRATISTA se obliga con POSITIVA a la prestación de los servicios de salud para los asegurados y o afiliados a POSITIVA, que accedan a los servicios habilitados del CONTRATISTA en calidad de asegurados, a los ramos: Administración de Riesgos Laborales ARL - por causa exclusiva de un accidente de trabajo, una enfermedad profesional, Accidentes Personales AP Educativo Generación Positiva, AP Colectivos, AP Corto Plazo, AP Individual, Planes de Salud complicaciones quirúrgicas, de cirugía estética y bariátrica y demás Ramos de Seguros autorizados a POSITIVA, encontrándose excluidos del presente contrato los servicios y todas aquellas actividades, procedimientos e intervenciones que no tengan por objeto contribuir al diagnóstico, tratamiento o rehabilitación de la patología derivada del siniestro o los servicios considerados como experimentales, cosméticos y suntuarios
A146: TÉCNICA | B146: Médica | C146: NO | D146: C65922023 | E146: 85100000 | F146: PRESTACION DE SERVICIOS DE SALUD: EL CONTRATISTA se obliga con POSITIVA a la prestación de los servicios de salud para los asegurados y o afiliados a POSITIVA, que accedan a los servicios habilitados del CONTRATISTA en calidad de asegurados, a los ramos: Administración de Riesgos Laborales ARL - por causa exclusiva de un accidente de trabajo, una enfermedad profesional, Accidentes Personales AP Educativo Generación Positiva, AP Colectivos, AP Corto Plazo, AP Individual, Planes de Salud complicaciones quirúrgicas, de cirugía estética y bariátrica y demás Ramos de Seguros autorizados a POSITIVA, encontrándose excluidos del presente contrato los servicios y todas aquellas actividades, procedimientos e intervenciones que no tengan por objeto contribuir al diagnóstico, tratamiento o rehabilitación de la patología derivada del siniestro o los servicios considerados como experimentales, cosméticos y suntuarios | G146: 2023-09-27 | H146: 9 | I146: 27/09/2025 | J146: 24.36666667 | K146: Invitación directa | L146: CargoAReserva | M146: Indeterminado | N146: Indeterminado | O146: NO | P146: 0 | Q146: 0 | R146: NA | S146: Gerencia de Abastecimiento Estratégico contratacion@positiva.gov.co PBX: (1)6502200 Ext: 10641 | T146: SI | U146: SI | V146: NA | W146: SI | X146: Pública clasificada | Y146: C65922023-Tipo de información Pública clasificada-PRESTACION DE SERVICIOS DE SALUD: EL CONTRATISTA se obliga con POSITIVA a la prestación de los servicios de salud para los asegurados y o afiliados a POSITIVA, que accedan a los servicios habilitados del CONTRATISTA en calidad de asegurados, a los ramos: Administración de Riesgos Laborales ARL - por causa exclusiva de un accidente de trabajo, una enfermedad profesional, Accidentes Personales AP Educativo Generación Positiva, AP Colectivos, AP Corto Plazo, AP Individual, Planes de Salud complicaciones quirúrgicas, de cirugía estética y bariátrica y demás Ramos de Seguros autorizados a POSITIVA, encontrándose excluidos del presente contrato los servicios y todas aquellas actividades, procedimientos e intervenciones que no tengan por objeto contribuir al diagnóstico, tratamiento o rehabilitación de la patología derivada del siniestro o los servicios considerados como experimentales, cosméticos y suntuarios
A147: TÉCNICA | B147: Médica | C147: NO | D147: C65932023 | E147: 85100000 | F147: PRESTACION DE SERVICIOS DE SALUD: EL CONTRATISTA se obliga con POSITIVA a la prestación de los servicios de salud para los asegurados y o afiliados a POSITIVA, que accedan a los servicios habilitados del CONTRATISTA en calidad de asegurados, a los ramos: Administración de Riesgos Laborales ARL - por causa exclusiva de un accidente de trabajo, una enfermedad profesional, Accidentes Personales AP Educativo Generación Positiva, AP Colectivos, AP Corto Plazo, AP Individual, Planes de Salud complicaciones quirúrgicas, de cirugía estética y bariátrica y demás Ramos de Seguros autorizados a POSITIVA, encontrándose excluidos del presente contrato los servicios y todas aquellas actividades, procedimientos e intervenciones que no tengan por objeto contribuir al diagnóstico, tratamiento o rehabilitación de la patología derivada del siniestro o los servicios considerados como experimentales, cosméticos y suntuarios | G147: 2023-09-27 | H147: 9 | I147: 27/09/2025 | J147: 24.36666667 | K147: Invitación directa | L147: CargoAReserva | M147: Indeterminado | N147: Indeterminado | O147: NO | P147: 0 | Q147: 0 | R147: NA | S147: Gerencia de Abastecimiento Estratégico contratacion@positiva.gov.co PBX: (1)6502200 Ext: 10641 | T147: SI | U147: SI | V147: NA | W147: SI | X147: Pública clasificada | Y147: C65932023-Tipo de información Pública clasificada-PRESTACION DE SERVICIOS DE SALUD: EL CONTRATISTA se obliga con POSITIVA a la prestación de los servicios de salud para los asegurados y o afiliados a POSITIVA, que accedan a los servicios habilitados del CONTRATISTA en calidad de asegurados, a los ramos: Administración de Riesgos Laborales ARL - por causa exclusiva de un accidente de trabajo, una enfermedad profesional, Accidentes Personales AP Educativo Generación Positiva, AP Colectivos, AP Corto Plazo, AP Individual, Planes de Salud complicaciones quirúrgicas, de cirugía estética y bariátrica y demás Ramos de Seguros autorizados a POSITIVA, encontrándose excluidos del presente contrato los servicios y todas aquellas actividades, procedimientos e intervenciones que no tengan por objeto contribuir al diagnóstico, tratamiento o rehabilitación de la patología derivada del siniestro o los servicios considerados como experimentales, cosméticos y suntuarios
A148: TÉCNICA | B148: Médica | C148: NO | D148: C65942023 | E148: 85100000 | F148: PRESTACION DE SERVICIOS DE SALUD: EL CONTRATISTA se obliga con POSITIVA a la prestación de los servicios de salud para los asegurados y o afiliados a POSITIVA, que accedan a los servicios habilitados del CONTRATISTA en calidad de asegurados, a los ramos: Administración de Riesgos Laborales ARL - por causa exclusiva de un accidente de trabajo, una enfermedad profesional, Accidentes Personales AP Educativo Generación Positiva, AP Colectivos, AP Corto Plazo, AP Individual, Planes de Salud complicaciones quirúrgicas, de cirugía estética y bariátrica y demás Ramos de Seguros autorizados a POSITIVA, encontrándose excluidos del presente contrato los servicios y todas aquellas actividades, procedimientos e intervenciones que no tengan por objeto contribuir al diagnóstico, tratamiento o rehabilitación de la patología derivada del siniestro o los servicios considerados como experimentales, cosméticos y suntuarios | G148: 2023-09-28 | H148: 9 | I148: 28/09/2025 | J148: 24.36666667 | K148: Invitación directa | L148: CargoAReserva | M148: Indeterminado | N148: Indeterminado | O148: NO | P148: 0 | Q148: 0 | R148: NA | S148: Gerencia de Abastecimiento Estratégico contratacion@positiva.gov.co PBX: (1)6502200 Ext: 10641 | T148: SI | U148: SI | V148: NA | W148: SI | X148: Pública clasificada | Y148: C65942023-Tipo de información Pública clasificada-PRESTACION DE SERVICIOS DE SALUD: EL CONTRATISTA se obliga con POSITIVA a la prestación de los servicios de salud para los asegurados y o afiliados a POSITIVA, que accedan a los servicios habilitados del CONTRATISTA en calidad de asegurados, a los ramos: Administración de Riesgos Laborales ARL - por causa exclusiva de un accidente de trabajo, una enfermedad profesional, Accidentes Personales AP Educativo Generación Positiva, AP Colectivos, AP Corto Plazo, AP Individual, Planes de Salud complicaciones quirúrgicas, de cirugía estética y bariátrica y demás Ramos de Seguros autorizados a POSITIVA, encontrándose excluidos del presente contrato los servicios y todas aquellas actividades, procedimientos e intervenciones que no tengan por objeto contribuir al diagnóstico, tratamiento o rehabilitación de la patología derivada del siniestro o los servicios considerados como experimentales, cosméticos y suntuarios
A149: TÉCNICA | B149: Médica | C149: NO | D149: C65952023 | E149: 85100000 | F149: PRESTACION DE SERVICIOS DE SALUD: EL CONTRATISTA se obliga con POSITIVA a la prestación de los servicios de salud para los asegurados y o afiliados a POSITIVA, que accedan a los servicios habilitados del CONTRATISTA en calidad de asegurados, a los ramos: Administración de Riesgos Laborales ARL - por causa exclusiva de un accidente de trabajo, una enfermedad profesional, Accidentes Personales AP Educativo Generación Positiva, AP Colectivos, AP Corto Plazo, AP Individual, Planes de Salud complicaciones quirúrgicas, de cirugía estética y bariátrica y demás Ramos de Seguros autorizados a POSITIVA, encontrándose excluidos del presente contrato los servicios y todas aquellas actividades, procedimientos e intervenciones que no tengan por objeto contribuir al diagnóstico, tratamiento o rehabilitación de la patología derivada del siniestro o los servicios considerados como experimentales, cosméticos y suntuarios | G149: 2023-09-29 | H149: 9 | I149: 29/09/2025 | J149: 24.36666667 | K149: Invitación directa | L149: CargoAReserva | M149: Indeterminado | N149: Indeterminado | O149: NO | P149: 0 | Q149: 0 | R149: NA | S149: Gerencia de Abastecimiento Estratégico contratacion@positiva.gov.co PBX: (1)6502200 Ext: 10641 | T149: SI | U149: SI | V149: NA | W149: SI | X149: Pública clasificada | Y149: C65952023-Tipo de información Pública clasificada-PRESTACION DE SERVICIOS DE SALUD: EL CONTRATISTA se obliga con POSITIVA a la prestación de los servicios de salud para los asegurados y o afiliados a POSITIVA, que accedan a los servicios habilitados del CONTRATISTA en calidad de asegurados, a los ramos: Administración de Riesgos Laborales ARL - por causa exclusiva de un accidente de trabajo, una enfermedad profesional, Accidentes Personales AP Educativo Generación Positiva, AP Colectivos, AP Corto Plazo, AP Individual, Planes de Salud complicaciones quirúrgicas, de cirugía estética y bariátrica y demás Ramos de Seguros autorizados a POSITIVA, encontrándose excluidos del presente contrato los servicios y todas aquellas actividades, procedimientos e intervenciones que no tengan por objeto contribuir al diagnóstico, tratamiento o rehabilitación de la patología derivada del siniestro o los servicios considerados como experimentales, cosméticos y suntuarios
A150: TÉCNICA | B150: Médica | C150: NO | D150: C65962023 | E150: 85100000 | F150: PRESTACION DE SERVICIOS DE SALUD: EL CONTRATISTA se obliga con POSITIVA a la prestación de los servicios de salud para los asegurados y o afiliados a POSITIVA, que accedan a los servicios habilitados del CONTRATISTA en calidad de asegurados, a los ramos: Administración de Riesgos Laborales ARL - por causa exclusiva de un accidente de trabajo, una enfermedad profesional, Accidentes Personales AP Educativo Generación Positiva, AP Colectivos, AP Corto Plazo, AP Individual, Planes de Salud complicaciones quirúrgicas, de cirugía estética y bariátrica y demás Ramos de Seguros autorizados a POSITIVA, encontrándose excluidos del presente contrato los servicios y todas aquellas actividades, procedimientos e intervenciones que no tengan por objeto contribuir al diagnóstico, tratamiento o rehabilitación de la patología derivada del siniestro o los servicios considerados como experimentales, cosméticos y suntuarios | G150: 2023-09-29 | H150: 9 | I150: 29/09/2025 | J150: 24.36666667 | K150: Invitación directa | L150: CargoAReserva | M150: Indeterminado | N150: Indeterminado | O150: NO | P150: 0 | Q150: 0 | R150: NA | S150: Gerencia de Abastecimiento Estratégico contratacion@positiva.gov.co PBX: (1)6502200 Ext: 10641 | T150: SI | U150: SI | V150: NA | W150: SI | X150: Pública clasificada | Y150: C65962023-Tipo de información Pública clasificada-PRESTACION DE SERVICIOS DE SALUD: EL CONTRATISTA se obliga con POSITIVA a la prestación de los servicios de salud para los asegurados y o afiliados a POSITIVA, que accedan a los servicios habilitados del CONTRATISTA en calidad de asegurados, a los ramos: Administración de Riesgos Laborales ARL - por causa exclusiva de un accidente de trabajo, una enfermedad profesional, Accidentes Personales AP Educativo Generación Positiva, AP Colectivos, AP Corto Plazo, AP Individual, Planes de Salud complicaciones quirúrgicas, de cirugía estética y bariátrica y demás Ramos de Seguros autorizados a POSITIVA, encontrándose excluidos del presente contrato los servicios y todas aquellas actividades, procedimientos e intervenciones que no tengan por objeto contribuir al diagnóstico, tratamiento o rehabilitación de la patología derivada del siniestro o los servicios considerados como experimentales, cosméticos y suntuarios
A151: TÉCNICA | B151: Médica | C151: NO | D151: C65972023 | E151: 85100000 | F151: PRESTACION DE SERVICIOS DE SALUD: EL CONTRATISTA se obliga con POSITIVA a la prestación de los servicios de salud para los asegurados y o afiliados a POSITIVA, que accedan a los servicios habilitados del CONTRATISTA en calidad de asegurados, a los ramos: Administración de Riesgos Laborales ARL - por causa exclusiva de un accidente de trabajo, una enfermedad profesional, Accidentes Personales AP Educativo Generación Positiva, AP Colectivos, AP Corto Plazo, AP Individual, Planes de Salud complicaciones quirúrgicas, de cirugía estética y bariátrica y demás Ramos de Seguros autorizados a POSITIVA, encontrándose excluidos del presente contrato los servicios y todas aquellas actividades, procedimientos e intervenciones que no tengan por objeto contribuir al diagnóstico, tratamiento o rehabilitación de la patología derivada del siniestro o los servicios considerados como experimentales, cosméticos y suntuarios | G151: 2023-10-03 | H151: 10 | I151: 3/10/2025 | J151: 24.36666667 | K151: Invitación directa | L151: CargoAReserva | M151: Indeterminado | N151: Indeterminado | O151: NO | P151: 0 | Q151: 0 | R151: NA | S151: Gerencia de Abastecimiento Estratégico contratacion@positiva.gov.co PBX: (1)6502200 Ext: 10641 | T151: SI | U151: SI | V151: NA | W151: SI | X151: =IF(W151="SI","Pública clasificada","Pública") -> Pública clasificada | Y151: =CONCATENATE(D151,"-","Tipo de información"," ",X151,"-",F151) -> C65972023-Tipo de información Pública clasificada-PRESTACION DE SERVICIOS DE SALUD: EL CONTRATISTA se obliga con POSITIVA a la prestación de los servicios de salud para los asegurados y o afiliados a POSITIVA, que accedan a los servicios habilitados del CONTRATISTA en calidad de asegurados, a los ramos: Administración de Riesgos Laborales ARL - por causa exclusiva de un accidente de trabajo, una enfermedad profesional, Accidentes Personales AP Educativo Generación Positiva, AP Colectivos, AP Corto Plazo, AP Individual, Planes de Salud complicaciones quirúrgicas, de cirugía estética y bariátrica y demás Ramos de Seguros autorizados a POSITIVA, encontrándose excluidos del presente contrato los servicios y todas aquellas actividades, procedimientos e intervenciones que no tengan por objeto contribuir al diagnóstico, tratamiento o rehabilitación de la patología derivada del siniestro o los servicios considerados como experimentales, cosméticos y suntuarios
A152: TÉCNICA | B152: Médica | C152: NO | D152: C65982023 | E152: 85100000 | F152: PRESTACION DE SERVICIOS DE SALUD: EL CONTRATISTA se obliga con POSITIVA a la prestación de los servicios de salud para los asegurados y o afiliados a POSITIVA, que accedan a los servicios habilitados del CONTRATISTA en calidad de asegurados, a los ramos: Administración de Riesgos Laborales ARL - por causa exclusiva de un accidente de trabajo, una enfermedad profesional, Accidentes Personales AP Educativo Generación Positiva, AP Colectivos, AP Corto Plazo, AP Individual, Planes de Salud complicaciones quirúrgicas, de cirugía estética y bariátrica y demás Ramos de Seguros autorizados a POSITIVA, encontrándose excluidos del presente contrato los servicios y todas aquellas actividades, procedimientos e intervenciones que no tengan por objeto contribuir al diagnóstico, tratamiento o rehabilitación de la patología derivada del siniestro o los servicios considerados como experimentales, cosméticos y suntuarios | G152: 2023-10-03 | H152: 10 | I152: 3/10/2025 | J152: 24.36666667 | K152: Invitación directa | L152: CargoAReserva | M152: Indeterminado | N152: Indeterminado | O152: NO | P152: 0 | Q152: 0 | R152: NA | S152: Gerencia de Abastecimiento Estratégico contratacion@positiva.gov.co PBX: (1)6502200 Ext: 10641 | T152: SI | U152: SI | V152: NA | W152: SI | X152: Pública clasificada | Y152: C65982023-Tipo de información Pública clasificada-PRESTACION DE SERVICIOS DE SALUD: EL CONTRATISTA se obliga con POSITIVA a la prestación de los servicios de salud para los asegurados y o afiliados a POSITIVA, que accedan a los servicios habilitados del CONTRATISTA en calidad de asegurados, a los ramos: Administración de Riesgos Laborales ARL - por causa exclusiva de un accidente de trabajo, una enfermedad profesional, Accidentes Personales AP Educativo Generación Positiva, AP Colectivos, AP Corto Plazo, AP Individual, Planes de Salud complicaciones quirúrgicas, de cirugía estética y bariátrica y demás Ramos de Seguros autorizados a POSITIVA, encontrándose excluidos del presente contrato los servicios y todas aquellas actividades, procedimientos e intervenciones que no tengan por objeto contribuir al diagnóstico, tratamiento o rehabilitación de la patología derivada del siniestro o los servicios considerados como experimentales, cosméticos y suntuarios
A153: TÉCNICA | B153: Médica | C153: NO | D153: C65992023 | E153: 85100000 | F153: PRESTACION DE SERVICIOS DE SALUD: EL CONTRATISTA se obliga con POSITIVA a la prestación de los servicios de salud para los asegurados y o afiliados a POSITIVA, que accedan a los servicios habilitados del CONTRATISTA en calidad de asegurados, a los ramos: Administración de Riesgos Laborales ARL - por causa exclusiva de un accidente de trabajo, una enfermedad profesional, Accidentes Personales AP Educativo Generación Positiva, AP Colectivos, AP Corto Plazo, AP Individual, Planes de Salud complicaciones quirúrgicas, de cirugía estética y bariátrica y demás Ramos de Seguros autorizados a POSITIVA, encontrándose excluidos del presente contrato los servicios y todas aquellas actividades, procedimientos e intervenciones que no tengan por objeto contribuir al diagnóstico, tratamiento o rehabilitación de la patología derivada del siniestro o los servicios considerados como experimentales, cosméticos y suntuarios | G153: 2023-10-03 | H153: =MONTH(G153) -> 10 | I153: 3/10/2026 | J153: =(I153-G153)/30 -> 36.53333333 | K153: Invitación directa | L153: CargoAReserva | M153: Indeterminado | N153: Indeterminado | O153: NO | P153: =IF(O153="NO",0,1) -> 0 | Q153: =IF(P153=0,0,3) -> 0 | R153: NA | S153: Gerencia de Abastecimiento Estratégico contratacion@positiva.gov.co PBX: (1)6502200 Ext: 10641 | T153: SI | U153: SI | V153: NA | W153: SI | X153: Pública clasificada | Y153: C65992023-Tipo de información Pública clasificada-PRESTACION DE SERVICIOS DE SALUD: EL CONTRATISTA se obliga con POSITIVA a la prestación de los servicios de salud para los asegurados y o afiliados a POSITIVA, que accedan a los servicios habilitados del CONTRATISTA en calidad de asegurados, a los ramos: Administración de Riesgos Laborales ARL - por causa exclusiva de un accidente de trabajo, una enfermedad profesional, Accidentes Personales AP Educativo Generación Positiva, AP Colectivos, AP Corto Plazo, AP Individual, Planes de Salud complicaciones quirúrgicas, de cirugía estética y bariátrica y demás Ramos de Seguros autorizados a POSITIVA, encontrándose excluidos del presente contrato los servicios y todas aquellas actividades, procedimientos e intervenciones que no tengan por objeto contribuir al diagnóstico, tratamiento o rehabilitación de la patología derivada del siniestro o los servicios considerados como experimentales, cosméticos y suntuarios
A154: TÉCNICA | B154: Médica | C154: NO | D154: C66002023 | E154: 85100000 | F154: PRESTACION DE SERVICIOS DE SALUD: EL CONTRATISTA se obliga con POSITIVA a la prestación de los servicios de salud para los asegurados y o afiliados a POSITIVA, que accedan a los servicios habilitados del CONTRATISTA en calidad de asegurados, a los ramos: Administración de Riesgos Laborales ARL - por causa exclusiva de un accidente de trabajo, una enfermedad profesional, Accidentes Personales AP Educativo Generación Positiva, AP Colectivos, AP Corto Plazo, AP Individual, Planes de Salud complicaciones quirúrgicas, de cirugía estética y bariátrica y demás Ramos de Seguros autorizados a POSITIVA, encontrándose excluidos del presente contrato los servicios y todas aquellas actividades, procedimientos e intervenciones que no tengan por objeto contribuir al diagnóstico, tratamiento o rehabilitación de la patología derivada del siniestro o los servicios considerados como experimentales, cosméticos y suntuarios | G154: 2023-10-05 | H154: 10 | I154: 5/10/2025 | J154: 24.36666667 | K154: Invitación directa | L154: CargoAReserva | M154: Indeterminado | N154: Indeterminado | O154: NO | P154: 0 | Q154: 0 | R154: NA | S154: Gerencia de Abastecimiento Estratégico contratacion@positiva.gov.co PBX: (1)6502200 Ext: 10641 | T154: SI | U154: SI | V154: NA | W154: SI | X154: Pública clasificada | Y154: C66002023-Tipo de información Pública clasificada-PRESTACION DE SERVICIOS DE SALUD: EL CONTRATISTA se obliga con POSITIVA a la prestación de los servicios de salud para los asegurados y o afiliados a POSITIVA, que accedan a los servicios habilitados del CONTRATISTA en calidad de asegurados, a los ramos: Administración de Riesgos Laborales ARL - por causa exclusiva de un accidente de trabajo, una enfermedad profesional, Accidentes Personales AP Educativo Generación Positiva, AP Colectivos, AP Corto Plazo, AP Individual, Planes de Salud complicaciones quirúrgicas, de cirugía estética y bariátrica y demás Ramos de Seguros autorizados a POSITIVA, encontrándose excluidos del presente contrato los servicios y todas aquellas actividades, procedimientos e intervenciones que no tengan por objeto contribuir al diagnóstico, tratamiento o rehabilitación de la patología derivada del siniestro o los servicios considerados como experimentales, cosméticos y suntuarios
A155: TÉCNICA | B155: Médica | C155: NO | D155: C66012023 | E155: 85100000 | F155: PRESTACION DE SERVICIOS DE SALUD: EL CONTRATISTA se obliga con POSITIVA a la prestación de los servicios de salud para los asegurados y o afiliados a POSITIVA, que accedan a los servicios habilitados del CONTRATISTA en calidad de asegurados, a los ramos: Administración de Riesgos Laborales ARL - por causa exclusiva de un accidente de trabajo, una enfermedad profesional, Accidentes Personales AP Educativo Generación Positiva, AP Colectivos, AP Corto Plazo, AP Individual, Planes de Salud complicaciones quirúrgicas, de cirugía estética y bariátrica y demás Ramos de Seguros autorizados a POSITIVA, encontrándose excluidos del presente contrato los servicios y todas aquellas actividades, procedimientos e intervenciones que no tengan por objeto contribuir al diagnóstico, tratamiento o rehabilitación de la patología derivada del siniestro o los servicios considerados como experimentales, cosméticos y suntuarios | G155: 2023-10-08 | H155: 10 | I155: 8/10/2025 | J155: 24.36666667 | K155: Invitación directa | L155: CargoAReserva | M155: Indeterminado | N155: Indeterminado | O155: NO | P155: 0 | Q155: 0 | R155: NA | S155: Gerencia de Abastecimiento Estratégico contratacion@positiva.gov.co PBX: (1)6502200 Ext: 10641 | T155: SI | U155: SI | V155: NA | W155: SI | X155: Pública clasificada | Y155: C66012023-Tipo de información Pública clasificada-PRESTACION DE SERVICIOS DE SALUD: EL CONTRATISTA se obliga con POSITIVA a la prestación de los servicios de salud para los asegurados y o afiliados a POSITIVA, que accedan a los servicios habilitados del CONTRATISTA en calidad de asegurados, a los ramos: Administración de Riesgos Laborales ARL - por causa exclusiva de un accidente de trabajo, una enfermedad profesional, Accidentes Personales AP Educativo Generación Positiva, AP Colectivos, AP Corto Plazo, AP Individual, Planes de Salud complicaciones quirúrgicas, de cirugía estética y bariátrica y demás Ramos de Seguros autorizados a POSITIVA, encontrándose excluidos del presente contrato los servicios y todas aquellas actividades, procedimientos e intervenciones que no tengan por objeto contribuir al diagnóstico, tratamiento o rehabilitación de la patología derivada del siniestro o los servicios considerados como experimentales, cosméticos y suntuarios
A156: TÉCNICA | B156: Médica | C156: NO | D156: C66022023 | E156: 85100000 | F156: PRESTACION DE SERVICIOS DE SALUD: EL CONTRATISTA se obliga con POSITIVA a la prestación de los servicios de salud para los asegurados y o afiliados a POSITIVA, que accedan a los servicios habilitados del CONTRATISTA en calidad de asegurados, a los ramos: Administración de Riesgos Laborales ARL - por causa exclusiva de un accidente de trabajo, una enfermedad profesional, Accidentes Personales AP Educativo Generación Positiva, AP Colectivos, AP Corto Plazo, AP Individual, Planes de Salud complicaciones quirúrgicas, de cirugía estética y bariátrica y demás Ramos de Seguros autorizados a POSITIVA, encontrándose excluidos del presente contrato los servicios y todas aquellas actividades, procedimientos e intervenciones que no tengan por objeto contribuir al diagnóstico, tratamiento o rehabilitación de la patología derivada del siniestro o los servicios considerados como experimentales, cosméticos y suntuarios | G156: 2023-10-10 | H156: 10 | I156: 10/10/2025 | J156: 24.36666667 | K156: Invitación directa | L156: CargoAReserva | M156: Indeterminado | N156: Indeterminado | O156: NO | P156: 0 | Q156: 0 | R156: NA | S156: Gerencia de Abastecimiento Estratégico contratacion@positiva.gov.co PBX: (1)6502200 Ext: 10641 | T156: SI | U156: SI | V156: NA | W156: SI | X156: Pública clasificada | Y156: C66022023-Tipo de información Pública clasificada-PRESTACION DE SERVICIOS DE SALUD: EL CONTRATISTA se obliga con POSITIVA a la prestación de los servicios de salud para los asegurados y o afiliados a POSITIVA, que accedan a los servicios habilitados del CONTRATISTA en calidad de asegurados, a los ramos: Administración de Riesgos Laborales ARL - por causa exclusiva de un accidente de trabajo, una enfermedad profesional, Accidentes Personales AP Educativo Generación Positiva, AP Colectivos, AP Corto Plazo, AP Individual, Planes de Salud complicaciones quirúrgicas, de cirugía estética y bariátrica y demás Ramos de Seguros autorizados a POSITIVA, encontrándose excluidos del presente contrato los servicios y todas aquellas actividades, procedimientos e intervenciones que no tengan por objeto contribuir al diagnóstico, tratamiento o rehabilitación de la patología derivada del siniestro o los servicios considerados como experimentales, cosméticos y suntuarios
A157: TÉCNICA | B157: Médica | C157: NO | D157: C66032023 | E157: 85100000 | F157: PRESTACION DE SERVICIOS DE SALUD: EL CONTRATISTA se obliga con POSITIVA a la prestación de los servicios de salud para los asegurados y o afiliados a POSITIVA, que accedan a los servicios habilitados del CONTRATISTA en calidad de asegurados, a los ramos: Administración de Riesgos Laborales ARL - por causa exclusiva de un accidente de trabajo, una enfermedad profesional, Accidentes Personales AP Educativo Generación Positiva, AP Colectivos, AP Corto Plazo, AP Individual, Planes de Salud complicaciones quirúrgicas, de cirugía estética y bariátrica y demás Ramos de Seguros autorizados a POSITIVA, encontrándose excluidos del presente contrato los servicios y todas aquellas actividades, procedimientos e intervenciones que no tengan por objeto contribuir al diagnóstico, tratamiento o rehabilitación de la patología derivada del siniestro o los servicios considerados como experimentales, cosméticos y suntuarios | G157: 2023-10-11 | H157: 10 | I157: 11/10/2025 | J157: 24.36666667 | K157: Invitación directa | L157: CargoAReserva | M157: Indeterminado | N157: Indeterminado | O157: NO | P157: 0 | Q157: 0 | R157: NA | S157: Gerencia de Abastecimiento Estratégico contratacion@positiva.gov.co PBX: (1)6502200 Ext: 10641 | T157: SI | U157: SI | V157: NA | W157: SI | X157: Pública clasificada | Y157: C66032023-Tipo de información Pública clasificada-PRESTACION DE SERVICIOS DE SALUD: EL CONTRATISTA se obliga con POSITIVA a la prestación de los servicios de salud para los asegurados y o afiliados a POSITIVA, que accedan a los servicios habilitados del CONTRATISTA en calidad de asegurados, a los ramos: Administración de Riesgos Laborales ARL - por causa exclusiva de un accidente de trabajo, una enfermedad profesional, Accidentes Personales AP Educativo Generación Positiva, AP Colectivos, AP Corto Plazo, AP Individual, Planes de Salud complicaciones quirúrgicas, de cirugía estética y bariátrica y demás Ramos de Seguros autorizados a POSITIVA, encontrándose excluidos del presente contrato los servicios y todas aquellas actividades, procedimientos e intervenciones que no tengan por objeto contribuir al diagnóstico, tratamiento o rehabilitación de la patología derivada del siniestro o los servicios considerados como experimentales, cosméticos y suntuarios
A158: TÉCNICA | B158: Médica | C158: NO | D158: C66042023 | E158: 85100000 | F158: PRESTACION DE SERVICIOS DE SALUD: EL CONTRATISTA se obliga con POSITIVA a la prestación de los servicios de salud para los asegurados y o afiliados a POSITIVA, que accedan a los servicios habilitados del CONTRATISTA en calidad de asegurados, a los ramos: Administración de Riesgos Laborales ARL - por causa exclusiva de un accidente de trabajo, una enfermedad profesional, Accidentes Personales AP Educativo Generación Positiva, AP Colectivos, AP Corto Plazo, AP Individual, Planes de Salud complicaciones quirúrgicas, de cirugía estética y bariátrica y demás Ramos de Seguros autorizados a POSITIVA, encontrándose excluidos del presente contrato los servicios y todas aquellas actividades, procedimientos e intervenciones que no tengan por objeto contribuir al diagnóstico, tratamiento o rehabilitación de la patología derivada del siniestro o los servicios considerados como experimentales, cosméticos y suntuarios | G158: 2023-10-16 | H158: 10 | I158: 16/10/2025 | J158: 24.36666667 | K158: Invitación directa | L158: CargoAReserva | M158: Indeterminado | N158: Indeterminado | O158: NO | P158: 0 | Q158: 0 | R158: NA | S158: Gerencia de Abastecimiento Estratégico contratacion@positiva.gov.co PBX: (1)6502200 Ext: 10641 | T158: SI | U158: SI | V158: NA | W158: SI | X158: Pública clasificada | Y158: C66042023-Tipo de información Pública clasificada-PRESTACION DE SERVICIOS DE SALUD: EL CONTRATISTA se obliga con POSITIVA a la prestación de los servicios de salud para los asegurados y o afiliados a POSITIVA, que accedan a los servicios habilitados del CONTRATISTA en calidad de asegurados, a los ramos: Administración de Riesgos Laborales ARL - por causa exclusiva de un accidente de trabajo, una enfermedad profesional, Accidentes Personales AP Educativo Generación Positiva, AP Colectivos, AP Corto Plazo, AP Individual, Planes de Salud complicaciones quirúrgicas, de cirugía estética y bariátrica y demás Ramos de Seguros autorizados a POSITIVA, encontrándose excluidos del presente contrato los servicios y todas aquellas actividades, procedimientos e intervenciones que no tengan por objeto contribuir al diagnóstico, tratamiento o rehabilitación de la patología derivada del siniestro o los servicios considerados como experimentales, cosméticos y suntuarios
A159: TÉCNICA | B159: Médica | C159: NO | D159: C66052023 | E159: 85100000 | F159: PRESTACION DE SERVICIOS DE SALUD: EL CONTRATISTA se obliga con POSITIVA a la prestación de los servicios de salud para los asegurados y o afiliados a POSITIVA, que accedan a los servicios habilitados del CONTRATISTA en calidad de asegurados, a los ramos: Administración de Riesgos Laborales ARL - por causa exclusiva de un accidente de trabajo, una enfermedad profesional, Accidentes Personales AP Educativo Generación Positiva, AP Colectivos, AP Corto Plazo, AP Individual, Planes de Salud complicaciones quirúrgicas, de cirugía estética y bariátrica y demás Ramos de Seguros autorizados a POSITIVA, encontrándose excluidos del presente contrato los servicios y todas aquellas actividades, procedimientos e intervenciones que no tengan por objeto contribuir al diagnóstico, tratamiento o rehabilitación de la patología derivada del siniestro o los servicios considerados como experimentales, cosméticos y suntuarios | G159: 2023-10-19 | H159: 10 | I159: 19/10/2025 | J159: 24.36666667 | K159: Invitación directa | L159: CargoAReserva | M159: Indeterminado | N159: Indeterminado | O159: NO | P159: 0 | Q159: 0 | R159: NA | S159: Gerencia de Abastecimiento Estratégico contratacion@positiva.gov.co PBX: (1)6502200 Ext: 10641 | T159: SI | U159: SI | V159: NA | W159: SI | X159: Pública clasificada | Y159: C66052023-Tipo de información Pública clasificada-PRESTACION DE SERVICIOS DE SALUD: EL CONTRATISTA se obliga con POSITIVA a la prestación de los servicios de salud para los asegurados y o afiliados a POSITIVA, que accedan a los servicios habilitados del CONTRATISTA en calidad de asegurados, a los ramos: Administración de Riesgos Laborales ARL - por causa exclusiva de un accidente de trabajo, una enfermedad profesional, Accidentes Personales AP Educativo Generación Positiva, AP Colectivos, AP Corto Plazo, AP Individual, Planes de Salud complicaciones quirúrgicas, de cirugía estética y bariátrica y demás Ramos de Seguros autorizados a POSITIVA, encontrándose excluidos del presente contrato los servicios y todas aquellas actividades, procedimientos e intervenciones que no tengan por objeto contribuir al diagnóstico, tratamiento o rehabilitación de la patología derivada del siniestro o los servicios considerados como experimentales, cosméticos y suntuarios
A160: TÉCNICA | B160: Médica | C160: NO | D160: C66062023 | E160: 85100000 | F160: PRESTACION DE SERVICIOS DE SALUD: EL CONTRATISTA se obliga con POSITIVA a la prestación de los servicios de salud para los asegurados y o afiliados a POSITIVA, que accedan a los servicios habilitados del CONTRATISTA en calidad de asegurados, a los ramos: Administración de Riesgos Laborales ARL - por causa exclusiva de un accidente de trabajo, una enfermedad profesional, Accidentes Personales AP Educativo Generación Positiva, AP Colectivos, AP Corto Plazo, AP Individual, Planes de Salud complicaciones quirúrgicas, de cirugía estética y bariátrica y demás Ramos de Seguros autorizados a POSITIVA, encontrándose excluidos del presente contrato los servicios y todas aquellas actividades, procedimientos e intervenciones que no tengan por objeto contribuir al diagnóstico, tratamiento o rehabilitación de la patología derivada del siniestro o los servicios considerados como experimentales, cosméticos y suntuarios | G160: 2023-11-01 | H160: 11 | I160: 1/11/2025 | J160: 24.36666667 | K160: Invitación directa | L160: CargoAReserva | M160: Indeterminado | N160: Indeterminado | O160: NO | P160: 0 | Q160: 0 | R160: NA | S160: Gerencia de Abastecimiento Estratégico contratacion@positiva.gov.co PBX: (1)6502200 Ext: 10641 | T160: SI | U160: SI | V160: NA | W160: SI | X160: Pública clasificada | Y160: C66062023-Tipo de información Pública clasificada-PRESTACION DE SERVICIOS DE SALUD: EL CONTRATISTA se obliga con POSITIVA a la prestación de los servicios de salud para los asegurados y o afiliados a POSITIVA, que accedan a los servicios habilitados del CONTRATISTA en calidad de asegurados, a los ramos: Administración de Riesgos Laborales ARL - por causa exclusiva de un accidente de trabajo, una enfermedad profesional, Accidentes Personales AP Educativo Generación Positiva, AP Colectivos, AP Corto Plazo, AP Individual, Planes de Salud complicaciones quirúrgicas, de cirugía estética y bariátrica y demás Ramos de Seguros autorizados a POSITIVA, encontrándose excluidos del presente contrato los servicios y todas aquellas actividades, procedimientos e intervenciones que no tengan por objeto contribuir al diagnóstico, tratamiento o rehabilitación de la patología derivada del siniestro o los servicios considerados como experimentales, cosméticos y suntuarios
A161: TÉCNICA | B161: Médica | C161: NO | D161: C66072023 | E161: 85100000 | F161: PRESTACION DE SERVICIOS DE SALUD: EL CONTRATISTA se obliga con POSITIVA a la prestación de los servicios de salud para los asegurados y o afiliados a POSITIVA, que accedan a los servicios habilitados del CONTRATISTA en calidad de asegurados, a los ramos: Administración de Riesgos Laborales ARL - por causa exclusiva de un accidente de trabajo, una enfermedad profesional, Accidentes Personales AP Educativo Generación Positiva, AP Colectivos, AP Corto Plazo, AP Individual, Planes de Salud complicaciones quirúrgicas, de cirugía estética y bariátrica y demás Ramos de Seguros autorizados a POSITIVA, encontrándose excluidos del presente contrato los servicios y todas aquellas actividades, procedimientos e intervenciones que no tengan por objeto contribuir al diagnóstico, tratamiento o rehabilitación de la patología derivada del siniestro o los servicios considerados como experimentales, cosméticos y suntuarios | G161: 2023-11-02 | H161: 11 | I161: 2/11/2025 | J161: 24.36666667 | K161: Invitación directa | L161: CargoAReserva | M161: Indeterminado | N161: Indeterminado | O161: NO | P161: 0 | Q161: 0 | R161: NA | S161: Gerencia de Abastecimiento Estratégico contratacion@positiva.gov.co PBX: (1)6502200 Ext: 10641 | T161: SI | U161: SI | V161: NA | W161: SI | X161: Pública clasificada | Y161: C66072023-Tipo de información Pública clasificada-PRESTACION DE SERVICIOS DE SALUD: EL CONTRATISTA se obliga con POSITIVA a la prestación de los servicios de salud para los asegurados y o afiliados a POSITIVA, que accedan a los servicios habilitados del CONTRATISTA en calidad de asegurados, a los ramos: Administración de Riesgos Laborales ARL - por causa exclusiva de un accidente de trabajo, una enfermedad profesional, Accidentes Personales AP Educativo Generación Positiva, AP Colectivos, AP Corto Plazo, AP Individual, Planes de Salud complicaciones quirúrgicas, de cirugía estética y bariátrica y demás Ramos de Seguros autorizados a POSITIVA, encontrándose excluidos del presente contrato los servicios y todas aquellas actividades, procedimientos e intervenciones que no tengan por objeto contribuir al diagnóstico, tratamiento o rehabilitación de la patología derivada del siniestro o los servicios considerados como experimentales, cosméticos y suntuarios
A162: TÉCNICA | B162: Médica | C162: NO | D162: C66082023 | E162: 85100000 | F162: PRESTACION DE SERVICIOS DE SALUD: EL CONTRATISTA se obliga con POSITIVA a la prestación de los servicios de salud para los asegurados y o afiliados a POSITIVA, que accedan a los servicios habilitados del CONTRATISTA en calidad de asegurados, a los ramos: Administración de Riesgos Laborales ARL - por causa exclusiva de un accidente de trabajo, una enfermedad profesional, Accidentes Personales AP Educativo Generación Positiva, AP Colectivos, AP Corto Plazo, AP Individual, Planes de Salud complicaciones quirúrgicas, de cirugía estética y bariátrica y demás Ramos de Seguros autorizados a POSITIVA, encontrándose excluidos del presente contrato los servicios y todas aquellas actividades, procedimientos e intervenciones que no tengan por objeto contribuir al diagnóstico, tratamiento o rehabilitación de la patología derivada del siniestro o los servicios considerados como experimentales, cosméticos y suntuarios | G162: 2023-11-07 | H162: 11 | I162: 7/11/2025 | J162: 24.36666667 | K162: Invitación directa | L162: CargoAReserva | M162: Indeterminado | N162: Indeterminado | O162: NO | P162: 0 | Q162: 0 | R162: NA | S162: Gerencia de Abastecimiento Estratégico contratacion@positiva.gov.co PBX: (1)6502200 Ext: 10641 | T162: SI | U162: SI | V162: NA | W162: SI | X162: Pública clasificada | Y162: C66082023-Tipo de información Pública clasificada-PRESTACION DE SERVICIOS DE SALUD: EL CONTRATISTA se obliga con POSITIVA a la prestación de los servicios de salud para los asegurados y o afiliados a POSITIVA, que accedan a los servicios habilitados del CONTRATISTA en calidad de asegurados, a los ramos: Administración de Riesgos Laborales ARL - por causa exclusiva de un accidente de trabajo, una enfermedad profesional, Accidentes Personales AP Educativo Generación Positiva, AP Colectivos, AP Corto Plazo, AP Individual, Planes de Salud complicaciones quirúrgicas, de cirugía estética y bariátrica y demás Ramos de Seguros autorizados a POSITIVA, encontrándose excluidos del presente contrato los servicios y todas aquellas actividades, procedimientos e intervenciones que no tengan por objeto contribuir al diagnóstico, tratamiento o rehabilitación de la patología derivada del siniestro o los servicios considerados como experimentales, cosméticos y suntuarios
A163: TÉCNICA | B163: Médica | C163: NO | D163: C66092023 | E163: 85100000 | F163: PRESTACION DE SERVICIOS DE SALUD: EL CONTRATISTA se obliga con POSITIVA a la prestación de los servicios de salud para los asegurados y o afiliados a POSITIVA, que accedan a los servicios habilitados del CONTRATISTA en calidad de asegurados, a los ramos: Administración de Riesgos Laborales ARL - por causa exclusiva de un accidente de trabajo, una enfermedad profesional, Accidentes Personales AP Educativo Generación Positiva, AP Colectivos, AP Corto Plazo, AP Individual, Planes de Salud complicaciones quirúrgicas, de cirugía estética y bariátrica y demás Ramos de Seguros autorizados a POSITIVA, encontrándose excluidos del presente contrato los servicios y todas aquellas actividades, procedimientos e intervenciones que no tengan por objeto contribuir al diagnóstico, tratamiento o rehabilitación de la patología derivada del siniestro o los servicios considerados como experimentales, cosméticos y suntuarios | G163: 2023-12-01 | H163: 12 | I163: 1/12/2025 | J163: 24.36666667 | K163: Invitación directa | L163: CargoAReserva | M163: Indeterminado | N163: Indeterminado | O163: NO | P163: 0 | Q163: 0 | R163: NA | S163: Gerencia de Abastecimiento Estratégico contratacion@positiva.gov.co PBX: (1)6502200 Ext: 10641 | T163: SI | U163: SI | V163: NA | W163: SI | X163: Pública clasificada | Y163: C66092023-Tipo de información Pública clasificada-PRESTACION DE SERVICIOS DE SALUD: EL CONTRATISTA se obliga con POSITIVA a la prestación de los servicios de salud para los asegurados y o afiliados a POSITIVA, que accedan a los servicios habilitados del CONTRATISTA en calidad de asegurados, a los ramos: Administración de Riesgos Laborales ARL - por causa exclusiva de un accidente de trabajo, una enfermedad profesional, Accidentes Personales AP Educativo Generación Positiva, AP Colectivos, AP Corto Plazo, AP Individual, Planes de Salud complicaciones quirúrgicas, de cirugía estética y bariátrica y demás Ramos de Seguros autorizados a POSITIVA, encontrándose excluidos del presente contrato los servicios y todas aquellas actividades, procedimientos e intervenciones que no tengan por objeto contribuir al diagnóstico, tratamiento o rehabilitación de la patología derivada del siniestro o los servicios considerados como experimentales, cosméticos y suntuarios
A164: TÉCNICA | B164: Médica | C164: NO | D164: C66102023 | E164: 85100000 | F164: PRESTACION DE SERVICIOS DE SALUD: EL CONTRATISTA se obliga con POSITIVA a la prestación de los servicios de salud para los asegurados y o afiliados a POSITIVA, que accedan a los servicios habilitados del CONTRATISTA en calidad de asegurados, a los ramos: Administración de Riesgos Laborales ARL - por causa exclusiva de un accidente de trabajo, una enfermedad profesional, Accidentes Personales AP Educativo Generación Positiva, AP Colectivos, AP Corto Plazo, AP Individual, Planes de Salud complicaciones quirúrgicas, de cirugía estética y bariátrica y demás Ramos de Seguros autorizados a POSITIVA, encontrándose excluidos del presente contrato los servicios y todas aquellas actividades, procedimientos e intervenciones que no tengan por objeto contribuir al diagnóstico, tratamiento o rehabilitación de la patología derivada del siniestro o los servicios considerados como experimentales, cosméticos y suntuarios | G164: 2023-12-01 | H164: 12 | I164: 1/12/2025 | J164: 24.36666667 | K164: Invitación directa | L164: CargoAReserva | M164: Indeterminado | N164: Indeterminado | O164: NO | P164: 0 | Q164: 0 | R164: NA | S164: Gerencia de Abastecimiento Estratégico contratacion@positiva.gov.co PBX: (1)6502200 Ext: 10641 | T164: SI | U164: SI | V164: NA | W164: SI | X164: Pública clasificada | Y164: C66102023-Tipo de información Pública clasificada-PRESTACION DE SERVICIOS DE SALUD: EL CONTRATISTA se obliga con POSITIVA a la prestación de los servicios de salud para los asegurados y o afiliados a POSITIVA, que accedan a los servicios habilitados del CONTRATISTA en calidad de asegurados, a los ramos: Administración de Riesgos Laborales ARL - por causa exclusiva de un accidente de trabajo, una enfermedad profesional, Accidentes Personales AP Educativo Generación Positiva, AP Colectivos, AP Corto Plazo, AP Individual, Planes de Salud complicaciones quirúrgicas, de cirugía estética y bariátrica y demás Ramos de Seguros autorizados a POSITIVA, encontrándose excluidos del presente contrato los servicios y todas aquellas actividades, procedimientos e intervenciones que no tengan por objeto contribuir al diagnóstico, tratamiento o rehabilitación de la patología derivada del siniestro o los servicios considerados como experimentales, cosméticos y suntuarios
A165: TÉCNICA | B165: Médica | C165: NO | D165: C66112023 | E165: 85100000 | F165: PRESTACION DE SERVICIOS DE SALUD: EL CONTRATISTA se obliga con POSITIVA a la prestación de los servicios de salud para los asegurados y o afiliados a POSITIVA, que accedan a los servicios habilitados del CONTRATISTA en calidad de asegurados, a los ramos: Administración de Riesgos Laborales ARL - por causa exclusiva de un accidente de trabajo, una enfermedad profesional, Accidentes Personales AP Educativo Generación Positiva, AP Colectivos, AP Corto Plazo, AP Individual, Planes de Salud complicaciones quirúrgicas, de cirugía estética y bariátrica y demás Ramos de Seguros autorizados a POSITIVA, encontrándose excluidos del presente contrato los servicios y todas aquellas actividades, procedimientos e intervenciones que no tengan por objeto contribuir al diagnóstico, tratamiento o rehabilitación de la patología derivada del siniestro o los servicios considerados como experimentales, cosméticos y suntuarios | G165: 2023-12-04 | H165: 12 | I165: 4/12/2025 | J165: 24.36666667 | K165: Invitación directa | L165: CargoAReserva | M165: Indeterminado | N165: Indeterminado | O165: NO | P165: 0 | Q165: 0 | R165: NA | S165: Gerencia de Abastecimiento Estratégico contratacion@positiva.gov.co PBX: (1)6502200 Ext: 10641 | T165: SI | U165: SI | V165: NA | W165: SI | X165: Pública clasificada | Y165: C66112023-Tipo de información Pública clasificada-PRESTACION DE SERVICIOS DE SALUD: EL CONTRATISTA se obliga con POSITIVA a la prestación de los servicios de salud para los asegurados y o afiliados a POSITIVA, que accedan a los servicios habilitados del CONTRATISTA en calidad de asegurados, a los ramos: Administración de Riesgos Laborales ARL - por causa exclusiva de un accidente de trabajo, una enfermedad profesional, Accidentes Personales AP Educativo Generación Positiva, AP Colectivos, AP Corto Plazo, AP Individual, Planes de Salud complicaciones quirúrgicas, de cirugía estética y bariátrica y demás Ramos de Seguros autorizados a POSITIVA, encontrándose excluidos del presente contrato los servicios y todas aquellas actividades, procedimientos e intervenciones que no tengan por objeto contribuir al diagnóstico, tratamiento o rehabilitación de la patología derivada del siniestro o los servicios considerados como experimentales, cosméticos y suntuarios
A166: TÉCNICA | B166: Médica | C166: NO | D166: C66122023 | E166: 85100000 | F166: PRESTACION DE SERVICIOS DE SALUD: EL CONTRATISTA se obliga con POSITIVA a la prestación de los servicios de salud para los asegurados y o afiliados a POSITIVA, que accedan a los servicios habilitados del CONTRATISTA en calidad de asegurados, a los ramos: Administración de Riesgos Laborales ARL - por causa exclusiva de un accidente de trabajo, una enfermedad profesional, Accidentes Personales AP Educativo Generación Positiva, AP Colectivos, AP Corto Plazo, AP Individual, Planes de Salud complicaciones quirúrgicas, de cirugía estética y bariátrica y demás Ramos de Seguros autorizados a POSITIVA, encontrándose excluidos del presente contrato los servicios y todas aquellas actividades, procedimientos e intervenciones que no tengan por objeto contribuir al diagnóstico, tratamiento o rehabilitación de la patología derivada del siniestro o los servicios considerados como experimentales, cosméticos y suntuarios | G166: 2023-12-04 | H166: 12 | I166: 4/12/2025 | J166: 24.36666667 | K166: Invitación directa | L166: CargoAReserva | M166: Indeterminado | N166: Indeterminado | O166: NO | P166: 0 | Q166: 0 | R166: NA | S166: Gerencia de Abastecimiento Estratégico contratacion@positiva.gov.co PBX: (1)6502200 Ext: 10641 | T166: SI | U166: SI | V166: NA | W166: SI | X166: Pública clasificada | Y166: C66122023-Tipo de información Pública clasificada-PRESTACION DE SERVICIOS DE SALUD: EL CONTRATISTA se obliga con POSITIVA a la prestación de los servicios de salud para los asegurados y o afiliados a POSITIVA, que accedan a los servicios habilitados del CONTRATISTA en calidad de asegurados, a los ramos: Administración de Riesgos Laborales ARL - por causa exclusiva de un accidente de trabajo, una enfermedad profesional, Accidentes Personales AP Educativo Generación Positiva, AP Colectivos, AP Corto Plazo, AP Individual, Planes de Salud complicaciones quirúrgicas, de cirugía estética y bariátrica y demás Ramos de Seguros autorizados a POSITIVA, encontrándose excluidos del presente contrato los servicios y todas aquellas actividades, procedimientos e intervenciones que no tengan por objeto contribuir al diagnóstico, tratamiento o rehabilitación de la patología derivada del siniestro o los servicios considerados como experimentales, cosméticos y suntuarios
A167: TÉCNICA | B167: Médica | C167: NO | D167: C66132023 | E167: 85100000 | F167: PRESTACION DE SERVICIOS DE SALUD: EL CONTRATISTA se obliga con POSITIVA a la prestación de los servicios de salud para los asegurados y o afiliados a POSITIVA, que accedan a los servicios habilitados del CONTRATISTA en calidad de asegurados, a los ramos: Administración de Riesgos Laborales ARL - por causa exclusiva de un accidente de trabajo, una enfermedad profesional, Accidentes Personales AP Educativo Generación Positiva, AP Colectivos, AP Corto Plazo, AP Individual, Planes de Salud complicaciones quirúrgicas, de cirugía estética y bariátrica y demás Ramos de Seguros autorizados a POSITIVA, encontrándose excluidos del presente contrato los servicios y todas aquellas actividades, procedimientos e intervenciones que no tengan por objeto contribuir al diagnóstico, tratamiento o rehabilitación de la patología derivada del siniestro o los servicios considerados como experimentales, cosméticos y suntuarios | G167: 2023-12-13 | H167: 12 | I167: 13/12/2025 | J167: 24.36666667 | K167: Invitación directa | L167: CargoAReserva | M167: Indeterminado | N167: Indeterminado | O167: NO | P167: 0 | Q167: 0 | R167: NA | S167: Gerencia de Abastecimiento Estratégico contratacion@positiva.gov.co PBX: (1)6502200 Ext: 10641 | T167: SI | U167: SI | V167: NA | W167: SI | X167: Pública clasificada | Y167: C66132023-Tipo de información Pública clasificada-PRESTACION DE SERVICIOS DE SALUD: EL CONTRATISTA se obliga con POSITIVA a la prestación de los servicios de salud para los asegurados y o afiliados a POSITIVA, que accedan a los servicios habilitados del CONTRATISTA en calidad de asegurados, a los ramos: Administración de Riesgos Laborales ARL - por causa exclusiva de un accidente de trabajo, una enfermedad profesional, Accidentes Personales AP Educativo Generación Positiva, AP Colectivos, AP Corto Plazo, AP Individual, Planes de Salud complicaciones quirúrgicas, de cirugía estética y bariátrica y demás Ramos de Seguros autorizados a POSITIVA, encontrándose excluidos del presente contrato los servicios y todas aquellas actividades, procedimientos e intervenciones que no tengan por objeto contribuir al diagnóstico, tratamiento o rehabilitación de la patología derivada del siniestro o los servicios considerados como experimentales, cosméticos y suntuarios
A168: TÉCNICA | B168: Médica | C168: NO | D168: C66142023 | E168: 85100000 | F168: PRESTACION DE SERVICIOS DE SALUD: EL CONTRATISTA se obliga con POSITIVA a la prestación de los servicios de salud para los asegurados y o afiliados a POSITIVA, que accedan a los servicios habilitados del CONTRATISTA en calidad de asegurados, a los ramos: Administración de Riesgos Laborales ARL - por causa exclusiva de un accidente de trabajo, una enfermedad profesional, Accidentes Personales AP Educativo Generación Positiva, AP Colectivos, AP Corto Plazo, AP Individual, Planes de Salud complicaciones quirúrgicas, de cirugía estética y bariátrica y demás Ramos de Seguros autorizados a POSITIVA, encontrándose excluidos del presente contrato los servicios y todas aquellas actividades, procedimientos e intervenciones que no tengan por objeto contribuir al diagnóstico, tratamiento o rehabilitación de la patología derivada del siniestro o los servicios considerados como experimentales, cosméticos y suntuarios | G168: 2023-12-14 | H168: 12 | I168: 14/12/2025 | J168: 24.36666667 | K168: Invitación directa | L168: CargoAReserva | M168: Indeterminado | N168: Indeterminado | O168: NO | P168: 0 | Q168: 0 | R168: NA | S168: Gerencia de Abastecimiento Estratégico contratacion@positiva.gov.co PBX: (1)6502200 Ext: 10641 | T168: SI | U168: SI | V168: NA | W168: SI | X168: Pública clasificada | Y168: C66142023-Tipo de información Pública clasificada-PRESTACION DE SERVICIOS DE SALUD: EL CONTRATISTA se obliga con POSITIVA a la prestación de los servicios de salud para los asegurados y o afiliados a POSITIVA, que accedan a los servicios habilitados del CONTRATISTA en calidad de asegurados, a los ramos: Administración de Riesgos Laborales ARL - por causa exclusiva de un accidente de trabajo, una enfermedad profesional, Accidentes Personales AP Educativo Generación Positiva, AP Colectivos, AP Corto Plazo, AP Individual, Planes de Salud complicaciones quirúrgicas, de cirugía estética y bariátrica y demás Ramos de Seguros autorizados a POSITIVA, encontrándose excluidos del presente contrato los servicios y todas aquellas actividades, procedimientos e intervenciones que no tengan por objeto contribuir al diagnóstico, tratamiento o rehabilitación de la patología derivada del siniestro o los servicios considerados como experimentales, cosméticos y suntuarios
A169: TÉCNICA | B169: Médica | C169: NO | D169: C66152023 | E169: 85100000 | F169: PRESTACION DE SERVICIOS DE SALUD: EL CONTRATISTA se obliga con POSITIVA a la prestación de los servicios de salud para los asegurados y o afiliados a POSITIVA, que accedan a los servicios habilitados del CONTRATISTA en calidad de asegurados, a los ramos: Administración de Riesgos Laborales ARL - por causa exclusiva de un accidente de trabajo, una enfermedad profesional, Accidentes Personales AP Educativo Generación Positiva, AP Colectivos, AP Corto Plazo, AP Individual, Planes de Salud complicaciones quirúrgicas, de cirugía estética y bariátrica y demás Ramos de Seguros autorizados a POSITIVA, encontrándose excluidos del presente contrato los servicios y todas aquellas actividades, procedimientos e intervenciones que no tengan por objeto contribuir al diagnóstico, tratamiento o rehabilitación de la patología derivada del siniestro o los servicios considerados como experimentales, cosméticos y suntuarios | G169: 2023-12-14 | H169: 12 | I169: 14/12/2026 | J169: 36.53333333 | K169: Invitación directa | L169: CargoAReserva | M169: Indeterminado | N169: Indeterminado | O169: NO | P169: 0 | Q169: 0 | R169: NA | S169: Gerencia de Abastecimiento Estratégico contratacion@positiva.gov.co PBX: (1)6502200 Ext: 10641 | T169: SI | U169: SI | V169: NA | W169: SI | X169: Pública clasificada | Y169: C66152023-Tipo de información Pública clasificada-PRESTACION DE SERVICIOS DE SALUD: EL CONTRATISTA se obliga con POSITIVA a la prestación de los servicios de salud para los asegurados y o afiliados a POSITIVA, que accedan a los servicios habilitados del CONTRATISTA en calidad de asegurados, a los ramos: Administración de Riesgos Laborales ARL - por causa exclusiva de un accidente de trabajo, una enfermedad profesional, Accidentes Personales AP Educativo Generación Positiva, AP Colectivos, AP Corto Plazo, AP Individual, Planes de Salud complicaciones quirúrgicas, de cirugía estética y bariátrica y demás Ramos de Seguros autorizados a POSITIVA, encontrándose excluidos del presente contrato los servicios y todas aquellas actividades, procedimientos e intervenciones que no tengan por objeto contribuir al diagnóstico, tratamiento o rehabilitación de la patología derivada del siniestro o los servicios considerados como experimentales, cosméticos y suntuarios
A170: TÉCNICA | B170: Médica | C170: NO | D170: C66162023 | E170: 85100000 | F170: PRESTACION DE SERVICIOS DE SALUD: EL CONTRATISTA se obliga con POSITIVA a la prestación de los servicios de salud para los asegurados y o afiliados a POSITIVA, que accedan a los servicios habilitados del CONTRATISTA en calidad de asegurados, a los ramos: Administración de Riesgos Laborales ARL - por causa exclusiva de un accidente de trabajo, una enfermedad profesional, Accidentes Personales AP Educativo Generación Positiva, AP Colectivos, AP Corto Plazo, AP Individual, Planes de Salud complicaciones quirúrgicas, de cirugía estética y bariátrica y demás Ramos de Seguros autorizados a POSITIVA, encontrándose excluidos del presente contrato los servicios y todas aquellas actividades, procedimientos e intervenciones que no tengan por objeto contribuir al diagnóstico, tratamiento o rehabilitación de la patología derivada del siniestro o los servicios considerados como experimentales, cosméticos y suntuarios | G170: 2023-12-14 | H170: 12 | I170: 14/12/2025 | J170: 24.36666667 | K170: Invitación directa | L170: CargoAReserva | M170: Indeterminado | N170: Indeterminado | O170: NO | P170: 0 | Q170: 0 | R170: NA | S170: Gerencia de Abastecimiento Estratégico contratacion@positiva.gov.co PBX: (1)6502200 Ext: 10641 | T170: SI | U170: SI | V170: NA | W170: SI | X170: Pública clasificada | Y170: C66162023-Tipo de información Pública clasificada-PRESTACION DE SERVICIOS DE SALUD: EL CONTRATISTA se obliga con POSITIVA a la prestación de los servicios de salud para los asegurados y o afiliados a POSITIVA, que accedan a los servicios habilitados del CONTRATISTA en calidad de asegurados, a los ramos: Administración de Riesgos Laborales ARL - por causa exclusiva de un accidente de trabajo, una enfermedad profesional, Accidentes Personales AP Educativo Generación Positiva, AP Colectivos, AP Corto Plazo, AP Individual, Planes de Salud complicaciones quirúrgicas, de cirugía estética y bariátrica y demás Ramos de Seguros autorizados a POSITIVA, encontrándose excluidos del presente contrato los servicios y todas aquellas actividades, procedimientos e intervenciones que no tengan por objeto contribuir al diagnóstico, tratamiento o rehabilitación de la patología derivada del siniestro o los servicios considerados como experimentales, cosméticos y suntuarios
A171: TÉCNICA | B171: Médica | C171: NO | D171: C66172023 | E171: 85100000 | F171: PRESTACION DE SERVICIOS DE SALUD: EL CONTRATISTA se obliga con POSITIVA a la prestación de los servicios de salud para los asegurados y o afiliados a POSITIVA, que accedan a los servicios habilitados del CONTRATISTA en calidad de asegurados, a los ramos: Administración de Riesgos Laborales ARL - por causa exclusiva de un accidente de trabajo, una enfermedad profesional, Accidentes Personales AP Educativo Generación Positiva, AP Colectivos, AP Corto Plazo, AP Individual, Planes de Salud complicaciones quirúrgicas, de cirugía estética y bariátrica y demás Ramos de Seguros autorizados a POSITIVA, encontrándose excluidos del presente contrato los servicios y todas aquellas actividades, procedimientos e intervenciones que no tengan por objeto contribuir al diagnóstico, tratamiento o rehabilitación de la patología derivada del siniestro o los servicios considerados como experimentales, cosméticos y suntuarios | G171: 2023-12-15 | H171: 12 | I171: 15/12/2025 | J171: 24.36666667 | K171: Invitación directa | L171: CargoAReserva | M171: Indeterminado | N171: Indeterminado | O171: NO | P171: 0 | Q171: 0 | R171: NA | S171: Gerencia de Abastecimiento Estratégico contratacion@positiva.gov.co PBX: (1)6502200 Ext: 10641 | T171: SI | U171: SI | V171: NA | W171: SI | X171: Pública clasificada | Y171: C66172023-Tipo de información Pública clasificada-PRESTACION DE SERVICIOS DE SALUD: EL CONTRATISTA se obliga con POSITIVA a la prestación de los servicios de salud para los asegurados y o afiliados a POSITIVA, que accedan a los servicios habilitados del CONTRATISTA en calidad de asegurados, a los ramos: Administración de Riesgos Laborales ARL - por causa exclusiva de un accidente de trabajo, una enfermedad profesional, Accidentes Personales AP Educativo Generación Positiva, AP Colectivos, AP Corto Plazo, AP Individual, Planes de Salud complicaciones quirúrgicas, de cirugía estética y bariátrica y demás Ramos de Seguros autorizados a POSITIVA, encontrándose excluidos del presente contrato los servicios y todas aquellas actividades, procedimientos e intervenciones que no tengan por objeto contribuir al diagnóstico, tratamiento o rehabilitación de la patología derivada del siniestro o los servicios considerados como experimentales, cosméticos y suntuarios
A172: TÉCNICA | B172: Médica | C172: NO | D172: C66182023 | E172: 85100000 | F172: PRESTACION DE SERVICIOS DE SALUD: EL CONTRATISTA se obliga con POSITIVA a la prestación de los servicios de salud para los asegurados y o afiliados a POSITIVA, que accedan a los servicios habilitados del CONTRATISTA en calidad de asegurados, a los ramos: Administración de Riesgos Laborales ARL - por causa exclusiva de un accidente de trabajo, una enfermedad profesional, Accidentes Personales AP Educativo Generación Positiva, AP Colectivos, AP Corto Plazo, AP Individual, Planes de Salud complicaciones quirúrgicas, de cirugía estética y bariátrica y demás Ramos de Seguros autorizados a POSITIVA, encontrándose excluidos del presente contrato los servicios y todas aquellas actividades, procedimientos e intervenciones que no tengan por objeto contribuir al diagnóstico, tratamiento o rehabilitación de la patología derivada del siniestro o los servicios considerados como experimentales, cosméticos y suntuarios | G172: 2023-12-15 | H172: 12 | I172: 15/12/2025 | J172: 24.36666667 | K172: Invitación directa | L172: CargoAReserva | M172: Indeterminado | N172: Indeterminado | O172: NO | P172: 0 | Q172: 0 | R172: NA | S172: Gerencia de Abastecimiento Estratégico contratacion@positiva.gov.co PBX: (1)6502200 Ext: 10641 | T172: SI | U172: SI | V172: NA | W172: SI | X172: Pública clasificada | Y172: C66182023-Tipo de información Pública clasificada-PRESTACION DE SERVICIOS DE SALUD: EL CONTRATISTA se obliga con POSITIVA a la prestación de los servicios de salud para los asegurados y o afiliados a POSITIVA, que accedan a los servicios habilitados del CONTRATISTA en calidad de asegurados, a los ramos: Administración de Riesgos Laborales ARL - por causa exclusiva de un accidente de trabajo, una enfermedad profesional, Accidentes Personales AP Educativo Generación Positiva, AP Colectivos, AP Corto Plazo, AP Individual, Planes de Salud complicaciones quirúrgicas, de cirugía estética y bariátrica y demás Ramos de Seguros autorizados a POSITIVA, encontrándose excluidos del presente contrato los servicios y todas aquellas actividades, procedimientos e intervenciones que no tengan por objeto contribuir al diagnóstico, tratamiento o rehabilitación de la patología derivada del siniestro o los servicios considerados como experimentales, cosméticos y suntuarios
A173: TÉCNICA | B173: Médica | C173: NO | D173: C66192023 | E173: 85100000 | F173: PRESTACION DE SERVICIOS DE SALUD: EL CONTRATISTA se obliga con POSITIVA a la prestación de los servicios de salud para los asegurados y o afiliados a POSITIVA, que accedan a los servicios habilitados del CONTRATISTA en calidad de asegurados, a los ramos: Administración de Riesgos Laborales ARL - por causa exclusiva de un accidente de trabajo, una enfermedad profesional, Accidentes Personales AP Educativo Generación Positiva, AP Colectivos, AP Corto Plazo, AP Individual, Planes de Salud complicaciones quirúrgicas, de cirugía estética y bariátrica y demás Ramos de Seguros autorizados a POSITIVA, encontrándose excluidos del presente contrato los servicios y todas aquellas actividades, procedimientos e intervenciones que no tengan por objeto contribuir al diagnóstico, tratamiento o rehabilitación de la patología derivada del siniestro o los servicios considerados como experimentales, cosméticos y suntuarios | G173: 2023-12-15 | H173: 12 | I173: 15/12/2025 | J173: 24.36666667 | K173: Invitación directa | L173: CargoAReserva | M173: Indeterminado | N173: Indeterminado | O173: NO | P173: 0 | Q173: 0 | R173: NA | S173: Gerencia de Abastecimiento Estratégico contratacion@positiva.gov.co PBX: (1)6502200 Ext: 10641 | T173: SI | U173: SI | V173: NA | W173: SI | X173: Pública clasificada | Y173: C66192023-Tipo de información Pública clasificada-PRESTACION DE SERVICIOS DE SALUD: EL CONTRATISTA se obliga con POSITIVA a la prestación de los servicios de salud para los asegurados y o afiliados a POSITIVA, que accedan a los servicios habilitados del CONTRATISTA en calidad de asegurados, a los ramos: Administración de Riesgos Laborales ARL - por causa exclusiva de un accidente de trabajo, una enfermedad profesional, Accidentes Personales AP Educativo Generación Positiva, AP Colectivos, AP Corto Plazo, AP Individual, Planes de Salud complicaciones quirúrgicas, de cirugía estética y bariátrica y demás Ramos de Seguros autorizados a POSITIVA, encontrándose excluidos del presente contrato los servicios y todas aquellas actividades, procedimientos e intervenciones que no tengan por objeto contribuir al diagnóstico, tratamiento o rehabilitación de la patología derivada del siniestro o los servicios considerados como experimentales, cosméticos y suntuarios
A174: TÉCNICA | B174: Médica | C174: NO | D174: C66202023 | E174: 85100000 | F174: PRESTACION DE SERVICIOS DE SALUD: EL CONTRATISTA se obliga con POSITIVA a la prestación de los servicios de salud para los asegurados y o afiliados a POSITIVA, que accedan a los servicios habilitados del CONTRATISTA en calidad de asegurados, a los ramos: Administración de Riesgos Laborales ARL - por causa exclusiva de un accidente de trabajo, una enfermedad profesional, Accidentes Personales AP Educativo Generación Positiva, AP Colectivos, AP Corto Plazo, AP Individual, Planes de Salud complicaciones quirúrgicas, de cirugía estética y bariátrica y demás Ramos de Seguros autorizados a POSITIVA, encontrándose excluidos del presente contrato los servicios y todas aquellas actividades, procedimientos e intervenciones que no tengan por objeto contribuir al diagnóstico, tratamiento o rehabilitación de la patología derivada del siniestro o los servicios considerados como experimentales, cosméticos y suntuarios | G174: 2023-12-15 | H174: 12 | I174: 15/12/2025 | J174: 24.36666667 | K174: Invitación directa | L174: CargoAReserva | M174: Indeterminado | N174: Indeterminado | O174: NO | P174: 0 | Q174: 0 | R174: NA | S174: Gerencia de Abastecimiento Estratégico contratacion@positiva.gov.co PBX: (1)6502200 Ext: 10641 | T174: SI | U174: SI | V174: NA | W174: SI | X174: Pública clasificada | Y174: C66202023-Tipo de información Pública clasificada-PRESTACION DE SERVICIOS DE SALUD: EL CONTRATISTA se obliga con POSITIVA a la prestación de los servicios de salud para los asegurados y o afiliados a POSITIVA, que accedan a los servicios habilitados del CONTRATISTA en calidad de asegurados, a los ramos: Administración de Riesgos Laborales ARL - por causa exclusiva de un accidente de trabajo, una enfermedad profesional, Accidentes Personales AP Educativo Generación Positiva, AP Colectivos, AP Corto Plazo, AP Individual, Planes de Salud complicaciones quirúrgicas, de cirugía estética y bariátrica y demás Ramos de Seguros autorizados a POSITIVA, encontrándose excluidos del presente contrato los servicios y todas aquellas actividades, procedimientos e intervenciones que no tengan por objeto contribuir al diagnóstico, tratamiento o rehabilitación de la patología derivada del siniestro o los servicios considerados como experimentales, cosméticos y suntuarios
